{"text_format":"1","workbook":"xlsx","n_sheets":10,"sheets":["Ohje","Yhteenveto","Materiaaliluettelo","Valmistus, kuljetus, työmaa (A)","Käyttö (B)","Elinkaaren loppu (C+D)","Tietojen Laatu","Materiaalien päästötiedot","Datalehti","LOKI"],"not_rendered":{"charts":4,"images":10,"macros":1,"external_links":0,"defined_names":29,"comments":2,"pivot_tables":0},"unopened":[],"bounds":{"document_bytes":16777216,"sheet_cells":100000,"rows_first":2000,"rows_last":500,"rows_between":2000,"halvings":0,"cell_chars":16384,"cell_head_chars":4096},"cells_cut":0,"cells_raw":0,"read":"whole","date_system":"1900"}

{"sheet":"Ohje","index":0,"n_rows":21,"n_cols":2,"rows_kept":21,"cut":false,"hidden":false,"merged":[[1,1,1,2],[20,1,20,2],[6,1,6,2],[9,1,9,2],[15,1,15,2],[13,1,13,2]]}
[]
[null,"Rakennusten hiilijalanjäljen arviointityökalu"]
[null,"Luonnos hiilijalanjäljen arvioinnin testausta varten 9.12.2019"]
[]
[null,"Käyttöohje"]
[]
[null,"Tämä arviointityökalun luonnosversio on tarkoitettu rakennusten hiilijalanjäljen laskentamenetelmän testausta varten. Työkalua ja sen liitteenä olevia päästötietoja kehitetään testauksen jälkeen.\n\nAvoimen työkalun tarkoituksena on tukea ja edistää elinkaarilaskennan käyttöä rakennushankkeen valmistelussa, suunnittelussa, rakentamisessa ja rakennusten käytön aikana. Tämä työkalu on tarkoitettu rakennusten elinkaaren hiilijalanjäljen arviointiin ensisijaisesti silloin, kun käytetään ympäristöministeriön yksinkertaistettua arviointimenetelmää. Työkalua voidaan käyttää myös tarkennetulla arviointimenetelmällä tehtyjen laskelmien raportointiin. Arvioinnit voi tehdä myös muilla soveltuvilla työkaluilla. "]
[]
[null,"Työkalun sisältö"]
[null,"Työkalun eri välilehdillä kerätään tietoa hankkeesta ja sen elinkaarivaikutuksista seuraavasti:\nYhteenveto: Kohteen perustiedot ja arvioinnin tulokset\nMateriaaliluettelo: Rakennuksessa käytettyjen materiaalien luettelointi\nValmistu, kuljetus, työmaa (A): Valmistuksen, kuljetuksen ja rakentamisen päästöt\nKäyttö (B): Korjausten ja energiankulutuksen arviointi\nElinkaaren loppu (C+D):  Purkamisen ja jätteiden käsittelyn arviointi\nTietojen laatu: Käytetyn lähtötiedon luotettavuuden arviointi\nMateriaalitien päästötiedot: Työkalussa käytettävien hiilijalanjäljen ja -kädenjäljen kertoimet\n"]
[null,"Laskentatietojen syöttäminen "]
[]
[null,"Syötä tiedot harmaisiin soluihin"]
[null,"Työkaluun syötetään tietoja harmaalla pohjalla oleviin soluihin. Muut solut ovat lukittuja. "]
[null,"Valmiit taulukkoarvot sinisissä soluissa"]
[null,"Yksinkertaistetussa menetelmässä suurin osa laskennan tiedoista tulee pinta-alaan perustuvista taulukkoarvoista. Tällaiset kohdat työkalussa on esitetty vaaleansinisellä värillä, eikä niitä voi muokata."]
[null,"Tarkempia tietoja voi syöttää vihreisiin soluihin"]
[null,"Jos haluat korvata taulukkoarvoja tarkemmilla hankekohtaisilla tiedoilla, syötä nämä tiedot vihreisiin soluihin. Taulukkoarvon vieressä olevaa \"korvaa taulukkoarvot\" -nappia painamalla aukeaa uusi tietokenttä tätä varten. Vaalean vihreisiin soluihin syötetyt arvot korvaavat oletuksena olevat taulukkoarvot. Muista toimittaa liitteenä kirjallinen selvitys, mihin tietoihin tarkentavat laskelmasi perustuvat."]
[]
[null,"Käyttöoikeus ja vastuuvapaus"]
[null,"Työkalu on tehty yhteistyössä Green Building Council Finland (GBC) kanssa. Työkalu on käytettävissä veloituksetta. Työkalun luonnosversio on tarkoitettu ainoastaan arvioinnin testausta varten.\n \nYmpäristöministeriö tai GBC ei vastaa mistään vahingoista, jotka mahdollisesti aiheutuvat arviointityökalun käyttäjälle tai muulla taholle arviointityökalua käytettäessa tai muuten sovellettaessa siinä olevia tietoja, toimintamalleja tai esimerkkejä."]

{"sheet":"Yhteenveto","index":1,"n_rows":64,"n_cols":135,"rows_kept":64,"cut":false,"hidden":false,"merged":[[1,1,1,3],[31,1,31,2],[32,1,32,2],[36,1,36,2],[29,1,29,2],[6,1,6,4],[7,3,7,4],[9,3,9,4],[10,3,10,4],[11,3,11,4],[13,3,13,4],[17,3,17,4],[18,3,18,4],[7,1,10,1],[11,1,16,1],[8,3,8,4],[22,3,22,4],[12,3,12,4],[44,1,44,2],[22,1,22,2],[24,3,24,4],[26,3,26,4],[27,3,27,4],[14,3,14,4],[15,3,15,4],[16,3,16,4],[19,3,19,4],[20,3,20,4],[45,1,45,2],[46,1,46,2],[23,3,23,4],[42,1,42,2],[43,1,43,2],[34,1,34,2],[35,1,35,2],[25,3,25,4]]}
[]
[null,{"$f":"Ohje!B2","v":"Rakennusten hiilijalanjäljen arviointityökalu"}]
[null,{"$f":"Ohje!B3","v":"Luonnos hiilijalanjäljen arvioinnin testausta varten 9.12.2019"}]
[]
[null,"Yhteenveto"]
[]
[null,"Lähtötiedot"]
[null,"Rakennuskohteen tiedot","Kohteen nimi*"]
[null,null,"Rakennustunnus"]
[null,null,"Osoite"]
[null,null,"Rakennustyyppi"]
[null,"Rakennuksen tekniset tiedot","Kerrosala [kem2]"]
[null,null,"Lämmitetty nettoala [m2netto]*"]
[null,null,"Kerrosten lukumäärä"]
[null,null,"Kellarikerrosten lukumäärä"]
[null,null,"Pääasiallinen runkomateriaali"]
[null,null,"Energialuokka"]
[null,"Laskennan tiedot","Laskenta-ajanjakso*",50]
[null,null,"Arvioinnin tekovaihe"]
[null,null,"Käytetty arviointitapa"]
[null,null,"Rakennuksen arvioitu käyttöönottovuosi*"]
[null,null,null,null,"*pakollinen tieto"]
[null,"Arvionnin tekijät"]
[null,null,"Arvioinnin laatija","Arvioinnin tarkastaja"]
[null,"Nimi"]
[null,"Yritys"]
[null,"Koulutus"]
[null,"Päivämäärä"]
[]
[null,"Elinkaariarvioinnin tulokset",null,"Hiilijalanjälki","Hiilikädenjälki"]
[null,null,null,"tn CO2e","tn CO2e"]
[null,"Elinkaaren aikana syntyvät kokonaispäästöt (A-D) ",null,{"$f":"IFERROR(D35*D18*D13/1000,\"-\")","v":0},{"$f":"IFERROR(E35*D13*D18/1000,\"-\")","v":0}]
[null,null,null,null,null,null,null,{"$f":"D30","v":"Hiilijalanjälki"},{"$f":"E30","v":"Hiilikädenjälki"}]
[null,null,null,"kg CO2e/m2netto/a","kg CO2e/m2netto/a"]
[null,"Vuotuiset päästöt lämmitettyä nettoalaa kohden (A-D) ",null,{"$f":"IFERROR(('Valmistus, kuljetus, työmaa (A)'!C8+'Käyttö (B)'!D9+'Elinkaaren loppu (C+D)'!D9),\"-\")","v":1.2612000000000001},{"$f":"IFERROR(('Valmistus, kuljetus, työmaa (A)'!D8+'Käyttö (B)'!E9+'Elinkaaren loppu (C+D)'!E9),\"-\")","v":0}]
[null,null,null,null,null," ",null,{"$f":"F32","v":0},{"$f":"E33","v":0}]
[null,"Valmistus, kuljetus ja työmaa (vaiheet A1-5)",null,{"$f":"IFERROR('Valmistus, kuljetus, työmaa (A)'!C8,\"\")","v":0.54600000000000004},{"$f":"IFERROR('Valmistus, kuljetus, työmaa (A)'!D8,\"\")","v":0},null,{"$f":"B47","v":"Elinkaaren ulkopuoliset vaikutukset (D)"},{"$f":"D47","v":0},{"$f":"E47","v":0}]
[null,{"$f":"'Valmistus, kuljetus, työmaa (A)'!B11","v":"Tontti"},null,{"$f":"IFERROR('Valmistus, kuljetus, työmaa (A)'!C11,\"\")","v":"-"},{"$f":"IFERROR('Valmistus, kuljetus, työmaa (A)'!D11,\"\")","v":"-"},null,{"$f":"B45","v":"Purkaminen (vaihe C)"},{"$f":"D45","v":0.67200000000000004},{"$f":"E45","v":0}]
[null,{"$f":"'Valmistus, kuljetus, työmaa (A)'!B12","v":"Kantavat rakenteet"},null,{"$f":"IFERROR('Valmistus, kuljetus, työmaa (A)'!C12,\"\")","v":"-"},{"$f":"IFERROR('Valmistus, kuljetus, työmaa (A)'!D12,\"\")","v":"-"},null,{"$f":"B43","v":"Käyttö (vaiheet B3-4, 6)"},{"$f":"D43","v":4.3200000000000002E-2},{"$f":"E43","v":0}]
[null,{"$f":"'Valmistus, kuljetus, työmaa (A)'!B13","v":"Vaippa"},null,{"$f":"IFERROR('Valmistus, kuljetus, työmaa (A)'!C13,\"\")","v":"-"},{"$f":"IFERROR('Valmistus, kuljetus, työmaa (A)'!D13,\"\")","v":"-"}]
[null,{"$f":"'Valmistus, kuljetus, työmaa (A)'!B14","v":"Kevyet rakenteet"},null,{"$f":"IFERROR('Valmistus, kuljetus, työmaa (A)'!C14,\"\")","v":"-"},{"$f":"IFERROR('Valmistus, kuljetus, työmaa (A)'!D14,\"\")","v":"-"},null,{"$f":"B37","v":"Valmistus, kuljetus ja työmaa (vaiheet A1-5)"},{"$f":"D37","v":0.54600000000000004},{"$f":"E37","v":0}]
[null,{"$f":"'Valmistus, kuljetus, työmaa (A)'!B15","v":"Talotekniikka"},null,{"$f":"IFERROR('Valmistus, kuljetus, työmaa (A)'!C15,\"\")","v":"-"},{"$f":"IFERROR('Valmistus, kuljetus, työmaa (A)'!D15,\"\")","v":"-"},null,{"$f":"B42","v":"Talotekniikka"},{"$f":"D42","v":"-"},{"$f":"E42","v":"-"}]
[null,"Käyttö (vaiheet B3-4, 6)",null,{"$f":"IFERROR('Käyttö (B)'!D9,\"\")","v":4.3200000000000002E-2},{"$f":"IFERROR('Käyttö (B)'!E9,\"\")","v":0},null,{"$f":"B41","v":"Kevyet rakenteet"},{"$f":"D41","v":"-"},{"$f":"E41","v":"-"}]
[null,null,null,null,null,null,{"$f":"B40","v":"Vaippa"},{"$f":"D40","v":"-"},{"$f":"E40","v":"-"}]
[null,"Purkaminen (vaihe C)",null,{"$f":"IFERROR(('Elinkaaren loppu (C+D)'!D9-'Elinkaaren loppu (C+D)'!D29),\"\")","v":0.67200000000000004},{"$f":"IFERROR(('Elinkaaren loppu (C+D)'!E9-'Elinkaaren loppu (C+D)'!E29),\"\")","v":0},null,{"$f":"B39","v":"Kantavat rakenteet"},{"$f":"D39","v":"-"},{"$f":"E39","v":"-"}]
[null,null,null,null,null,null,{"$f":"B38","v":"Tontti"},{"$f":"D38","v":"-"},{"$f":"E38","v":"-"}]
[null,"Elinkaaren ulkopuoliset vaikutukset (D)",null,{"$f":"IFERROR('Elinkaaren loppu (C+D)'!D29,\"\")","v":0},{"$f":"IFERROR('Elinkaaren loppu (C+D)'!E29,\"\")","v":0}]
[]
[]
[]
[]
[]
[]
[]
[]
[]
[]
[]
[]
[]
[]
[null,{"$f":"Datalehti!B62","v":"Vuosi"},{"$f":"Datalehti!C62","v":0},{"$f":"Datalehti!D62","v":1},{"$f":"Datalehti!E62","v":2},{"$f":"Datalehti!F62","v":3},{"$f":"Datalehti!G62","v":4},{"$f":"Datalehti!H62","v":5},{"$f":"Datalehti!I62","v":6},{"$f":"Datalehti!J62","v":7},{"$f":"Datalehti!K62","v":8},{"$f":"Datalehti!L62","v":9},{"$f":"Datalehti!M62","v":10},{"$f":"Datalehti!N62","v":11},{"$f":"Datalehti!O62","v":12},{"$f":"Datalehti!P62","v":13},{"$f":"Datalehti!Q62","v":14},{"$f":"Datalehti!R62","v":15},{"$f":"Datalehti!S62","v":16},{"$f":"Datalehti!T62","v":17},{"$f":"Datalehti!U62","v":18},{"$f":"Datalehti!V62","v":19},{"$f":"Datalehti!W62","v":20},{"$f":"Datalehti!X62","v":21},{"$f":"Datalehti!Y62","v":22},{"$f":"Datalehti!Z62","v":23},{"$f":"Datalehti!AA62","v":24},{"$f":"Datalehti!AB62","v":25},{"$f":"Datalehti!AC62","v":26},{"$f":"Datalehti!AD62","v":27},{"$f":"Datalehti!AE62","v":28},{"$f":"Datalehti!AF62","v":29},{"$f":"Datalehti!AG62","v":30},{"$f":"Datalehti!AH62","v":31},{"$f":"Datalehti!AI62","v":32},{"$f":"Datalehti!AJ62","v":33},{"$f":"Datalehti!AK62","v":34},{"$f":"Datalehti!AL62","v":35},{"$f":"Datalehti!AM62","v":36},{"$f":"Datalehti!AN62","v":37},{"$f":"Datalehti!AO62","v":38},{"$f":"Datalehti!AP62","v":39},{"$f":"Datalehti!AQ62","v":40},{"$f":"Datalehti!AR62","v":41},{"$f":"Datalehti!AS62","v":42},{"$f":"Datalehti!AT62","v":43},{"$f":"Datalehti!AU62","v":44},{"$f":"Datalehti!AV62","v":45},{"$f":"Datalehti!AW62","v":46},{"$f":"Datalehti!AX62","v":47},{"$f":"Datalehti!AY62","v":48},{"$f":"Datalehti!AZ62","v":49},{"$f":"Datalehti!BA62","v":50},{"$f":"Datalehti!BB62","v":51},{"$f":"Datalehti!BC62","v":52},{"$f":"Datalehti!BD62","v":53},{"$f":"Datalehti!BE62","v":54},{"$f":"Datalehti!BF62","v":55},{"$f":"Datalehti!BG62","v":56},{"$f":"Datalehti!BH62","v":57},{"$f":"Datalehti!BI62","v":58},{"$f":"Datalehti!BJ62","v":59},{"$f":"Datalehti!BK62","v":60},{"$f":"Datalehti!BL62","v":61},{"$f":"Datalehti!BM62","v":62},{"$f":"Datalehti!BN62","v":63},{"$f":"Datalehti!BO62","v":64},{"$f":"Datalehti!BP62","v":65},{"$f":"Datalehti!BQ62","v":66},{"$f":"Datalehti!BR62","v":67},{"$f":"Datalehti!BS62","v":68},{"$f":"Datalehti!BT62","v":69},{"$f":"Datalehti!BU62","v":70},{"$f":"Datalehti!BV62","v":71},{"$f":"Datalehti!BW62","v":72},{"$f":"Datalehti!BX62","v":73},{"$f":"Datalehti!BY62","v":74},{"$f":"Datalehti!BZ62","v":75},{"$f":"Datalehti!CA62","v":76},{"$f":"Datalehti!CB62","v":77},{"$f":"Datalehti!CC62","v":78},{"$f":"Datalehti!CD62","v":79},{"$f":"Datalehti!CE62","v":80},{"$f":"Datalehti!CF62","v":81},{"$f":"Datalehti!CG62","v":82},{"$f":"Datalehti!CH62","v":83},{"$f":"Datalehti!CI62","v":84},{"$f":"Datalehti!CJ62","v":85},{"$f":"Datalehti!CK62","v":86},{"$f":"Datalehti!CL62","v":87},{"$f":"Datalehti!CM62","v":88},{"$f":"Datalehti!CN62","v":89},{"$f":"Datalehti!CO62","v":90},{"$f":"Datalehti!CP62","v":91},{"$f":"Datalehti!CQ62","v":92},{"$f":"Datalehti!CR62","v":93},{"$f":"Datalehti!CS62","v":94},{"$f":"Datalehti!CT62","v":95},{"$f":"Datalehti!CU62","v":96},{"$f":"Datalehti!CV62","v":97},{"$f":"Datalehti!CW62","v":98},{"$f":"Datalehti!CX62","v":99},{"$f":"Datalehti!CY62","v":100},{"$f":"Datalehti!CZ62","v":101},{"$f":"Datalehti!DA62","v":102},{"$f":"Datalehti!DB62","v":103},{"$f":"Datalehti!DC62","v":104},{"$f":"Datalehti!DD62","v":105},{"$f":"Datalehti!DE62","v":106},{"$f":"Datalehti!DF62","v":107},{"$f":"Datalehti!DG62","v":108},{"$f":"Datalehti!DH62","v":109},{"$f":"Datalehti!DI62","v":110},{"$f":"Datalehti!DJ62","v":111},{"$f":"Datalehti!DK62","v":112},{"$f":"Datalehti!DL62","v":113},{"$f":"Datalehti!DM62","v":114},{"$f":"Datalehti!DN62","v":115},{"$f":"Datalehti!DO62","v":116},{"$f":"Datalehti!DP62","v":117},{"$f":"Datalehti!DQ62","v":118},{"$f":"Datalehti!DR62","v":119},{"$f":"Datalehti!DS62","v":120},{"$f":"Datalehti!DT62","v":121},{"$f":"Datalehti!DU62","v":122},{"$f":"Datalehti!DV62","v":123},{"$f":"Datalehti!DW62","v":124},{"$f":"Datalehti!DX62","v":125},{"$f":"Datalehti!DY62","v":126},{"$f":"Datalehti!DZ62","v":127},{"$f":"Datalehti!EA62","v":128},{"$f":"Datalehti!EB62","v":129},{"$f":"Datalehti!EC62","v":130},{"$f":"Datalehti!ED62","v":131},{"$f":"Datalehti!EE62","v":132}]
[null,{"$f":"Datalehti!B63","v":"Materiaalien ja rakentamisen kumulatiivinen hiilijalanjälki"},{"$f":"Datalehti!C63","v":0},{"$f":"Datalehti!D63","v":0},{"$f":"Datalehti!E63","v":0},{"$f":"Datalehti!F63","v":0},{"$f":"Datalehti!G63","v":0},{"$f":"Datalehti!H63","v":0},{"$f":"Datalehti!I63","v":0},{"$f":"Datalehti!J63","v":0},{"$f":"Datalehti!K63","v":0},{"$f":"Datalehti!L63","v":0},{"$f":"Datalehti!M63","v":0},{"$f":"Datalehti!N63","v":0},{"$f":"Datalehti!O63","v":0},{"$f":"Datalehti!P63","v":0},{"$f":"Datalehti!Q63","v":0},{"$f":"Datalehti!R63","v":0},{"$f":"Datalehti!S63","v":0},{"$f":"Datalehti!T63","v":0},{"$f":"Datalehti!U63","v":0},{"$f":"Datalehti!V63","v":0},{"$f":"Datalehti!W63","v":0},{"$f":"Datalehti!X63","v":0},{"$f":"Datalehti!Y63","v":0},{"$f":"Datalehti!Z63","v":0},{"$f":"Datalehti!AA63","v":0},{"$f":"Datalehti!AB63","v":0},{"$f":"Datalehti!AC63","v":0},{"$f":"Datalehti!AD63","v":0},{"$f":"Datalehti!AE63","v":0},{"$f":"Datalehti!AF63","v":0},{"$f":"Datalehti!AG63","v":0},{"$f":"Datalehti!AH63","v":0},{"$f":"Datalehti!AI63","v":0},{"$f":"Datalehti!AJ63","v":0},{"$f":"Datalehti!AK63","v":0},{"$f":"Datalehti!AL63","v":0},{"$f":"Datalehti!AM63","v":0},{"$f":"Datalehti!AN63","v":0},{"$f":"Datalehti!AO63","v":0},{"$f":"Datalehti!AP63","v":0},{"$f":"Datalehti!AQ63","v":0},{"$f":"Datalehti!AR63","v":0},{"$f":"Datalehti!AS63","v":0},{"$f":"Datalehti!AT63","v":0},{"$f":"Datalehti!AU63","v":0},{"$f":"Datalehti!AV63","v":0},{"$f":"Datalehti!AW63","v":0},{"$f":"Datalehti!AX63","v":0},{"$f":"Datalehti!AY63","v":0},{"$f":"Datalehti!AZ63","v":0},{"$f":"Datalehti!BA63","v":0},{"$f":"Datalehti!BB63","v":0},{"$f":"Datalehti!BC63","v":0},{"$f":"Datalehti!BD63","v":0},{"$f":"Datalehti!BE63","v":0},{"$f":"Datalehti!BF63","v":0},{"$f":"Datalehti!BG63","v":0},{"$f":"Datalehti!BH63","v":0},{"$f":"Datalehti!BI63","v":0},{"$f":"Datalehti!BJ63","v":0},{"$f":"Datalehti!BK63","v":0},{"$f":"Datalehti!BL63","v":0},{"$f":"Datalehti!BM63","v":0},{"$f":"Datalehti!BN63","v":0},{"$f":"Datalehti!BO63","v":0},{"$f":"Datalehti!BP63","v":0},{"$f":"Datalehti!BQ63","v":0},{"$f":"Datalehti!BR63","v":0},{"$f":"Datalehti!BS63","v":0},{"$f":"Datalehti!BT63","v":0},{"$f":"Datalehti!BU63","v":0},{"$f":"Datalehti!BV63","v":0},{"$f":"Datalehti!BW63","v":0},{"$f":"Datalehti!BX63","v":0},{"$f":"Datalehti!BY63","v":0},{"$f":"Datalehti!BZ63","v":0},{"$f":"Datalehti!CA63","v":0},{"$f":"Datalehti!CB63","v":0},{"$f":"Datalehti!CC63","v":0},{"$f":"Datalehti!CD63","v":0},{"$f":"Datalehti!CE63","v":0},{"$f":"Datalehti!CF63","v":0},{"$f":"Datalehti!CG63","v":0},{"$f":"Datalehti!CH63","v":0},{"$f":"Datalehti!CI63","v":0},{"$f":"Datalehti!CJ63","v":0},{"$f":"Datalehti!CK63","v":0},{"$f":"Datalehti!CL63","v":0},{"$f":"Datalehti!CM63","v":0},{"$f":"Datalehti!CN63","v":0},{"$f":"Datalehti!CO63","v":0},{"$f":"Datalehti!CP63","v":0},{"$f":"Datalehti!CQ63","v":0},{"$f":"Datalehti!CR63","v":0},{"$f":"Datalehti!CS63","v":0},{"$f":"Datalehti!CT63","v":0},{"$f":"Datalehti!CU63","v":0},{"$f":"Datalehti!CV63","v":0},{"$f":"Datalehti!CW63","v":0},{"$f":"Datalehti!CX63","v":0},{"$f":"Datalehti!CY63","v":0},{"$f":"Datalehti!CZ63","v":0},{"$f":"Datalehti!DA63","v":0},{"$f":"Datalehti!DB63","v":0},{"$f":"Datalehti!DC63","v":0},{"$f":"Datalehti!DD63","v":0},{"$f":"Datalehti!DE63","v":0},{"$f":"Datalehti!DF63","v":0},{"$f":"Datalehti!DG63","v":0},{"$f":"Datalehti!DH63","v":0},{"$f":"Datalehti!DI63","v":0},{"$f":"Datalehti!DJ63","v":0},{"$f":"Datalehti!DK63","v":0},{"$f":"Datalehti!DL63","v":0},{"$f":"Datalehti!DM63","v":0},{"$f":"Datalehti!DN63","v":0},{"$f":"Datalehti!DO63","v":0},{"$f":"Datalehti!DP63","v":0},{"$f":"Datalehti!DQ63","v":0},{"$f":"Datalehti!DR63","v":0},{"$f":"Datalehti!DS63","v":0},{"$f":"Datalehti!DT63","v":0},{"$f":"Datalehti!DU63","v":0},{"$f":"Datalehti!DV63","v":0},{"$f":"Datalehti!DW63","v":0},{"$f":"Datalehti!DX63","v":0},{"$f":"Datalehti!DY63","v":0},{"$f":"Datalehti!DZ63","v":0},{"$f":"Datalehti!EA63","v":0},{"$f":"Datalehti!EB63","v":0},{"$f":"Datalehti!EC63","v":0},{"$f":"Datalehti!ED63","v":0},{"$f":"Datalehti!EE63","v":0}]
[null,{"$f":"Datalehti!B64","v":"Energiankäytön kumulatiivinen hiilijalanjälki"},{"$f":"Datalehti!C64","v":0},{"$f":"Datalehti!D64","v":{"$error":"#N/A"}},{"$f":"Datalehti!E64","v":{"$error":"#N/A"}},{"$f":"Datalehti!F64","v":{"$error":"#N/A"}},{"$f":"Datalehti!G64","v":{"$error":"#N/A"}},{"$f":"Datalehti!H64","v":{"$error":"#N/A"}},{"$f":"Datalehti!I64","v":{"$error":"#N/A"}},{"$f":"Datalehti!J64","v":{"$error":"#N/A"}},{"$f":"Datalehti!K64","v":{"$error":"#N/A"}},{"$f":"Datalehti!L64","v":{"$error":"#N/A"}},{"$f":"Datalehti!M64","v":{"$error":"#N/A"}},{"$f":"Datalehti!N64","v":{"$error":"#N/A"}},{"$f":"Datalehti!O64","v":{"$error":"#N/A"}},{"$f":"Datalehti!P64","v":{"$error":"#N/A"}},{"$f":"Datalehti!Q64","v":{"$error":"#N/A"}},{"$f":"Datalehti!R64","v":{"$error":"#N/A"}},{"$f":"Datalehti!S64","v":{"$error":"#N/A"}},{"$f":"Datalehti!T64","v":{"$error":"#N/A"}},{"$f":"Datalehti!U64","v":{"$error":"#N/A"}},{"$f":"Datalehti!V64","v":{"$error":"#N/A"}},{"$f":"Datalehti!W64","v":{"$error":"#N/A"}},{"$f":"Datalehti!X64","v":{"$error":"#N/A"}},{"$f":"Datalehti!Y64","v":{"$error":"#N/A"}},{"$f":"Datalehti!Z64","v":{"$error":"#N/A"}},{"$f":"Datalehti!AA64","v":{"$error":"#N/A"}},{"$f":"Datalehti!AB64","v":{"$error":"#N/A"}},{"$f":"Datalehti!AC64","v":{"$error":"#N/A"}},{"$f":"Datalehti!AD64","v":{"$error":"#N/A"}},{"$f":"Datalehti!AE64","v":{"$error":"#N/A"}},{"$f":"Datalehti!AF64","v":{"$error":"#N/A"}},{"$f":"Datalehti!AG64","v":{"$error":"#N/A"}},{"$f":"Datalehti!AH64","v":{"$error":"#N/A"}},{"$f":"Datalehti!AI64","v":{"$error":"#N/A"}},{"$f":"Datalehti!AJ64","v":{"$error":"#N/A"}},{"$f":"Datalehti!AK64","v":{"$error":"#N/A"}},{"$f":"Datalehti!AL64","v":{"$error":"#N/A"}},{"$f":"Datalehti!AM64","v":{"$error":"#N/A"}},{"$f":"Datalehti!AN64","v":{"$error":"#N/A"}},{"$f":"Datalehti!AO64","v":{"$error":"#N/A"}},{"$f":"Datalehti!AP64","v":{"$error":"#N/A"}},{"$f":"Datalehti!AQ64","v":{"$error":"#N/A"}},{"$f":"Datalehti!AR64","v":{"$error":"#N/A"}},{"$f":"Datalehti!AS64","v":{"$error":"#N/A"}},{"$f":"Datalehti!AT64","v":{"$error":"#N/A"}},{"$f":"Datalehti!AU64","v":{"$error":"#N/A"}},{"$f":"Datalehti!AV64","v":{"$error":"#N/A"}},{"$f":"Datalehti!AW64","v":{"$error":"#N/A"}},{"$f":"Datalehti!AX64","v":{"$error":"#N/A"}},{"$f":"Datalehti!AY64","v":{"$error":"#N/A"}},{"$f":"Datalehti!AZ64","v":{"$error":"#N/A"}},{"$f":"Datalehti!BA64","v":{"$error":"#N/A"}},{"$f":"Datalehti!BB64","v":{"$error":"#N/A"}},{"$f":"Datalehti!BC64","v":{"$error":"#N/A"}},{"$f":"Datalehti!BD64","v":{"$error":"#N/A"}},{"$f":"Datalehti!BE64","v":{"$error":"#N/A"}},{"$f":"Datalehti!BF64","v":{"$error":"#N/A"}},{"$f":"Datalehti!BG64","v":{"$error":"#N/A"}},{"$f":"Datalehti!BH64","v":{"$error":"#N/A"}},{"$f":"Datalehti!BI64","v":{"$error":"#N/A"}},{"$f":"Datalehti!BJ64","v":{"$error":"#N/A"}},{"$f":"Datalehti!BK64","v":{"$error":"#N/A"}},{"$f":"Datalehti!BL64","v":{"$error":"#N/A"}},{"$f":"Datalehti!BM64","v":{"$error":"#N/A"}},{"$f":"Datalehti!BN64","v":{"$error":"#N/A"}},{"$f":"Datalehti!BO64","v":{"$error":"#N/A"}},{"$f":"Datalehti!BP64","v":{"$error":"#N/A"}},{"$f":"Datalehti!BQ64","v":{"$error":"#N/A"}},{"$f":"Datalehti!BR64","v":{"$error":"#N/A"}},{"$f":"Datalehti!BS64","v":{"$error":"#N/A"}},{"$f":"Datalehti!BT64","v":{"$error":"#N/A"}},{"$f":"Datalehti!BU64","v":{"$error":"#N/A"}},{"$f":"Datalehti!BV64","v":{"$error":"#N/A"}},{"$f":"Datalehti!BW64","v":{"$error":"#N/A"}},{"$f":"Datalehti!BX64","v":{"$error":"#N/A"}},{"$f":"Datalehti!BY64","v":{"$error":"#N/A"}},{"$f":"Datalehti!BZ64","v":{"$error":"#N/A"}},{"$f":"Datalehti!CA64","v":{"$error":"#N/A"}},{"$f":"Datalehti!CB64","v":{"$error":"#N/A"}},{"$f":"Datalehti!CC64","v":{"$error":"#N/A"}},{"$f":"Datalehti!CD64","v":{"$error":"#N/A"}},{"$f":"Datalehti!CE64","v":{"$error":"#N/A"}},{"$f":"Datalehti!CF64","v":{"$error":"#N/A"}},{"$f":"Datalehti!CG64","v":{"$error":"#N/A"}},{"$f":"Datalehti!CH64","v":{"$error":"#N/A"}},{"$f":"Datalehti!CI64","v":{"$error":"#N/A"}},{"$f":"Datalehti!CJ64","v":{"$error":"#N/A"}},{"$f":"Datalehti!CK64","v":{"$error":"#N/A"}},{"$f":"Datalehti!CL64","v":{"$error":"#N/A"}},{"$f":"Datalehti!CM64","v":{"$error":"#N/A"}},{"$f":"Datalehti!CN64","v":{"$error":"#N/A"}},{"$f":"Datalehti!CO64","v":{"$error":"#N/A"}},{"$f":"Datalehti!CP64","v":{"$error":"#N/A"}},{"$f":"Datalehti!CQ64","v":{"$error":"#N/A"}},{"$f":"Datalehti!CR64","v":{"$error":"#N/A"}},{"$f":"Datalehti!CS64","v":{"$error":"#N/A"}},{"$f":"Datalehti!CT64","v":{"$error":"#N/A"}},{"$f":"Datalehti!CU64","v":{"$error":"#N/A"}},{"$f":"Datalehti!CV64","v":{"$error":"#N/A"}},{"$f":"Datalehti!CW64","v":{"$error":"#N/A"}},{"$f":"Datalehti!CX64","v":{"$error":"#N/A"}},{"$f":"Datalehti!CY64","v":{"$error":"#N/A"}},{"$f":"Datalehti!CZ64","v":{"$error":"#N/A"}},{"$f":"Datalehti!DA64","v":{"$error":"#N/A"}},{"$f":"Datalehti!DB64","v":{"$error":"#N/A"}},{"$f":"Datalehti!DC64","v":{"$error":"#N/A"}},{"$f":"Datalehti!DD64","v":{"$error":"#N/A"}},{"$f":"Datalehti!DE64","v":{"$error":"#N/A"}},{"$f":"Datalehti!DF64","v":{"$error":"#N/A"}},{"$f":"Datalehti!DG64","v":{"$error":"#N/A"}},{"$f":"Datalehti!DH64","v":{"$error":"#N/A"}},{"$f":"Datalehti!DI64","v":{"$error":"#N/A"}},{"$f":"Datalehti!DJ64","v":{"$error":"#N/A"}},{"$f":"Datalehti!DK64","v":{"$error":"#N/A"}},{"$f":"Datalehti!DL64","v":{"$error":"#N/A"}},{"$f":"Datalehti!DM64","v":{"$error":"#N/A"}},{"$f":"Datalehti!DN64","v":{"$error":"#N/A"}},{"$f":"Datalehti!DO64","v":{"$error":"#N/A"}},{"$f":"Datalehti!DP64","v":{"$error":"#N/A"}},{"$f":"Datalehti!DQ64","v":{"$error":"#N/A"}},{"$f":"Datalehti!DR64","v":{"$error":"#N/A"}},{"$f":"Datalehti!DS64","v":{"$error":"#N/A"}},{"$f":"Datalehti!DT64","v":{"$error":"#N/A"}},{"$f":"Datalehti!DU64","v":{"$error":"#N/A"}},{"$f":"Datalehti!DV64","v":{"$error":"#N/A"}},{"$f":"Datalehti!DW64","v":{"$error":"#N/A"}},{"$f":"Datalehti!DX64","v":{"$error":"#N/A"}},{"$f":"Datalehti!DY64","v":{"$error":"#N/A"}},{"$f":"Datalehti!DZ64","v":{"$error":"#N/A"}},{"$f":"Datalehti!EA64","v":{"$error":"#N/A"}},{"$f":"Datalehti!EB64","v":{"$error":"#N/A"}},{"$f":"Datalehti!EC64","v":{"$error":"#N/A"}},{"$f":"Datalehti!ED64","v":{"$error":"#N/A"}},{"$f":"Datalehti!EE64","v":{"$error":"#N/A"}}]

{"sheet":"Materiaaliluettelo","index":2,"n_rows":51,"n_cols":17,"rows_kept":51,"cut":false,"hidden":false,"merged":[[5,12,5,13],[49,1,49,2],[5,1,5,8],[4,1,4,2]]}
[]
[null,{"$f":"Ohje!B2","v":"Rakennusten hiilijalanjäljen arviointityökalu"}]
[null,{"$f":"Ohje!B3","v":"Luonnos hiilijalanjäljen arvioinnin testausta varten 9.12.2019"}]
[]
[null,"Materiaaliluettelo"]
[null,"Syötä rakennuksen materiaalitiedot alla olevaan listaan esim. Määräluetteloon perustuen. Hiilijalanjäljen ja -kädenjäljen päästöt muodostuvat automaattisesti, kun määrät on syötetty. Lisää tarvittaessa rivejä kunkin otsakkeen alle 'Lisää rivi' -napilla. Jos tarkempi päästötieto jollekin tuotteelle tai materiaalille on olemassa, voit syöttää sen painamalla 'Korvaa taulukkoarvoja tarkemmilla tiedoille' -nappia.",null,null,null,null,null,null,null,"kgCO2e","kgCO2e",null,"\nTarkennetut kertoimet\nkgCO2e/yksikkö",null,"a","kpl","kgCO2e"]
[null,"Littera","Rakennusosa","Materiaalin tyyppi","Materiaali",null,"Määrä","yks",null,"Hiilijalanjälki","Hiilikädenjälki",null,"Hiilijalanjälki","Hiilikädenjälki","Vaihtoväli","Vaihdot","Hiilijalanjälki"]
[]
[]
[null,"Tontti (1.1. Alueosat)"]
[null,null,null,null,null,null,null,{"$f":"IF(E11=\"\",\"\",VLOOKUP(E11,'Materiaalien päästötiedot'!B:K,10,FALSE))","v":""},null,{"$f":"IF($E11=\"\",\"\",$G11*IF($M11=\"\",VLOOKUP($E11,'Materiaalien päästötiedot'!$B:$K,7,FALSE),$M11))","v":""},{"$f":"IF($E11=\"\",\"\",$G11*IF($N11=\"\",VLOOKUP($E11,'Materiaalien päästötiedot'!$B:$K,8,FALSE),$N11))","v":""},null,null,null,{"$f":"IF(E11=\"\",\"\",VLOOKUP(E11,'Materiaalien päästötiedot'!B:O,11,FALSE))","v":""},{"$f":"IF(E11=\"\",\"\",VLOOKUP(E11,'Materiaalien päästötiedot'!B:O,12,FALSE))","v":""},{"$f":"IF(E11=\"\",\"\",J11*P11)","v":""}]
[null,null,null,null,null,null,null,{"$f":"IF(E12=\"\",\"\",VLOOKUP(E12,'Materiaalien päästötiedot'!B:K,10,FALSE))","v":""},null,{"$f":"IF($E12=\"\",\"\",$G12*IF($M12=\"\",VLOOKUP($E12,'Materiaalien päästötiedot'!$B:$K,7,FALSE),$M12))","v":""},{"$f":"IF($E12=\"\",\"\",$G12*IF($N12=\"\",VLOOKUP($E12,'Materiaalien päästötiedot'!$B:$K,8,FALSE),$N12))","v":""},null,null,null,{"$f":"IF(E12=\"\",\"\",VLOOKUP(E12,'Materiaalien päästötiedot'!B:O,11,FALSE))","v":""},{"$f":"IF(E12=\"\",\"\",VLOOKUP(E12,'Materiaalien päästötiedot'!B:O,12,FALSE))","v":""},{"$f":"IF(E12=\"\",\"\",J12*P12)","v":""}]
[null,null,null,null,null,null,null,{"$f":"IF(E13=\"\",\"\",VLOOKUP(E13,'Materiaalien päästötiedot'!B:K,10,FALSE))","v":""},null,{"$f":"IF($E13=\"\",\"\",$G13*IF($M13=\"\",VLOOKUP($E13,'Materiaalien päästötiedot'!$B:$K,7,FALSE),$M13))","v":""},{"$f":"IF($E13=\"\",\"\",$G13*IF($N13=\"\",VLOOKUP($E13,'Materiaalien päästötiedot'!$B:$K,8,FALSE),$N13))","v":""},null,null,null,{"$f":"IF(E13=\"\",\"\",VLOOKUP(E13,'Materiaalien päästötiedot'!B:O,11,FALSE))","v":""},{"$f":"IF(E13=\"\",\"\",VLOOKUP(E13,'Materiaalien päästötiedot'!B:O,12,FALSE))","v":""},{"$f":"IF(E13=\"\",\"\",J13*P13)","v":""}]
[null,null,null,null,null,null,null,{"$f":"IF(E14=\"\",\"\",VLOOKUP(E14,'Materiaalien päästötiedot'!B:K,10,FALSE))","v":""},null,{"$f":"IF($E14=\"\",\"\",$G14*IF($M14=\"\",VLOOKUP($E14,'Materiaalien päästötiedot'!$B:$K,7,FALSE),$M14))","v":""},{"$f":"IF($E14=\"\",\"\",$G14*IF($N14=\"\",VLOOKUP($E14,'Materiaalien päästötiedot'!$B:$K,8,FALSE),$N14))","v":""},null,null,null,{"$f":"IF(E14=\"\",\"\",VLOOKUP(E14,'Materiaalien päästötiedot'!B:O,11,FALSE))","v":""},{"$f":"IF(E14=\"\",\"\",VLOOKUP(E14,'Materiaalien päästötiedot'!B:O,12,FALSE))","v":""},{"$f":"IF(E14=\"\",\"\",J14*P14)","v":""}]
[null,null,null,null,null,null,null,{"$f":"IF(E15=\"\",\"\",VLOOKUP(E15,'Materiaalien päästötiedot'!B:K,10,FALSE))","v":""},null,{"$f":"IF($E15=\"\",\"\",$G15*IF($M15=\"\",VLOOKUP($E15,'Materiaalien päästötiedot'!$B:$K,7,FALSE),$M15))","v":""},{"$f":"IF($E15=\"\",\"\",$G15*IF($N15=\"\",VLOOKUP($E15,'Materiaalien päästötiedot'!$B:$K,8,FALSE),$N15))","v":""},null,null,null,{"$f":"IF(E15=\"\",\"\",VLOOKUP(E15,'Materiaalien päästötiedot'!B:O,11,FALSE))","v":""},{"$f":"IF(E15=\"\",\"\",VLOOKUP(E15,'Materiaalien päästötiedot'!B:O,12,FALSE))","v":""},{"$f":"IF(E15=\"\",\"\",J15*P15)","v":""}]
[null,"Total",null,null,null,null,null,null,null,{"$f":"SUBTOTAL(109,Tontti[Column8])","v":0},{"$f":"SUBTOTAL(109,Tontti[Column9])","v":0},null,null,null,null,null,{"$f":"SUBTOTAL(109,Tontti[Column14])","v":0}]
[]
[null,"Kantavat rakenteet (1.2.1-1.2.3 Talo-osat)"]
[null,null,null,null,null,null,null,{"$f":"IF(E19=\"\",\"\",VLOOKUP(E19,'Materiaalien päästötiedot'!B:K,10,FALSE))","v":""},null,{"$f":"IF($E19=\"\",\"\",$G19*IF($M19=\"\",VLOOKUP($E19,'Materiaalien päästötiedot'!$B:$K,7,FALSE),$M19))","v":""},{"$f":"IF($E19=\"\",\"\",$G19*IF($N19=\"\",VLOOKUP($E19,'Materiaalien päästötiedot'!$B:$K,8,FALSE),$N19))","v":""},null,null,null,{"$f":"IF(E19=\"\",\"\",VLOOKUP(E19,'Materiaalien päästötiedot'!B:O,11,FALSE))","v":""},{"$f":"IF(E19=\"\",\"\",VLOOKUP(E19,'Materiaalien päästötiedot'!B:O,12,FALSE))","v":""},{"$f":"IF(E19=\"\",\"\",J19*P19)","v":""}]
[null,null,null,null,null,null,null,{"$f":"IF(E20=\"\",\"\",VLOOKUP(E20,'Materiaalien päästötiedot'!B:K,10,FALSE))","v":""},null,{"$f":"IF($E20=\"\",\"\",$G20*IF($M20=\"\",VLOOKUP($E20,'Materiaalien päästötiedot'!$B:$K,7,FALSE),$M20))","v":""},{"$f":"IF($E20=\"\",\"\",$G20*IF($N20=\"\",VLOOKUP($E20,'Materiaalien päästötiedot'!$B:$K,8,FALSE),$N20))","v":""},null,null,null,{"$f":"IF(E20=\"\",\"\",VLOOKUP(E20,'Materiaalien päästötiedot'!B:O,11,FALSE))","v":""},{"$f":"IF(E20=\"\",\"\",VLOOKUP(E20,'Materiaalien päästötiedot'!B:O,12,FALSE))","v":""},{"$f":"IF(E20=\"\",\"\",J20*P20)","v":""}]
[null,null,null,null,null,null,null,{"$f":"IF(E21=\"\",\"\",VLOOKUP(E21,'Materiaalien päästötiedot'!B:K,10,FALSE))","v":""},null,{"$f":"IF($E21=\"\",\"\",$G21*IF($M21=\"\",VLOOKUP($E21,'Materiaalien päästötiedot'!$B:$K,7,FALSE),$M21))","v":""},{"$f":"IF($E21=\"\",\"\",$G21*IF($N21=\"\",VLOOKUP($E21,'Materiaalien päästötiedot'!$B:$K,8,FALSE),$N21))","v":""},null,null,null,{"$f":"IF(E21=\"\",\"\",VLOOKUP(E21,'Materiaalien päästötiedot'!B:O,11,FALSE))","v":""},{"$f":"IF(E21=\"\",\"\",VLOOKUP(E21,'Materiaalien päästötiedot'!B:O,12,FALSE))","v":""},{"$f":"IF(E21=\"\",\"\",J21*P21)","v":""}]
[null,null,null,null,null,null,null,{"$f":"IF(E22=\"\",\"\",VLOOKUP(E22,'Materiaalien päästötiedot'!B:K,10,FALSE))","v":""},null,{"$f":"IF($E22=\"\",\"\",$G22*IF($M22=\"\",VLOOKUP($E22,'Materiaalien päästötiedot'!$B:$K,7,FALSE),$M22))","v":""},{"$f":"IF($E22=\"\",\"\",$G22*IF($N22=\"\",VLOOKUP($E22,'Materiaalien päästötiedot'!$B:$K,8,FALSE),$N22))","v":""},null,null,null,{"$f":"IF(E22=\"\",\"\",VLOOKUP(E22,'Materiaalien päästötiedot'!B:O,11,FALSE))","v":""},{"$f":"IF(E22=\"\",\"\",VLOOKUP(E22,'Materiaalien päästötiedot'!B:O,12,FALSE))","v":""},{"$f":"IF(E22=\"\",\"\",J22*P22)","v":""}]
[null,null,null,null,null,null,null,{"$f":"IF(E23=\"\",\"\",VLOOKUP(E23,'Materiaalien päästötiedot'!B:K,10,FALSE))","v":""},null,{"$f":"IF($E23=\"\",\"\",$G23*IF($M23=\"\",VLOOKUP($E23,'Materiaalien päästötiedot'!$B:$K,7,FALSE),$M23))","v":""},{"$f":"IF($E23=\"\",\"\",$G23*IF($N23=\"\",VLOOKUP($E23,'Materiaalien päästötiedot'!$B:$K,8,FALSE),$N23))","v":""},null,null,null,{"$f":"IF(E23=\"\",\"\",VLOOKUP(E23,'Materiaalien päästötiedot'!B:O,11,FALSE))","v":""},{"$f":"IF(E23=\"\",\"\",VLOOKUP(E23,'Materiaalien päästötiedot'!B:O,12,FALSE))","v":""},{"$f":"IF(E23=\"\",\"\",J23*P23)","v":""}]
[null,"Total",null,null,null,null,null,null,null,{"$f":"SUBTOTAL(109,Kantavat[Column8])","v":0},{"$f":"SUBTOTAL(109,Kantavat[Column9])","v":0},null,null,null,null,null,{"$f":"SUBTOTAL(109,Kantavat[Column14])","v":0}]
[]
[null,"Vaippa (1.2.4-1.2.6 Talo-osat)"]
[null,null,null,null,null,null,null,{"$f":"IF(E27=\"\",\"\",VLOOKUP(E27,'Materiaalien päästötiedot'!B:K,10,FALSE))","v":""},null,{"$f":"IF($E27=\"\",\"\",$G27*IF($M27=\"\",VLOOKUP($E27,'Materiaalien päästötiedot'!$B:$K,7,FALSE),$M27))","v":""},{"$f":"IF($E27=\"\",\"\",$G27*IF($N27=\"\",VLOOKUP($E27,'Materiaalien päästötiedot'!$B:$K,8,FALSE),$N27))","v":""},null,null,null,{"$f":"IF(E27=\"\",\"\",VLOOKUP(E27,'Materiaalien päästötiedot'!B:O,11,FALSE))","v":""},{"$f":"IF(E27=\"\",\"\",VLOOKUP(E27,'Materiaalien päästötiedot'!B:O,12,FALSE))","v":""},{"$f":"IF(E27=\"\",\"\",J27*P27)","v":""}]
[null,null,null,null,null,null,null,{"$f":"IF(E28=\"\",\"\",VLOOKUP(E28,'Materiaalien päästötiedot'!B:K,10,FALSE))","v":""},null,{"$f":"IF($E28=\"\",\"\",$G28*IF($M28=\"\",VLOOKUP($E28,'Materiaalien päästötiedot'!$B:$K,7,FALSE),$M28))","v":""},{"$f":"IF($E28=\"\",\"\",$G28*IF($N28=\"\",VLOOKUP($E28,'Materiaalien päästötiedot'!$B:$K,8,FALSE),$N28))","v":""},null,null,null,{"$f":"IF(E28=\"\",\"\",VLOOKUP(E28,'Materiaalien päästötiedot'!B:O,11,FALSE))","v":""},{"$f":"IF(E28=\"\",\"\",VLOOKUP(E28,'Materiaalien päästötiedot'!B:O,12,FALSE))","v":""},{"$f":"IF(E28=\"\",\"\",J28*P28)","v":""}]
[null,null,null,null,null,null,null,{"$f":"IF(E29=\"\",\"\",VLOOKUP(E29,'Materiaalien päästötiedot'!B:K,10,FALSE))","v":""},null,{"$f":"IF($E29=\"\",\"\",$G29*IF($M29=\"\",VLOOKUP($E29,'Materiaalien päästötiedot'!$B:$K,7,FALSE),$M29))","v":""},{"$f":"IF($E29=\"\",\"\",$G29*IF($N29=\"\",VLOOKUP($E29,'Materiaalien päästötiedot'!$B:$K,8,FALSE),$N29))","v":""},null,null,null,{"$f":"IF(E29=\"\",\"\",VLOOKUP(E29,'Materiaalien päästötiedot'!B:O,11,FALSE))","v":""},{"$f":"IF(E29=\"\",\"\",VLOOKUP(E29,'Materiaalien päästötiedot'!B:O,12,FALSE))","v":""},{"$f":"IF(E29=\"\",\"\",J29*P29)","v":""}]
[null,null,null,null,null,null,null,{"$f":"IF(E30=\"\",\"\",VLOOKUP(E30,'Materiaalien päästötiedot'!B:K,10,FALSE))","v":""},null,{"$f":"IF($E30=\"\",\"\",$G30*IF($M30=\"\",VLOOKUP($E30,'Materiaalien päästötiedot'!$B:$K,7,FALSE),$M30))","v":""},{"$f":"IF($E30=\"\",\"\",$G30*IF($N30=\"\",VLOOKUP($E30,'Materiaalien päästötiedot'!$B:$K,8,FALSE),$N30))","v":""},null,null,null,{"$f":"IF(E30=\"\",\"\",VLOOKUP(E30,'Materiaalien päästötiedot'!B:O,11,FALSE))","v":""},{"$f":"IF(E30=\"\",\"\",VLOOKUP(E30,'Materiaalien päästötiedot'!B:O,12,FALSE))","v":""},{"$f":"IF(E30=\"\",\"\",J30*P30)","v":""}]
[null,null,null,null,null,null,null,{"$f":"IF(E31=\"\",\"\",VLOOKUP(E31,'Materiaalien päästötiedot'!B:K,10,FALSE))","v":""},null,{"$f":"IF($E31=\"\",\"\",$G31*IF($M31=\"\",VLOOKUP($E31,'Materiaalien päästötiedot'!$B:$K,7,FALSE),$M31))","v":""},{"$f":"IF($E31=\"\",\"\",$G31*IF($N31=\"\",VLOOKUP($E31,'Materiaalien päästötiedot'!$B:$K,8,FALSE),$N31))","v":""},null,null,null,{"$f":"IF(E31=\"\",\"\",VLOOKUP(E31,'Materiaalien päästötiedot'!B:O,11,FALSE))","v":""},{"$f":"IF(E31=\"\",\"\",VLOOKUP(E31,'Materiaalien päästötiedot'!B:O,12,FALSE))","v":""},{"$f":"IF(E31=\"\",\"\",J31*P31)","v":""}]
[null,"Total",null,null,null,null,null,null,null,{"$f":"SUBTOTAL(109,Vaippa[Column8])","v":0},{"$f":"SUBTOTAL(109,Vaippa[Column9])","v":0},null,null,null,null,null,{"$f":"SUBTOTAL(109,Vaippa[Column14])","v":0}]
[]
[null,"Kevyet rakenteet (1.3 Tila-osat)"]
[null,null,null,null,null,null,null,{"$f":"IF(E35=\"\",\"\",VLOOKUP(E35,'Materiaalien päästötiedot'!B:K,10,FALSE))","v":""},null,{"$f":"IF($E35=\"\",\"\",$G35*IF($M35=\"\",VLOOKUP($E35,'Materiaalien päästötiedot'!$B:$K,7,FALSE),$M35))","v":""},{"$f":"IF($E35=\"\",\"\",$G35*IF($N35=\"\",VLOOKUP($E35,'Materiaalien päästötiedot'!$B:$K,8,FALSE),$N35))","v":""},null,null,null,{"$f":"IF(E35=\"\",\"\",VLOOKUP(E35,'Materiaalien päästötiedot'!B:O,11,FALSE))","v":""},{"$f":"IF(E35=\"\",\"\",VLOOKUP(E35,'Materiaalien päästötiedot'!B:O,12,FALSE))","v":""},{"$f":"IF(E35=\"\",\"\",J35*P35)","v":""}]
[null,null,null,null,null,null,null,{"$f":"IF(E36=\"\",\"\",VLOOKUP(E36,'Materiaalien päästötiedot'!B:K,10,FALSE))","v":""},null,{"$f":"IF($E36=\"\",\"\",$G36*IF($M36=\"\",VLOOKUP($E36,'Materiaalien päästötiedot'!$B:$K,7,FALSE),$M36))","v":""},{"$f":"IF($E36=\"\",\"\",$G36*IF($N36=\"\",VLOOKUP($E36,'Materiaalien päästötiedot'!$B:$K,8,FALSE),$N36))","v":""},null,null,null,{"$f":"IF(E36=\"\",\"\",VLOOKUP(E36,'Materiaalien päästötiedot'!B:O,11,FALSE))","v":""},{"$f":"IF(E36=\"\",\"\",VLOOKUP(E36,'Materiaalien päästötiedot'!B:O,12,FALSE))","v":""},{"$f":"IF(E36=\"\",\"\",J36*P36)","v":""}]
[null,null,null,null,null,null,null,{"$f":"IF(E37=\"\",\"\",VLOOKUP(E37,'Materiaalien päästötiedot'!B:K,10,FALSE))","v":""},null,{"$f":"IF($E37=\"\",\"\",$G37*IF($M37=\"\",VLOOKUP($E37,'Materiaalien päästötiedot'!$B:$K,7,FALSE),$M37))","v":""},{"$f":"IF($E37=\"\",\"\",$G37*IF($N37=\"\",VLOOKUP($E37,'Materiaalien päästötiedot'!$B:$K,8,FALSE),$N37))","v":""},null,null,null,{"$f":"IF(E37=\"\",\"\",VLOOKUP(E37,'Materiaalien päästötiedot'!B:O,11,FALSE))","v":""},{"$f":"IF(E37=\"\",\"\",VLOOKUP(E37,'Materiaalien päästötiedot'!B:O,12,FALSE))","v":""},{"$f":"IF(E37=\"\",\"\",J37*P37)","v":""}]
[null,null,null,null,null,null,null,{"$f":"IF(E38=\"\",\"\",VLOOKUP(E38,'Materiaalien päästötiedot'!B:K,10,FALSE))","v":""},null,{"$f":"IF($E38=\"\",\"\",$G38*IF($M38=\"\",VLOOKUP($E38,'Materiaalien päästötiedot'!$B:$K,7,FALSE),$M38))","v":""},{"$f":"IF($E38=\"\",\"\",$G38*IF($N38=\"\",VLOOKUP($E38,'Materiaalien päästötiedot'!$B:$K,8,FALSE),$N38))","v":""},null,null,null,{"$f":"IF(E38=\"\",\"\",VLOOKUP(E38,'Materiaalien päästötiedot'!B:O,11,FALSE))","v":""},{"$f":"IF(E38=\"\",\"\",VLOOKUP(E38,'Materiaalien päästötiedot'!B:O,12,FALSE))","v":""},{"$f":"IF(E38=\"\",\"\",J38*P38)","v":""}]
[null,null,null,null,null,null,null,{"$f":"IF(E39=\"\",\"\",VLOOKUP(E39,'Materiaalien päästötiedot'!B:K,10,FALSE))","v":""},null,{"$f":"IF($E39=\"\",\"\",$G39*IF($M39=\"\",VLOOKUP($E39,'Materiaalien päästötiedot'!$B:$K,7,FALSE),$M39))","v":""},{"$f":"IF($E39=\"\",\"\",$G39*IF($N39=\"\",VLOOKUP($E39,'Materiaalien päästötiedot'!$B:$K,8,FALSE),$N39))","v":""},null,null,null,{"$f":"IF(E39=\"\",\"\",VLOOKUP(E39,'Materiaalien päästötiedot'!B:O,11,FALSE))","v":""},{"$f":"IF(E39=\"\",\"\",VLOOKUP(E39,'Materiaalien päästötiedot'!B:O,12,FALSE))","v":""},{"$f":"IF(E39=\"\",\"\",J39*P39)","v":""}]
[null,"Total",null,null,null,null,null,null,null,{"$f":"SUBTOTAL(109,Kevyet[Column8])","v":0},{"$f":"SUBTOTAL(109,Kevyet[Column9])","v":0},null,null,null,null,null,{"$f":"SUBTOTAL(109,Kevyet[Column14])","v":0}]
[]
[null,"Talotekniikka (2.1-2.4 Tekniikkaosat)"]
[null,null,null,null,null,null,null,{"$f":"IF(E43=\"\",\"\",VLOOKUP(E43,'Materiaalien päästötiedot'!B:K,10,FALSE))","v":""},null,{"$f":"IF($E43=\"\",\"\",$G43*IF($M43=\"\",VLOOKUP($E43,'Materiaalien päästötiedot'!$B:$K,7,FALSE),$M43))","v":""},{"$f":"IF($E43=\"\",\"\",$G43*IF($N43=\"\",VLOOKUP($E43,'Materiaalien päästötiedot'!$B:$K,8,FALSE),$N43))","v":""},null,null,null,{"$f":"IF(E43=\"\",\"\",VLOOKUP(E43,'Materiaalien päästötiedot'!B:O,11,FALSE))","v":""},{"$f":"IF(E43=\"\",\"\",VLOOKUP(E43,'Materiaalien päästötiedot'!B:O,12,FALSE))","v":""},{"$f":"IF(E43=\"\",\"\",J43*P43)","v":""}]
[null,null,null,null,null,null,null,{"$f":"IF(E44=\"\",\"\",VLOOKUP(E44,'Materiaalien päästötiedot'!B:K,10,FALSE))","v":""},null,{"$f":"IF($E44=\"\",\"\",$G44*IF($M44=\"\",VLOOKUP($E44,'Materiaalien päästötiedot'!$B:$K,7,FALSE),$M44))","v":""},{"$f":"IF($E44=\"\",\"\",$G44*IF($N44=\"\",VLOOKUP($E44,'Materiaalien päästötiedot'!$B:$K,8,FALSE),$N44))","v":""},null,null,null,{"$f":"IF(E44=\"\",\"\",VLOOKUP(E44,'Materiaalien päästötiedot'!B:O,11,FALSE))","v":""},{"$f":"IF(E44=\"\",\"\",VLOOKUP(E44,'Materiaalien päästötiedot'!B:O,12,FALSE))","v":""},{"$f":"IF(E44=\"\",\"\",J44*P44)","v":""}]
[null,null,null,null,null,null,null,{"$f":"IF(E45=\"\",\"\",VLOOKUP(E45,'Materiaalien päästötiedot'!B:K,10,FALSE))","v":""},null,{"$f":"IF($E45=\"\",\"\",$G45*IF($M45=\"\",VLOOKUP($E45,'Materiaalien päästötiedot'!$B:$K,7,FALSE),$M45))","v":""},{"$f":"IF($E45=\"\",\"\",$G45*IF($N45=\"\",VLOOKUP($E45,'Materiaalien päästötiedot'!$B:$K,8,FALSE),$N45))","v":""},null,null,null,{"$f":"IF(E45=\"\",\"\",VLOOKUP(E45,'Materiaalien päästötiedot'!B:O,11,FALSE))","v":""},{"$f":"IF(E45=\"\",\"\",VLOOKUP(E45,'Materiaalien päästötiedot'!B:O,12,FALSE))","v":""},{"$f":"IF(E45=\"\",\"\",J45*P45)","v":""}]
[null,null,null,null,null,null,null,{"$f":"IF(E46=\"\",\"\",VLOOKUP(E46,'Materiaalien päästötiedot'!B:K,10,FALSE))","v":""},null,{"$f":"IF($E46=\"\",\"\",$G46*IF($M46=\"\",VLOOKUP($E46,'Materiaalien päästötiedot'!$B:$K,7,FALSE),$M46))","v":""},{"$f":"IF($E46=\"\",\"\",$G46*IF($N46=\"\",VLOOKUP($E46,'Materiaalien päästötiedot'!$B:$K,8,FALSE),$N46))","v":""},null,null,null,{"$f":"IF(E46=\"\",\"\",VLOOKUP(E46,'Materiaalien päästötiedot'!B:O,11,FALSE))","v":""},{"$f":"IF(E46=\"\",\"\",VLOOKUP(E46,'Materiaalien päästötiedot'!B:O,12,FALSE))","v":""},{"$f":"IF(E46=\"\",\"\",J46*P46)","v":""}]
[null,null,null,null,null,null,null,{"$f":"IF(E47=\"\",\"\",VLOOKUP(E47,'Materiaalien päästötiedot'!B:K,10,FALSE))","v":""},null,{"$f":"IF($E47=\"\",\"\",$G47*IF($M47=\"\",VLOOKUP($E47,'Materiaalien päästötiedot'!$B:$K,7,FALSE),$M47))","v":""},{"$f":"IF($E47=\"\",\"\",$G47*IF($N47=\"\",VLOOKUP($E47,'Materiaalien päästötiedot'!$B:$K,8,FALSE),$N47))","v":""},null,null,null,{"$f":"IF(E47=\"\",\"\",VLOOKUP(E47,'Materiaalien päästötiedot'!B:O,11,FALSE))","v":""},{"$f":"IF(E47=\"\",\"\",VLOOKUP(E47,'Materiaalien päästötiedot'!B:O,12,FALSE))","v":""},{"$f":"IF(E47=\"\",\"\",J47*P47)","v":""}]
[null,"Total",null,null,null,null,null,null,null,{"$f":"SUBTOTAL(109,TATE[Column8])","v":0},{"$f":"SUBTOTAL(109,TATE[Column9])","v":0},null,null,null,null,null,{"$f":"SUBTOTAL(109,TATE[Column14])","v":0}]
[]
[null,"Kaikki materiaalit yhteensä",null,null,null,null,null,null,null,{"$f":"TATE[[#Totals],[Column8]]+Kevyet[[#Totals],[Column8]]+Vaippa[[#Totals],[Column8]]+Kantavat[[#Totals],[Column8]]+Tontti[[#Totals],[Column8]]","v":0},{"$f":"TATE[[#Totals],[Column9]]+Kevyet[[#Totals],[Column9]]+Vaippa[[#Totals],[Column9]]+Kantavat[[#Totals],[Column9]]+Tontti[[#Totals],[Column9]]","v":0},{"$f":"TATE[[#Totals],[Tontti (1.1. Alueosat)]]+Kevyet[[#Totals],[Tontti (1.1. Alueosat)]]+Vaippa[[#Totals],[Tontti (1.1. Alueosat)]]+Kantavat[[#Totals],[Tontti (1.1. Alueosat)]]+Tontti[[#Totals],[Tontti (1.1. Alueosat)]]","v":{"$error":"#VALUE!"}},null,null,null,null,{"$f":"TATE[[#Totals],[Column14]]+Kevyet[[#Totals],[Column14]]+Vaippa[[#Totals],[Column14]]+Kantavat[[#Totals],[Column14]]+Tontti[[#Totals],[Column14]]","v":0}]
[null,null,null,null,null,null,null,null,null,"Hiilijalanjälki","Hiilikädenjälki",null,null,null,null,null,"Vaihtojen hiilijalanjälki"]

{"sheet":"Valmistus, kuljetus, työmaa (A)","index":3,"n_rows":27,"n_cols":4,"rows_kept":27,"cut":false,"hidden":false,"merged":[[15,1,15,3],[22,1,22,3],[26,1,26,3],[19,1,19,3]]}
[]
[null,{"$f":"Ohje!B2","v":"Rakennusten hiilijalanjäljen arviointityökalu"}]
[null,{"$f":"Ohje!B3","v":"Luonnos hiilijalanjäljen arvioinnin testausta varten 9.12.2019"}]
[null,"Valmistus, kuljetus ja työmaa -vaiheiden päästöjen arviointi (A)"]
[]
[null,null,"Hiilijalanjälki","Hiilikädenjälki"]
[null,null,"kg CO2e/m2netto/a","kg CO2e/m2netto/a"]
[null,"Ennen käyttöä syntyvät päästöt yhteensä",{"$f":"C10+C22","v":0.54600000000000004},{"$f":"D10+D22","v":0}]
[]
[null,"Valmistus ja kuljetusvaihe (A1-4)",{"$f":"IFERROR(IF(C18=\"\",SUM(C11:C15),C18),\"-\")","v":0},{"$f":"IFERROR(IF(D18=\"\",SUM(D11:D15),D18),\"-\")","v":0}]
[null,"Tontti",{"$f":"IFERROR(Tontti[[#Totals],[Column8]]/Yhteenveto!$D$13/Yhteenveto!$D$18,\"-\")","v":"-"},{"$f":"IFERROR(Tontti[[#Totals],[Column9]]/Yhteenveto!$D$13/Yhteenveto!$D$18,\"-\")","v":"-"}]
[null,"Kantavat rakenteet",{"$f":"IFERROR(Kantavat[[#Totals],[Column8]]/Yhteenveto!$D$13/Yhteenveto!$D$18,\"-\")","v":"-"},{"$f":"IFERROR(Kantavat[[#Totals],[Column9]]/Yhteenveto!$D$13/Yhteenveto!$D$18,\"-\")","v":"-"}]
[null,"Vaippa",{"$f":"IFERROR(Vaippa[[#Totals],[Column8]]/Yhteenveto!$D$13/Yhteenveto!$D$18,\"-\")","v":"-"},{"$f":"IFERROR(Vaippa[[#Totals],[Column9]]/Yhteenveto!$D$13/Yhteenveto!$D$18,\"-\")","v":"-"}]
[null,"Kevyet rakenteet",{"$f":"IFERROR(Kevyet[[#Totals],[Column8]]/Yhteenveto!$D$13/Yhteenveto!$D$18,\"-\")","v":"-"},{"$f":"IFERROR(Kevyet[[#Totals],[Column9]]/Yhteenveto!$D$13/Yhteenveto!$D$18,\"-\")","v":"-"}]
[null,"Talotekniikka",{"$f":"IFERROR(TATE[[#Totals],[Column8]]/Yhteenveto!$D$13/Yhteenveto!$D$18,\"-\")","v":"-"},{"$f":"IFERROR(TATE[[#Totals],[Column9]]/Yhteenveto!$D$13/Yhteenveto!$D$18,\"-\")","v":"-"}]
[null,"Valmistusvaiheen päästöjen tulokset muodostuvat automaattisesti välilehdellä 'Materiaaliluettelo' annettujen arvojen perusteella."]
[]
[null,"Valmistus ja kuljetusvaihe (A1-4) tarkennettu laskenta"]
[]
[null,"Selitä tähän kenttään miten ja mistä tarkemmat arvot on saatu. Esitä tarvittaessa erilliset laskelmat liitteenä. Tarkempia laskelmia käytettäessä älä syötä mitään lukuja ylempään taulukkoon tai Materiaalit - välilehdelle."]
[]
[null,"Työmaatoiminnot (A5)",{"$f":"IF(C25=\"\",Datalehti!C36/Yhteenveto!D18,C25)","v":0.54600000000000004},{"$f":"IF(D25=\"\",Datalehti!D36/Yhteenveto!D18,D25)","v":0}]
[null,"Työmaatoimintojen arvot perustuvat neliömetrikohtaiseen taulukkoarvoon."]
[]
[null,"Työmaatoiminnot (A5) tarkennettu laskenta"]
[]
[null,"Selitä tähän kenttään miten ja mistä tarkemmat arvot on saatu. Esitä tarvittaessa erilliset laskelmat liitteenä."]

{"sheet":"Käyttö (B)","index":4,"n_rows":33,"n_cols":5,"rows_kept":33,"cut":false,"hidden":false,"merged":[[25,1,25,2],[28,1,28,4],[32,1,32,4],[23,1,23,4],[4,1,4,2],[20,1,20,4],[19,1,19,4]]}
[]
[null,{"$f":"Ohje!B2","v":"Rakennusten hiilijalanjäljen arviointityökalu"}]
[null,{"$f":"Ohje!B3","v":"Luonnos hiilijalanjäljen arvioinnin testausta varten 9.12.2019"}]
[]
[null,"Käyttövaiheen päästöjen arviointi (B)"]
[]
[null,null,null,"Hiilijalanjälki","Hiilikädenjälki"]
[null,null,null,"kg CO2e/m2netto/a","kg CO2e/m2netto/a"]
[null,"Käytön aikana syntyvät päästöt yhteensä",null,{"$f":"IFERROR(D11+D26,\"-\")","v":4.3200000000000002E-2},{"$f":"E11","v":0}]
[]
[null,"Energiankäyttö (B6)","Energiankulutus (kWh/m2netto/a)",{"$f":"IF(D22=\"\",SUM(D12:D15),D22)","v":0},{"$f":"IF(E22=\"\",SUM(E12:E15),E22)","v":0}]
[null,"Sähkö",null,{"$f":"IFERROR(C12*Datalehti!T14,\"-\")","v":0},"-"]
[null,"Kaukolämpö",null,{"$f":"IFERROR(C13*Datalehti!T15,\"-\")","v":0},"-"]
[null,"Fossiiliset polttoaineet",null,{"$f":"IFERROR(C14*Datalehti!T16,\"-\")","v":0},"-"]
[null,"Uusiutuvat polttoaineet",null,{"$f":"IFERROR(C15*Datalehti!T17,\"-\")","v":0},{"$f":"IFERROR(-Datalehti!D46,\"-\")","v":0}]
[]
[null,"Ylijäämäenergia","Energian tuotanto (kWh/m2netto/a)"]
[null,"Sähkö",null,"Verkkoon syötetty uusiutuvilla polttoaineilla tuotettu sähkö"]
[null,"Lämpö",null,"Verkkoon syötetty uusiutuvilla polttoaineilla tuotettu lämpö"]
[null,"Syötä yllä olevaan listaan rakennuksen laskennallinen vuotuinen ostoenergian kulutus energiaselvityksen tai vastaavan laskelman pohjalta. Enerigiankäytön päästöt muodostuvat automaattisesti eri energiamuotojen päästötietojen perusteella, kun kulutus on syötetty. Energiamuotojen päästökertoimia ei voi muuttaa. \nVerkkoon syötetty, tontilla tuotettu, uusiutuva energia huomioidaan kiinteistön hiilikädenjäljessä. Syötä vuotuinen ylijäämäenergia erikseen yllä oleviin kenttiin."]
[]
[null,"Energiankäyttö (B6) tarkennettu laskenta"]
[]
[null,"Selitä tähän kenttään miten ja mistä tarkemmat arvot on saatu. Esitä tarvittaessa erilliset laskelmat liitteenä. Tarkempia laskelmia käytettäessä älä syötä mitään lukuja ylempään taulukkoon."]
[]
[null,"Korjaukset ja osien vaihdot (B3-4)",null,{"$f":"IF(D31=\"\",SUM(D27:D28),D31)","v":4.3200000000000002E-2},"-"]
[null,"Osien vaihdot",null,{"$f":"IFERROR(Materiaaliluettelo!Q50/Yhteenveto!$D$13/Yhteenveto!$D$18,\"-\")","v":"-"},"-"]
[null,"Korjausten energiankulutus",null,{"$f":"Datalehti!C37/Yhteenveto!D18","v":4.3200000000000002E-2},"-"]
[null,"Osien vaihtojen päästövaikutukset muodostuvat automaattisesti välilehdellä 'Materiaaliluettelo' annettujen arvojen perusteella. \nKorjausten energiankulutuksen päästöt perustuvat taulukkoarvoihin."]
[]
[null,"Oosien vaihtojen (B4) tarkennettu laskenta"]
[]
[null,"Selitä tähän kenttään miten ja mistä tarkemmat arvot on saatu. Esitä tarvittaessa erilliset laskelmat liitteenä."]

{"sheet":"Elinkaaren loppu (C+D)","index":5,"n_rows":33,"n_cols":5,"rows_kept":33,"cut":false,"hidden":false,"merged":[[10,1,10,2],[16,1,16,2],[14,1,14,4],[17,1,17,4],[11,1,11,4],[20,1,20,4],[26,1,26,4],[32,1,32,4],[23,1,23,4],[28,1,28,2],[29,1,29,4]]}
[]
[null,{"$f":"Ohje!B2","v":"Rakennusten hiilijalanjäljen arviointityökalu"}]
[null,{"$f":"Ohje!B3","v":"Luonnos hiilijalanjäljen arvioinnin testausta varten 9.12.2019"}]
[]
[null,"Elinkaaren lopun päästötiedot"]
[]
[null,null,null,"Hiilijalanjälki","Hiilikädenjälki"]
[null,null,null,"kg CO2e/m2netto/a","kg CO2e/m2netto/a"]
[null,"Elinkaaren lopussa syntyvät päästöt yhteensä",null,{"$f":"D23+D17+D11+D29","v":0.67200000000000004},{"$f":"E23+E17+E11+E29","v":0}]
[]
[null,"Purkaminen (C1)",null,{"$f":"IF(D13=\"\",Datalehti!C38/Yhteenveto!$D18,D13)","v":0.156},{"$f":"IF(E13=\"\",Datalehti!D38/Yhteenveto!$D18,E13)","v":0}]
[null,"Päästötiedot pohjautuvat taulukkoarvoihin."]
[null,"Purkaminen (C1) tarkennettu laskenta"]
[]
[null,"Selitä tähän kenttään miten ja mistä tarkemmat arvot on saatu. Esitä tarvittaessa erilliset laskelmat liitteenä."]
[]
[null,"Kuljetukset (C2)",null,{"$f":"IF(D19=\"\",Datalehti!C39/Yhteenveto!$D18,D19)","v":0.20399999999999999},{"$f":"IF(E19=\"\",Datalehti!D39/Yhteenveto!$D18,E19)","v":0}]
[null,"Päästötiedot pohjautuvat taulukkoarvoihin."]
[null,"Kuljetukset (C2) tarkennettu laskenta"]
[]
[null,"Selitä tähän kenttään miten ja mistä tarkemmat arvot on saatu. Esitä tarvittaessa erilliset laskelmat liitteenä."]
[]
[null,"Purkujätteen loppukäsittely ja sijoitus (C3-4)",null,{"$f":"IF(D25=\"\",Datalehti!C40/Yhteenveto!$D18,D25)","v":0.312},{"$f":"IF(E25=\"\",Datalehti!D40/Yhteenveto!$D18,E25)","v":0}]
[null,"Päästötiedot pohjautuvat taulukkoarvoihin."]
[null,"Purkujätteen loppukäsittely ja sijoitus (C3-4) tarkennettu laskenta"]
[]
[null,"Selitä tähän kenttään miten ja mistä tarkemmat arvot on saatu. Esitä tarvittaessa erilliset laskelmat liitteenä."]
[]
[null,"Elinkaaren ulkopuolella syntyvät hyödyt (D)",null,{"$f":"D31","v":0},{"$f":"E31","v":0}]
[null,"Jos uudelleenkäytön tai kierrätyksen avulla vältetyt nettopäästöt on laskettu, syötä tarkemmat tiedot oheisen painikkeen avulla. Muussa tapauksessa elinkaaren ulkopuolisia vaikutuksia ei huomioida."]
[null,"Elinkaaren ulkopuolella syntyvät hyödyt (D) tarkennettu laskenta"]
[]
[null,"Selitä tähän kenttään miten ja mistä tarkemmat arvot on saatu. Esitä tarvittaessa erilliset laskelmat liitteenä."]

{"sheet":"Tietojen Laatu","index":6,"n_rows":31,"n_cols":8,"rows_kept":31,"cut":false,"hidden":false,"merged":[[31,1,31,7],[4,1,4,2],[23,5,23,6],[24,5,24,6],[25,5,25,6],[26,5,26,6],[7,1,7,7],[27,5,27,6],[23,3,23,4],[24,3,24,4],[25,3,25,4],[26,3,26,4],[27,3,27,4]]}
[]
[null,{"$f":"Ohje!B2","v":"Rakennusten hiilijalanjäljen arviointityökalu"}]
[null,{"$f":"Ohje!B3","v":"Luonnos hiilijalanjäljen arvioinnin testausta varten 9.12.2019"}]
[]
[null,"Tietojen Laatu"]
[]
[null,"Tietojen laatu"]
[null,"Arvioinnissa käytettävien tietojen laatu tulee arvioida, jos arviointi tehdään käyttäen ns. tarkennettua menetelmää. Yksinkertaistettua menetelmää käytettäessä tätä välilehteä ei tarvitse täyttää. \nAlla ehdotettu lähtötietojen arviointitapa perustuu Euroopan komission Level(s)-menetelmään."]
[null,"Elinkaaren vaiheet","Teknologinen edustavuus","Maan-tieteellinen edustavuus","Ajallinen edustavuus","Epävarmuus","Yhteensä","Vähimmäisvaatimukset"]
[]
[null,"A1–3 Tuotteiden valmistus",null,null,null,null,{"$f":"(SUM(C11:F11))","v":0},"Tiedot vähintään tasoa 2"]
[null,"A4 Kuljetus työmaalle",null,null,null,null,{"$f":"IFERROR(SUM(C12:F12),\"\")","v":0},"Maantieteellinen edustavuus oltava tasoa 3"]
[null,"A5 Työmaan toiminnot",null,null,null,null,0,"Maantieteellinen edustavuus vähintään tasoa 2"]
[null,"B3–4 Korjaukset ja vaihdot",null,null,null,null,0,"Maantieteellinen edustavuus vähintään tasoa 2"]
[null,"B6 Energian kulutus",null,null,null,null,0,"Tiedot vähintään tasoa 2"]
[null,"C1 Purkutyöt",null,null,null,null,0,"Ei vähimmäisvaatimuksia"]
[null,"C2 Kuljetus jatkokäsittelyyn",null,null,null,null,0,"Ei vähimmäisvaatimuksia"]
[null,"C3 Jätteenkäsittely",null,null,null,null,0,"Ei vähimmäisvaatimuksia"]
[null,"C4 Loppusijoitus",null,null,null,null,0,"Ei vähimmäisvaatimuksia"]
[null,"D Elinkaaren ulkopuoliset",null,null,null,null,0,"Ei vähimmäisvaatimuksia"]
[null,"Yhteensä",{"$f":"SUM(C11:C20)","v":0},{"$f":"SUM(D11:D20)","v":0},0,0]
[]
[null,"Tietojen laadun arvioinnissa käytettävä pisteytys"]
[null,null,0,1,null,2,null,3]
[null,"Teknologinen edustavuus ","Ei arvioitu","Tieto ei vastaa tyydyttävästi tuotteen teknisiä ominaisuuksia",null,"Tieto vastaa osittain tuotteen teknisiä ominaisuuksia ",null,"Käytetty tieto vastaa hyvin tuotteen teknisiä ominaisuuksia"]
[null,"Maantieteellinen edustavuus","Ei arvioitu","Tieto viittaa täysin erilaiseen maantieteelliseen kontekstiin (esim. Italia Suomen sijaan)",null,"Tieto viittaa samankaltaiseen maantieteelliseen kontekstiin (esim. Norja Suomen sijaan)",null,"Käytetty tieto viittaa tiettyyn maantieteelliseen kontekstiin"]
[null,"Ajallinen edustavuus","Ei arvioitu","Tiedon validoinnin ja sen hyödyntämisen välillä on yli 6 vuotta ",null,"Tiedon validoinnin ja sen hyödyntämisen välillä on 2-4 vuotta",null,"Tiedon validoinnin ja sen hyödyntämisen välillä on alle 2 vuotta"]
[null,"Epävarmuus","Ei arvioitu","Käytetään mallinnettua tai vastaavaa tietoa. Paikkansapitävyys ja täsmällisyys on arvioitu laadullisesti (esim. toimittajan ja prosessin operaattorin asiantuntija-arvio)",null,"Käytetään mallinnettua tai vastaavaa tietoa, joka on arvioitu tyydyttävän paikkansapitäväksi ja täsmälliseksi, ja sitä tukee määrällinen epävarmuusarvio",null,"Käytetään hankekohtaista ja validoitua tietoa, jota voidaan pitää tyydyttävän paikkansapitävänä ja täsmällisenä (esim. tehty vahvistettu EPD)"]
[]
[null,"Selvitys käytetyistä lähteistä"]
[null,"Kirjaa alla olevaan tilaan mistä lähteistä arvioinnissa käytetyt tiedot ja oletukset ovat peräisin."]

{"sheet":"Materiaalien päästötiedot","index":7,"n_rows":226,"n_cols":15,"rows_kept":226,"cut":false,"hidden":false,"merged":[[5,1,5,11]]}
[]
[null,{"$f":"Ohje!B2","v":"Rakennusten hiilijalanjäljen arviointityökalu"}]
[null,{"$f":"Ohje!B3","v":"Luonnos hiilijalanjäljen arvioinnin testausta varten 9.12.2019"}]
[]
[null,"Materiaalien päästötiedot"]
[null,"© VTT 2018. Testausvaiheen geneerinen päästötaulukko perustuu VTT:n eri lähteistä kokoamiin ja arvioimiin tuloksiin. Arvot on koottu siten, että ne kattavat elinkaaren vaiheet A1 - A5 (vaiheessa A5 vain arvioidun hukan osalta). Taulukkoa on viime vaiheessa päivitetty muutamilla hyvin karkeasti arvioiduilla tarkistamattomilla arvoilla. VTT:llä on yksinomainen omistus- ja tekijänoikeus kokonaistaulukkoon. Taulukkoa saa käyttää testaamiseen eikä sitä saa muuttaa, käyttää eikä luovuttaa käytettäväksi muuhun tarkoitukseen ilman VTT:n nimenomaista suostumusta. \nTaulukko on tarkoitettu vain menetelmän testausvaiheeseen eikä VTT ota vastuuta siihen sisältyvien tietojen oikeellisuudesta.",null,null,null,null,null,null,null,null,null,null,null,"Vaihdot"]
[null,"Materiaalit","CO2e","Hiilisisältö","CO2e","CO2e","CO2e","Hiilijalanjälki","Hiilikädenjälki","Yksikkö","yksikkö materiaalin määrälle","Vaihtoväli (a)","Asennuskerran elinkaaren aikana (mukaanlukien ensimmäinen)","Hiilijalanjälki","Hiilikädenjälki"]
[null,null,"kg/kg","kg CO2/kg","kg/m2","kg/kpl","kg/kerros-m2"]
[]
[null,"PAIKALLAVALUBETONI JA RAUDOITTEET"]
[null,"Betoniteräs",0.47399999999999998,null,null,null,null,{"$f":"IF(E11=\"\",IF(C11=\"\",\"\",C11),E11)","v":0.47399999999999998},{"$f":"IF(H11=\"\",\"\",D11*-1)","v":0},{"$f":"IF(H11=\"\",\"\",(IF(E11=\"\",\"kgCO2e/kg\",\"kgCO2e/m2\")))","v":"kgCO2e/kg"},{"$f":"IF(H11=\"\",\"\",(IF(E11=\"\",\"kg\",\"m2\")))","v":"kg"},"Ei vaihdeta",{"$f":"IFERROR(QUOTIENT(Yhteenveto!$D$18-1,L11),0)","v":0},{"$f":"M11*H11","v":0},{"$f":"M11*I11","v":0}]
[null,"Valmisbetoni C35 (portland)",0.1458347961,null,null,null,null,{"$f":"IF(E12=\"\",IF(C12=\"\",\"\",C12),E12)","v":0.1458347961},{"$f":"IF(H12=\"\",\"\",D12*-1)","v":0},{"$f":"IF(H12=\"\",\"\",(IF(E12=\"\",\"kgCO2e/kg\",\"kgCO2e/m2\")))","v":"kgCO2e/kg"},{"$f":"IF(H12=\"\",\"\",(IF(E12=\"\",\"kg\",\"m2\")))","v":"kg"},"Ei vaihdeta",{"$f":"IFERROR(QUOTIENT(Yhteenveto!$D$18-1,L12),0)","v":0},{"$f":"M12*H12","v":0},{"$f":"M12*I12","v":0}]
[null,"Valmisbetoni C35 (seossementti)",0.127,null,null,null,null,{"$f":"IF(E13=\"\",IF(C13=\"\",\"\",C13),E13)","v":0.127},{"$f":"IF(H13=\"\",\"\",D13*-1)","v":0},{"$f":"IF(H13=\"\",\"\",(IF(E13=\"\",\"kgCO2e/kg\",\"kgCO2e/m2\")))","v":"kgCO2e/kg"},{"$f":"IF(H13=\"\",\"\",(IF(E13=\"\",\"kg\",\"m2\")))","v":"kg"},"Ei vaihdeta",{"$f":"IFERROR(QUOTIENT(Yhteenveto!$D$18-1,L13),0)","v":0},0,0]
[null,"Valmisbetoni C50 (portland)",0.17499999999999999,null,null,null,null,{"$f":"IF(E14=\"\",IF(C14=\"\",\"\",C14),E14)","v":0.17499999999999999},{"$f":"IF(H14=\"\",\"\",D14*-1)","v":0},{"$f":"IF(H14=\"\",\"\",(IF(E14=\"\",\"kgCO2e/kg\",\"kgCO2e/m2\")))","v":"kgCO2e/kg"},{"$f":"IF(H14=\"\",\"\",(IF(E14=\"\",\"kg\",\"m2\")))","v":"kg"},"Ei vaihdeta",{"$f":"IFERROR(QUOTIENT(Yhteenveto!$D$18-1,L14),0)","v":0},0,0]
[null,"Valmisbetoni C80 (Portland)",0.20953199609999998,null,null,null,null,{"$f":"IF(E15=\"\",IF(C15=\"\",\"\",C15),E15)","v":0.20953199609999998},{"$f":"IF(H15=\"\",\"\",D15*-1)","v":0},{"$f":"IF(H15=\"\",\"\",(IF(E15=\"\",\"kgCO2e/kg\",\"kgCO2e/m2\")))","v":"kgCO2e/kg"},{"$f":"IF(H15=\"\",\"\",(IF(E15=\"\",\"kg\",\"m2\")))","v":"kg"},"Ei vaihdeta",{"$f":"IFERROR(QUOTIENT(Yhteenveto!$D$18-1,L15),0)","v":0},0,0]
[null,null,null,null,null,null,null,{"$f":"IF(E16=\"\",IF(C16=\"\",\"\",C16),E16)","v":""},{"$f":"IF(H16=\"\",\"\",D16*-1)","v":""},{"$f":"IF(H16=\"\",\"\",(IF(E16=\"\",\"kgCO2e/kg\",\"kgCO2e/m2\")))","v":""},{"$f":"IF(H16=\"\",\"\",(IF(E16=\"\",\"kg\",\"m2\")))","v":""},null,{"$f":"IFERROR(QUOTIENT(Yhteenveto!$D$18-1,L16),0)","v":0},{"$error":"#VALUE!"},{"$error":"#VALUE!"}]
[null,"PIHA JA POHJARAKENTEET",null,null,null,null,null,{"$f":"IF(E17=\"\",IF(C17=\"\",\"\",C17),E17)","v":""},{"$f":"IF(H17=\"\",\"\",D17*-1)","v":""},{"$f":"IF(H17=\"\",\"\",(IF(E17=\"\",\"CO2e/kg\",\"CO2e/m2\")))","v":""},{"$f":"IF(H17=\"\",\"\",(IF(E17=\"\",\"kg\",\"m2\")))","v":""},null,{"$f":"IFERROR(QUOTIENT(Yhteenveto!$D$18-1,L17),0)","v":0},{"$error":"#VALUE!"},{"$error":"#VALUE!"}]
[null,"Betoniantura ja -perustus (sis.raudoitteet)",0.16,null,null,null,null,{"$f":"IF(E18=\"\",IF(C18=\"\",\"\",C18),E18)","v":0.16},{"$f":"IF(H18=\"\",\"\",D18*-1)","v":0},{"$f":"IF(H18=\"\",\"\",(IF(E18=\"\",\"kgCO2e/kg\",\"kgCO2e/m2\")))","v":"kgCO2e/kg"},{"$f":"IF(H18=\"\",\"\",(IF(E18=\"\",\"kg\",\"m2\")))","v":"kg"},"Ei vaihdeta",{"$f":"IFERROR(QUOTIENT(Yhteenveto!$D$18-1,L18),0)","v":0},0,0]
[null,"EPDM-matto (synteettinen kumi)",2.694,null,null,null,null,2.694,0,"kgCO2e/kg","kg",30,{"$f":"IFERROR(QUOTIENT(Yhteenveto!$D$18-1,L19),0)","v":1},2.694,0]
[null,"Kevytsora",0.45931159999999999,null,null,null,null,0.45931159999999999,0,"kgCO2e/kg",{"$f":"IF(H20=\"\",\"\",(IF(E20=\"\",\"kg\",\"m2\")))","v":"kg"},"Ei vaihdeta",{"$f":"IFERROR(QUOTIENT(Yhteenveto!$D$18-1,L20),0)","v":0},0,0]
[null,"Kevytsoraharkko+laasti",0.29815607299270069,null,null,null,null,0.29815607299270069,0,"kgCO2e/kg","kg","Ei vaihdeta",{"$f":"IFERROR(QUOTIENT(Yhteenveto!$D$18-1,L21),0)","v":0},0,0]
[null,"Kuitukangas",2.2719489099999999,null,null,null,null,2.2719489099999999,0,"kgCO2e/kg","kg","Ei vaihdeta",{"$f":"IFERROR(QUOTIENT(Yhteenveto!$D$18-1,L22),0)","v":0},0,0]
[null,"Murske, 2/32",5.872252980000001E-3,null,null,null,null,5.872252980000001E-3,0,"kgCO2e/kg","kg","Ei vaihdeta",{"$f":"IFERROR(QUOTIENT(Yhteenveto!$D$18-1,L23),0)","v":0},0,0]
[null,"Murske, hieno ja karkea",1.1520803000000001E-2,null,null,null,null,1.1520803000000001E-2,0,"kgCO2e/kg","kg","Ei vaihdeta",{"$f":"IFERROR(QUOTIENT(Yhteenveto!$D$18-1,L24),0)","v":0},0,0]
[null,"Noppakiveys",1.2692307692307692,null,null,null,null,1.2692307692307692,0,"kgCO2e/kg","kg","Ei vaihdeta",{"$f":"IFERROR(QUOTIENT(Yhteenveto!$D$18-1,L25),0)","v":0},0,0]
[null,"Paalut, betoni, 250x250",0.15770727252459016,null,null,null,null,0.15770727252459016,0,"kgCO2e/kg","kg","Ei vaihdeta",{"$f":"IFERROR(QUOTIENT(Yhteenveto!$D$18-1,L26),0)","v":0},0,0]
[null,"Paalut, betoni, 300x300",0.14527066117969825,null,null,null,null,0.14527066117969825,0,"kgCO2e/kg","kg","Ei vaihdeta",{"$f":"IFERROR(QUOTIENT(Yhteenveto!$D$18-1,L27),0)","v":0},0,0]
[null,"Paalut, teräsputki",2.84,null,null,null,null,2.84,0,"kgCO2e/kg","kg","Ei vaihdeta",{"$f":"IFERROR(QUOTIENT(Yhteenveto!$D$18-1,L28),0)","v":0},0,0]
[null,"Pihalaatoitus, betoni",0.13718039999999998,null,null,null,null,0.13718039999999998,0,"kgCO2e/kg","kg",50,{"$f":"IFERROR(QUOTIENT(Yhteenveto!$D$18-1,L29),0)","v":0},0,0]
[null,"Pilari, teräs",2.84,null,null,null,null,2.84,0,"kgCO2e/kg","kg","Ei vaihdeta",{"$f":"IFERROR(QUOTIENT(Yhteenveto!$D$18-1,L30),0)","v":0},0,0]
[null,"Routaeriste, EPS",3.3380000000000001,null,null,null,null,3.3380000000000001,0,"kgCO2e/kg","kg",50,{"$f":"IFERROR(QUOTIENT(Yhteenveto!$D$18-1,L31),0)","v":0},0,0]
[null,"Sora ja hiekka",4.8363048139999998E-3,null,null,null,null,4.8363048139999998E-3,0,"kgCO2e/kg","kg","Ei vaihdeta",{"$f":"IFERROR(QUOTIENT(Yhteenveto!$D$18-1,L32),0)","v":0},0,0]
[null,"Stabilointi, 30/70",0.77900000000000003,null,null,null,null,0.77900000000000003,0,"kgCO2e/kg","kg","Ei vaihdeta",{"$f":"IFERROR(QUOTIENT(Yhteenveto!$D$18-1,L33),0)","v":0},0,0]
[null,null,null,null,null,null,null,{"$f":"IF(E34=\"\",IF(C34=\"\",\"\",C34),E34)","v":""},{"$f":"IF(H34=\"\",\"\",D34*-1)","v":""},{"$f":"IF(H34=\"\",\"\",(IF(E34=\"\",\"CO2e/kg\",\"CO2e/m2\")))","v":""},{"$f":"IF(H34=\"\",\"\",(IF(E34=\"\",\"kg\",\"m2\")))","v":""},null,{"$f":"IFERROR(QUOTIENT(Yhteenveto!$D$18-1,L34),0)","v":0},{"$error":"#VALUE!"},{"$error":"#VALUE!"}]
[null,"PILARIT JA PALKIT",null,null,null,null,null,{"$f":"IF(E35=\"\",IF(C35=\"\",\"\",C35),E35)","v":""},{"$f":"IF(H35=\"\",\"\",D35*-1)","v":""},{"$f":"IF(H35=\"\",\"\",(IF(E35=\"\",\"CO2e/kg\",\"CO2e/m2\")))","v":""},{"$f":"IF(H35=\"\",\"\",(IF(E35=\"\",\"kg\",\"m2\")))","v":""},null,{"$f":"IFERROR(QUOTIENT(Yhteenveto!$D$18-1,L35),0)","v":0},{"$error":"#VALUE!"},{"$error":"#VALUE!"}]
[null,"Palkki, betoni+teräkset",0.195906,null,null,null,null,0.195906,0,{"$f":"IF(H36=\"\",\"\",(IF(E36=\"\",\"kgCO2e/kg\",\"kgCO2e/m2\")))","v":"kgCO2e/kg"},"kg","Ei vaihdeta",{"$f":"IFERROR(QUOTIENT(Yhteenveto!$D$18-1,L36),0)","v":0},0,0]
[null,"Palkki, jännepalkki",0.26546399999999998,null,null,null,null,0.26546399999999998,0,"kgCO2e/kg","kg","Ei vaihdeta",{"$f":"IFERROR(QUOTIENT(Yhteenveto!$D$18-1,L37),0)","v":0},0,0]
[null,"Palkki tai pilari, kertopuu",0.28348235294117646,null,null,null,null,0.28348235294117646,0,"kgCO2e/kg","kg","Ei vaihdeta",{"$f":"IFERROR(QUOTIENT(Yhteenveto!$D$18-1,L38),0)","v":0},0,0]
[null,"Palkki tai pilari, liimapuu",0.35635950000000005,1.62,null,null,null,0.35635950000000005,-1.62,"kgCO2e/kg","kg","Ei vaihdeta",{"$f":"IFERROR(QUOTIENT(Yhteenveto!$D$18-1,L39),0)","v":0},0,0]
[null,"Palkki tai pilari, puu",9.1999999999999998E-2,1.55,null,null,null,9.1999999999999998E-2,-1.55,"kgCO2e/kg","kg","Ei vaihdeta",{"$f":"IFERROR(QUOTIENT(Yhteenveto!$D$18-1,L40),0)","v":0},0,0]
[null,"Palkki, teräsristikko, pintakäsitelty",2.72,null,null,null,null,2.72,0,"kgCO2e/kg","kg","Ei vaihdeta",{"$f":"IFERROR(QUOTIENT(Yhteenveto!$D$18-1,L41),0)","v":0},0,0]
[null,"Palkki, teräsputki, pintakäsitelty",2.84,null,null,null,null,2.84,0,"kgCO2e/kg","kg","Ei vaihdeta",{"$f":"IFERROR(QUOTIENT(Yhteenveto!$D$18-1,L42),0)","v":0},0,0]
[null,"Palkki, teräksinen deltapalkki",2.94,null,null,null,null,2.94,0,"kgCO2e/kg","kg","Ei vaihdeta",{"$f":"IFERROR(QUOTIENT(Yhteenveto!$D$18-1,L43),0)","v":0},0,0]
[null,"Pilari, betoni+teräkset",0.214916,null,null,null,null,0.214916,0,"kgCO2e/kg","kg","Ei vaihdeta",{"$f":"IFERROR(QUOTIENT(Yhteenveto!$D$18-1,L44),0)","v":0},0,0]
[null,"Puuranka, sahatavara",9.1999999999999998E-2,1.55,null,null,null,9.1999999999999998E-2,-1.55,"kgCO2e/kg","kg","Ei vaihdeta",{"$f":"IFERROR(QUOTIENT(Yhteenveto!$D$18-1,L45),0)","v":0},0,0]
[null,"Pilari, teräsputki (kylmämuovaus), pintakäsitelty",2.84,null,null,null,null,2.84,0,"kgCO2e/kg","kg","Ei vaihdeta",{"$f":"IFERROR(QUOTIENT(Yhteenveto!$D$18-1,L46),0)","v":0},0,0]
[null,"Pilari, teräspilari (kuumavalsatusta levystä), pintakäsitelty",2.72,null,null,null,null,2.72,0,"kgCO2e/kg","kg","Ei vaihdeta",{"$f":"IFERROR(QUOTIENT(Yhteenveto!$D$18-1,L47),0)","v":0},0,0]
[null,"Teräsranka, kuumasinkitty",2.7879999999999998,null,null,null,null,2.7879999999999998,0,"kgCO2e/kg","kg","Ei vaihdeta",{"$f":"IFERROR(QUOTIENT(Yhteenveto!$D$18-1,L48),0)","v":0},0,0]
[null,null,null,null,null,null,null,null,null,null,null,null,{"$f":"IFERROR(QUOTIENT(Yhteenveto!$D$18-1,L49),0)","v":0},0,0]
[null,"LAATAT",null,null,null,null,null,{"$f":"IF(E50=\"\",IF(C50=\"\",\"\",C50),E50)","v":""},{"$f":"IF(H50=\"\",\"\",D50*-1)","v":""},{"$f":"IF(H50=\"\",\"\",(IF(E50=\"\",\"CO2e/kg\",\"CO2e/m2\")))","v":""},{"$f":"IF(H50=\"\",\"\",(IF(E50=\"\",\"kg\",\"m2\")))","v":""},null,{"$f":"IFERROR(QUOTIENT(Yhteenveto!$D$18-1,L50),0)","v":0},{"$error":"#VALUE!"},{"$error":"#VALUE!"}]
[null,"(massiivilaatta), betoni + teräkset",0.16,null,null,null,null,0.16,0,{"$f":"IF(H51=\"\",\"\",(IF(E51=\"\",\"kgCO2e/kg\",\"kgCO2e/m2\")))","v":"kgCO2e/kg"},"kg","Ei vaihdeta",{"$f":"IFERROR(QUOTIENT(Yhteenveto!$D$18-1,L51),0)","v":0},0,0]
[null,"ontelolaatta 150",0.17785000000000001,null,null,null,null,0.17785000000000001,0,"kgCO2e/kg","kg","Ei vaihdeta",{"$f":"IFERROR(QUOTIENT(Yhteenveto!$D$18-1,L52),0)","v":0},0,0]
[null,"ontelolaatta 200",0.17785000000000001,null,null,null,null,0.17785000000000001,0,"kgCO2e/kg","kg","Ei vaihdeta",{"$f":"IFERROR(QUOTIENT(Yhteenveto!$D$18-1,L53),0)","v":0},0,0]
[null,"ontelolaatta 265",0.17785000000000001,null,null,null,null,0.17785000000000001,0,"kgCO2e/kg","kg","Ei vaihdeta",{"$f":"IFERROR(QUOTIENT(Yhteenveto!$D$18-1,L54),0)","v":0},0,0]
[null,"ontelolaatta 320",0.17785000000000001,null,null,null,null,0.17785000000000001,0,"kgCO2e/kg","kg","Ei vaihdeta",{"$f":"IFERROR(QUOTIENT(Yhteenveto!$D$18-1,L55),0)","v":0},0,0]
[null,"ontelolaatta 400",0.17785000000000001,null,null,null,null,0.17785000000000001,0,"kgCO2e/kg","kg","Ei vaihdeta",{"$f":"IFERROR(QUOTIENT(Yhteenveto!$D$18-1,L56),0)","v":0},0,0]
[null,"ontelolaatta 500",0.17785000000000001,null,null,null,null,0.17785000000000001,0,"kgCO2e/kg","kg","Ei vaihdeta",{"$f":"IFERROR(QUOTIENT(Yhteenveto!$D$18-1,L57),0)","v":0},0,0]
[null,"TT-laatta",0.22228200000000001,null,null,null,null,0.22228200000000001,0,"kgCO2e/kg","kg","Ei vaihdeta",{"$f":"IFERROR(QUOTIENT(Yhteenveto!$D$18-1,L58),0)","v":0},0,0]
[null,"Liittolaatta",0.37207900000000005,null,null,null,null,0.37207900000000005,0,"kgCO2e/kg","kg","Ei vaihdeta",{"$f":"IFERROR(QUOTIENT(Yhteenveto!$D$18-1,L59),0)","v":0},0,0]
[null,null,null,null,null,null,null,null,null,null,null,null,{"$f":"IFERROR(QUOTIENT(Yhteenveto!$D$18-1,L60),0)","v":0},0,0]
[null,"SEINÄT JA SOKKELIT",null,null,null,null,null,null,null,null,null,null,{"$f":"IFERROR(QUOTIENT(Yhteenveto!$D$18-1,L61),0)","v":0},0,0]
[null,"betonielementti, sisäkuori, 100 mm+musta teräs",0.19142008000000002,null,null,null,null,{"$f":"IF(E62=\"\",IF(C62=\"\",\"\",C62),E62)","v":0.19142008000000002},{"$f":"IF(H62=\"\",\"\",D62*-1)","v":0},{"$f":"IF(H62=\"\",\"\",(IF(E62=\"\",\"kgCO2e/kg\",\"kgCO2e/m2\")))","v":"kgCO2e/kg"},{"$f":"IF(H62=\"\",\"\",(IF(E62=\"\",\"kg\",\"m2\")))","v":"kg"},"Ei vaihdeta",{"$f":"IFERROR(QUOTIENT(Yhteenveto!$D$18-1,L62),0)","v":0},0,0]
[null,"betonielementti, sisäkuori, 150 mm+musta teräs",0.1931541,null,null,null,null,0.1931541,0,"kgCO2e/kg","kg","Ei vaihdeta",{"$f":"IFERROR(QUOTIENT(Yhteenveto!$D$18-1,L63),0)","v":0},0,0]
[null,"betonielementti, sisäkuori, 80 mm+musta teräs",0.18968605999999996,null,null,null,null,0.18968605999999996,0,"kgCO2e/kg","kg","Ei vaihdeta",{"$f":"IFERROR(QUOTIENT(Yhteenveto!$D$18-1,L64),0)","v":0},0,0]
[null,"betonielementti, ulkokuori+ruostumaton teräs",0.21104802,null,null,null,null,0.21104802,0,"kgCO2e/kg","kg","Ei vaihdeta",{"$f":"IFERROR(QUOTIENT(Yhteenveto!$D$18-1,L65),0)","v":0},0,0]
[null,"Betoniväliseinä",0.20158000000000001,null,null,null,null,0.20158000000000001,0,"kgCO2e/kg","kg","Ei vaihdeta",{"$f":"IFERROR(QUOTIENT(Yhteenveto!$D$18-1,L66),0)","v":0},0,0]
[null,"Betonisokkeli",0.16,null,null,null,null,0.16,0,"kgCO2e/kg","kg","Ei vaihdeta",{"$f":"IFERROR(QUOTIENT(Yhteenveto!$D$18-1,L67),0)","v":0},0,0]
[null,"CLT-seinä",0.21,1.55,null,null,null,0.21,-1.55,"kgCO2e/kg","kg","Ei vaihdeta",{"$f":"IFERROR(QUOTIENT(Yhteenveto!$D$18-1,L68),0)","v":0},0,0]
[null,"Hirsiseinä, 270 mm",0.11159259259259259,1.55,null,null,null,0.11159259259259259,-1.55,"kgCO2e/kg","kg","Ei vaihdeta",{"$f":"IFERROR(QUOTIENT(Yhteenveto!$D$18-1,L69),0)","v":0},0,0]
[null,"Liimahirsiseinä",0.1421111111111111,{"$f":"0.95*D69","v":1.4724999999999999},null,null,null,0.1421111111111111,-1.4724999999999999,"kgCO2e/kg","kg","Ei vaihdeta",{"$f":"IFERROR(QUOTIENT(Yhteenveto!$D$18-1,L70),0)","v":0},0,0]
[null,"EPDM -nauha (synteettinen kumi)",2.694,null,null,null,null,2.694,0,"kgCO2e/kg","kg","Ei vaihdeta",{"$f":"IFERROR(QUOTIENT(Yhteenveto!$D$18-1,L71),0)","v":0},0,0]
[null,"Muurattu rak. kahi 85+laasti",0.15053708139534885,null,null,null,null,0.15053708139534885,0,"kgCO2e/kg","kg","Ei vaihdeta",{"$f":"IFERROR(QUOTIENT(Yhteenveto!$D$18-1,L72),0)","v":0},0,0]
[null,"Muurattu rak. kahiharkko, 130+laasti",0.15429515209125474,null,null,null,null,0.15429515209125474,0,"kgCO2e/kg","kg","Ei vaihdeta",{"$f":"IFERROR(QUOTIENT(Yhteenveto!$D$18-1,L73),0)","v":0},0,0]
[null,"Muurattu rak. kevytsoraharkko+laasti",0.29815607299270069,null,null,null,null,0.29815607299270069,0,"kgCO2e/kg","kg","Ei vaihdeta",{"$f":"IFERROR(QUOTIENT(Yhteenveto!$D$18-1,L74),0)","v":0},0,0]
[null,"Muurattu rak. lämpöharkko+EPS+laasti",0.37843874789599996,null,null,null,null,0.37843874789599996,0,"kgCO2e/kg","kg","Ei vaihdeta",{"$f":"IFERROR(QUOTIENT(Yhteenveto!$D$18-1,L75),0)","v":0},0,0]
[null,"Muurattu rak. poltettu tiili 130+laasti",0.24089046835443037,null,null,null,null,0.24089046835443037,0,"kgCO2e/kg","kg","Ei vaihdeta",{"$f":"IFERROR(QUOTIENT(Yhteenveto!$D$18-1,L76),0)","v":0},{"$f":"M76*H76","v":0},{"$f":"M76*I76","v":0}]
[null,"Muurattu rak. poltettu tiili 85+laasti",0.2038125430463576,null,null,null,null,0.2038125430463576,0,"kgCO2e/kg","kg","Ei vaihdeta",{"$f":"IFERROR(QUOTIENT(Yhteenveto!$D$18-1,L77),0)","v":0},0,0]
[null,"Muurattu rak. Siporex+ohutsaumauslaasti",0.28774520214999999,null,null,null,null,0.28774520214999999,0,"kgCO2e/kg","kg","Ei vaihdeta",{"$f":"IFERROR(QUOTIENT(Yhteenveto!$D$18-1,L78),0)","v":0},0,0]
[null,"Puuranka, sahatavara",9.1999999999999998E-2,1.55,null,null,null,9.1999999999999998E-2,-1.55,"kgCO2e/kg","kg","Ei vaihdeta",{"$f":"IFERROR(QUOTIENT(Yhteenveto!$D$18-1,L79),0)","v":0},0,0]
[null,null,null,null,null,null,null,"","",{"$f":"IF(H80=\"\",\"\",(IF(E80=\"\",\"CO2e/kg\",\"CO2e/m2\")))","v":""},"",null,{"$f":"IFERROR(QUOTIENT(Yhteenveto!$D$18-1,L80),0)","v":0},{"$error":"#VALUE!"},{"$error":"#VALUE!"}]
[null,"PORTAAT",null,null,null,null,null,null,null,null,null,null,{"$f":"IFERROR(QUOTIENT(Yhteenveto!$D$18-1,L81),0)","v":0},0,0]
[null,"betoni",0.24723248847926269,null,null,null,null,{"$f":"IF(E82=\"\",IF(C82=\"\",\"\",C82),E82)","v":0.24723248847926269},{"$f":"IF(H82=\"\",\"\",D82*-1)","v":0},{"$f":"IF(H82=\"\",\"\",(IF(E82=\"\",\"kgCO2e/kg\",\"kgCO2e/m2\")))","v":"kgCO2e/kg"},{"$f":"IF(H82=\"\",\"\",(IF(E82=\"\",\"kg\",\"m2\")))","v":"kg"},"Ei vaihdeta",{"$f":"IFERROR(QUOTIENT(Yhteenveto!$D$18-1,L82),0)","v":0},0,0]
[null,"puu",8.7540789000000008E-2,1.55,null,null,null,{"$f":"IF(E83=\"\",IF(C83=\"\",\"\",C83),E83)","v":8.7540789000000008E-2},{"$f":"IF(H83=\"\",\"\",D83*-1)","v":-1.55},{"$f":"IF(H83=\"\",\"\",(IF(E83=\"\",\"kgCO2e/kg\",\"kgCO2e/m2\")))","v":"kgCO2e/kg"},{"$f":"IF(H83=\"\",\"\",(IF(E83=\"\",\"kg\",\"m2\")))","v":"kg"},50,{"$f":"IFERROR(QUOTIENT(Yhteenveto!$D$18-1,L83),0)","v":0},0,0]
[null,"teräs",2.84,null,null,null,null,{"$f":"IF(E84=\"\",IF(C84=\"\",\"\",C84),E84)","v":2.84},{"$f":"IF(H84=\"\",\"\",D84*-1)","v":0},{"$f":"IF(H84=\"\",\"\",(IF(E84=\"\",\"kgCO2e/kg\",\"kgCO2e/m2\")))","v":"kgCO2e/kg"},{"$f":"IF(H84=\"\",\"\",(IF(E84=\"\",\"kg\",\"m2\")))","v":"kg"},50,{"$f":"IFERROR(QUOTIENT(Yhteenveto!$D$18-1,L84),0)","v":0},0,0]
[null,null,null,null,null,null,null,null,null,null,null,null,{"$f":"IFERROR(QUOTIENT(Yhteenveto!$D$18-1,L85),0)","v":0},0,0]
[null,"LÄMMÖNERISTEET",null,null,null,null,null,"","","","",null,{"$f":"IFERROR(QUOTIENT(Yhteenveto!$D$18-1,L86),0)","v":0},{"$error":"#VALUE!"},{"$error":"#VALUE!"}]
[null,"EPS",3.4072162620000004,null,null,null,null,3.4072162620000004,0,{"$f":"IF(H87=\"\",\"\",(IF(E87=\"\",\"kgCO2e/kg\",\"kgCO2e/m2\")))","v":"kgCO2e/kg"},"kg","Ei vaihdeta",{"$f":"IFERROR(QUOTIENT(Yhteenveto!$D$18-1,L87),0)","v":0},0,0]
[null,"Eriste kierrätyspaperi",0.22247910000000001,null,null,null,null,0.126,0,"kgCO2e/kg","kg","Ei vaihdeta",{"$f":"IFERROR(QUOTIENT(Yhteenveto!$D$18-1,L88),0)","v":0},0,0]
[null,"Eriste, lasivilla",1.53,null,null,null,null,{"$f":"IF(E89=\"\",IF(C89=\"\",\"\",C89),E89)","v":1.53},{"$f":"IF(H89=\"\",\"\",D89*-1)","v":0},{"$f":"IF(H89=\"\",\"\",(IF(E89=\"\",\"kgCO2e/kg\",\"kgCO2e/m2\")))","v":"kgCO2e/kg"},{"$f":"IF(H89=\"\",\"\",(IF(E89=\"\",\"kg\",\"m2\")))","v":"kg"},"Ei vaihdeta",{"$f":"IFERROR(QUOTIENT(Yhteenveto!$D$18-1,#REF!),0)","v":0},{"$f":"M89*#REF!","v":{"$error":"#REF!"}},{"$f":"M89*#REF!","v":{"$error":"#REF!"}}]
[null,"Eriste, polyuretaani",4.3537558619999999,null,null,null,null,{"$f":"IF(E90=\"\",IF(C90=\"\",\"\",C90),E90)","v":4.3537558619999999},{"$f":"IF(H90=\"\",\"\",D90*-1)","v":0},{"$f":"IF(H90=\"\",\"\",(IF(E90=\"\",\"kgCO2e/kg\",\"kgCO2e/m2\")))","v":"kgCO2e/kg"},{"$f":"IF(H90=\"\",\"\",(IF(E90=\"\",\"kg\",\"m2\")))","v":"kg"},"Ei vaihdeta",{"$f":"IFERROR(QUOTIENT(Yhteenveto!$D$18-1,#REF!),0)","v":0},{"$f":"M90*#REF!","v":{"$error":"#REF!"}},{"$f":"M90*#REF!","v":{"$error":"#REF!"}}]
[null,"Eriste, vuorivilla",1.0259812799999999,null,null,null,null,{"$f":"IF(E91=\"\",IF(C91=\"\",\"\",C91),E91)","v":1.0259812799999999},{"$f":"IF(H91=\"\",\"\",D91*-1)","v":0},{"$f":"IF(H91=\"\",\"\",(IF(E91=\"\",\"kgCO2e/kg\",\"kgCO2e/m2\")))","v":"kgCO2e/kg"},{"$f":"IF(H91=\"\",\"\",(IF(E91=\"\",\"kg\",\"m2\")))","v":"kg"},"Ei vaihdeta",{"$f":"IFERROR(QUOTIENT(Yhteenveto!$D$18-1,L89),0)","v":0},{"$f":"M91*H89","v":0},{"$f":"M91*I89","v":0}]
[null,"Eriste, XPS",3.4072162620000004,null,null,null,null,2.64,{"$f":"IF(H92=\"\",\"\",D92*-1)","v":0},{"$f":"IF(H92=\"\",\"\",(IF(E92=\"\",\"kgCO2e/kg\",\"kgCO2e/m2\")))","v":"kgCO2e/kg"},{"$f":"IF(H92=\"\",\"\",(IF(E92=\"\",\"kg\",\"m2\")))","v":"kg"},"Ei vaihdeta",{"$f":"IFERROR(QUOTIENT(Yhteenveto!$D$18-1,#REF!),0)","v":0},{"$f":"M92*#REF!","v":{"$error":"#REF!"}},{"$f":"M92*#REF!","v":{"$error":"#REF!"}}]
[null,"tuulensuoja, lasivilla, 75 kg/m3",1.153,null,null,null,null,{"$f":"IF(E93=\"\",IF(C93=\"\",\"\",C93),E93)","v":1.153},{"$f":"IF(H93=\"\",\"\",D93*-1)","v":0},{"$f":"IF(H93=\"\",\"\",(IF(E93=\"\",\"kgCO2e/kg\",\"kgCO2e/m2\")))","v":"kgCO2e/kg"},{"$f":"IF(H93=\"\",\"\",(IF(E93=\"\",\"kg\",\"m2\")))","v":"kg"},"Ei vaihdeta",{"$f":"IFERROR(QUOTIENT(Yhteenveto!$D$18-1,L90),0)","v":0},{"$f":"M93*H90","v":0},{"$f":"M93*I90","v":0}]
[null,null,null,null,null,null,null,null,null,null,null,null,{"$f":"IFERROR(QUOTIENT(Yhteenveto!$D$18-1,L94),0)","v":0},0,0]
[null,null,null,null,null,null,null,null,null,null,null,null,{"$f":"IFERROR(QUOTIENT(Yhteenveto!$D$18-1,L91),0)","v":0},{"$f":"M95*H91","v":0},{"$f":"M95*I91","v":0}]
[null,null,null,null,null,null,null,null,null,null,null,null,{"$f":"IFERROR(QUOTIENT(Yhteenveto!$D$18-1,L96),0)","v":0},0,0]
[null,null,null,null,null,null,null,null,null,null,null,null,{"$f":"IFERROR(QUOTIENT(Yhteenveto!$D$18-1,L97),0)","v":0},0,0]
[null,null,null,null,null,null,null,null,null,null,null,null,{"$f":"IFERROR(QUOTIENT(Yhteenveto!$D$18-1,L98),0)","v":0},0,0]
[null,null,null,null,null,null,null,null,null,null,null,null,{"$f":"IFERROR(QUOTIENT(Yhteenveto!$D$18-1,L92),0)","v":0},{"$f":"M99*H92","v":0},{"$f":"M99*I92","v":0}]
[null,null,null,null,null,null,null,null,null,null,null,null,{"$f":"IFERROR(QUOTIENT(Yhteenveto!$D$18-1,L93),0)","v":0},{"$f":"M100*H93","v":0},{"$f":"M100*I93","v":0}]
[null,null,null,null,null,null,null,"","","","",null,{"$f":"IFERROR(QUOTIENT(Yhteenveto!$D$18-1,L101),0)","v":0},{"$error":"#VALUE!"},{"$error":"#VALUE!"}]
[null,"KOSTEUSERISTE",null,null,null,null,null,"","","","",null,{"$f":"IFERROR(QUOTIENT(Yhteenveto!$D$18-1,L102),0)","v":0},{"$error":"#VALUE!"},{"$error":"#VALUE!"}]
[null,"Kosteussulku",3,null,null,null,null,3,0,{"$f":"IF(H103=\"\",\"\",(IF(E103=\"\",\"kgCO2e/kg\",\"kgCO2e/m2\")))","v":"kgCO2e/kg"},"kg","Ei vaihdeta",{"$f":"IFERROR(QUOTIENT(Yhteenveto!$D$18-1,L103),0)","v":0},0,0]
[null,null,null,null,null,null,null,null,null,null,null,null,{"$f":"IFERROR(QUOTIENT(Yhteenveto!$D$18-1,L104),0)","v":0},0,0]
[null,"ULKOVERHOILU",null,null,null,null,null,{"$f":"IF(E105=\"\",IF(C105=\"\",\"\",C105),E105)","v":""},{"$f":"IF(H105=\"\",\"\",D105*-1)","v":""},{"$f":"IF(H105=\"\",\"\",(IF(E105=\"\",\"CO2e/kg\",\"CO2e/m2\")))","v":""},{"$f":"IF(H105=\"\",\"\",(IF(E105=\"\",\"kg\",\"m2\")))","v":""},null,{"$f":"IFERROR(QUOTIENT(Yhteenveto!$D$18-1,L105),0)","v":0},{"$error":"#VALUE!"},{"$error":"#VALUE!"}]
[null,"alumiinikasetti",3.2,null,null,null,null,3.2,0,{"$f":"IF(H106=\"\",\"\",(IF(E106=\"\",\"kgCO2e/kg\",\"kgCO2e/m2\")))","v":"kgCO2e/kg"},"kg",50,{"$f":"IFERROR(QUOTIENT(Yhteenveto!$D$18-1,L106),0)","v":0},0,0]
[null,"keraaminen laatoitus",0.70354601999999999,null,null,null,null,0.70354601999999999,0,"kgCO2e/kg","kg",50,{"$f":"IFERROR(QUOTIENT(Yhteenveto!$D$18-1,L107),0)","v":0},0,0]
[null,"kuparikasetti",2.1040000000000001,null,null,null,null,2.1040000000000001,0,"kgCO2e/kg","kg",50,{"$f":"IFERROR(QUOTIENT(Yhteenveto!$D$18-1,L108),0)","v":0},0,0]
[null,"luonnonkivi, 20 mm",0.40769230769230769,null,null,null,null,0.40769230769230769,0,"kgCO2e/kg","kg",50,{"$f":"IFERROR(QUOTIENT(Yhteenveto!$D$18-1,L109),0)","v":0},0,0]
[null,"puu",9.1709398000000025E-2,1.55,null,null,null,9.1709398000000025E-2,-1.55,"kgCO2e/kg","kg",50,{"$f":"IFERROR(QUOTIENT(Yhteenveto!$D$18-1,L110),0)","v":0},0,0]
[null,"puu, lämpökäs.",0.12210301576,1.55,null,null,null,0.12210301576,-1.55,"kgCO2e/kg","kg",50,{"$f":"IFERROR(QUOTIENT(Yhteenveto!$D$18-1,L111),0)","v":0},0,0]
[null,"teräskasetti, ruostumaton",2.846025,null,null,null,null,2.846025,0,"kgCO2e/kg","kg",50,{"$f":"IFERROR(QUOTIENT(Yhteenveto!$D$18-1,L112),0)","v":0},0,0]
[null,"teräskasetti+maali",2.95,null,null,null,null,2.95,0,"kgCO2e/kg","kg",50,{"$f":"IFERROR(QUOTIENT(Yhteenveto!$D$18-1,L113),0)","v":0},0,0]
[null,"tiililaatta",0.22959560000000001,null,null,null,null,0.22959560000000001,0,"kgCO2e/kg","kg",50,{"$f":"IFERROR(QUOTIENT(Yhteenveto!$D$18-1,L114),0)","v":0},0,0]
[null,"turvalasi (parveke)",1.3380000000000001,null,null,null,null,1.3380000000000001,0,"kgCO2e/kg","kg",50,{"$f":"IFERROR(QUOTIENT(Yhteenveto!$D$18-1,L115),0)","v":0},0,0]
[null,null,null,null,null,null,null,null,null,null,null,null,{"$f":"IFERROR(QUOTIENT(Yhteenveto!$D$18-1,L116),0)","v":0},0,0]
[null,"KATTEET",null,null,null,null,null,{"$f":"IF(E117=\"\",IF(C117=\"\",\"\",C117),E117)","v":""},{"$f":"IF(H117=\"\",\"\",D117*-1)","v":""},"","",null,{"$f":"IFERROR(QUOTIENT(Yhteenveto!$D$18-1,L117),0)","v":0},{"$error":"#VALUE!"},{"$error":"#VALUE!"}]
[null,"betonikattotiili",0.16305785599999997,null,null,null,null,0.16305785599999997,0,{"$f":"IF(H118=\"\",\"\",(IF(E118=\"\",\"kgCO2e/kg\",\"kgCO2e/m2\")))","v":"kgCO2e/kg"},"kg",50,{"$f":"IFERROR(QUOTIENT(Yhteenveto!$D$18-1,L118),0)","v":0},0,0]
[null,"aluskermi, 2,4 kg/m2",2.2871904128310421,null,5.4892569907945008,null,null,5.4892569907945008,0,"kgCO2e/m2","m2",25,{"$f":"IFERROR(QUOTIENT(Yhteenveto!$D$18-1,L119),0)","v":1},5.4892569907945008,0]
[null,"bitumikattolaatta, 8,5 kg/m2",2.2933723746217942,null,19.493665184285252,null,null,19.493665184285252,0,"kgCO2e/m2","m2",30,{"$f":"IFERROR(QUOTIENT(Yhteenveto!$D$18-1,L120),0)","v":1},19.493665184285252,0]
[null,"bitumikermi, pinta + 2 alus, 13,3 kg/m2",0.97134963453684608,null,12.627545248978999,null,null,12.627545248978999,0,"kgCO2e/m2","m2",35,{"$f":"IFERROR(QUOTIENT(Yhteenveto!$D$18-1,L121),0)","v":1},12.627545248978999,0]
[null,"kupari",2.1040000000000001,null,null,null,null,2.1040000000000001,0,"kgCO2e/kg","kg",50,{"$f":"IFERROR(QUOTIENT(Yhteenveto!$D$18-1,L122),0)","v":0},0,0]
[null,"teräs, sinkitty",2.75,null,null,null,null,2.75,0,"kgCO2e/kg","kg",50,{"$f":"IFERROR(QUOTIENT(Yhteenveto!$D$18-1,L123),0)","v":0},0,0]
[null,"teräs, sinkitty ja maali",2.91,null,null,null,null,2.91,0,"kgCO2e/kg","kg",50,{"$f":"IFERROR(QUOTIENT(Yhteenveto!$D$18-1,L124),0)","v":0},0,0]
[null,null,null,null,null,null,null,"","",{"$f":"IF(H125=\"\",\"\",(IF(E125=\"\",\"CO2e/kg\",\"CO2e/m2\")))","v":""},"",null,{"$f":"IFERROR(QUOTIENT(Yhteenveto!$D$18-1,L125),0)","v":0},{"$error":"#VALUE!"},{"$error":"#VALUE!"}]
[null,"IKKUNAT ja OVET ja LASISEINÄT",null,null,null,null,null,{"$f":"IF(E126=\"\",IF(C126=\"\",\"\",C126),E126)","v":""},{"$f":"IF(H126=\"\",\"\",D126*-1)","v":""},{"$f":"IF(H126=\"\",\"\",(IF(E126=\"\",\"CO2e/kg\",\"CO2e/m2\")))","v":""},{"$f":"IF(H126=\"\",\"\",(IF(E126=\"\",\"kg\",\"m2\")))","v":""},null,{"$f":"IFERROR(QUOTIENT(Yhteenveto!$D$18-1,L126),0)","v":0},{"$error":"#VALUE!"},{"$error":"#VALUE!"}]
[null,"Ikkunat, 3 lasikerrosta, 4mm",null,null,20.475000000000001,null,null,20.475000000000001,0,{"$f":"IF(H127=\"\",\"\",(IF(E127=\"\",\"kgCO2e/kg\",\"kgCO2e/m2\")))","v":"kgCO2e/m2"},"m2",50,{"$f":"IFERROR(QUOTIENT(Yhteenveto!$D$18-1,L127),0)","v":0},0,0]
[null,"Ikkunat, 4 lasikerrosta, 4mm",null,null,27.3,null,null,27.3,0,"kgCO2e/m2","m2",50,{"$f":"IFERROR(QUOTIENT(Yhteenveto!$D$18-1,L128),0)","v":0},0,0]
[null,"Ikkunat, 3 lasikerrosta, 6mm",null,null,30.712499999999999,null,null,30.712499999999999,0,"kgCO2e/m2","m2",50,{"$f":"IFERROR(QUOTIENT(Yhteenveto!$D$18-1,L129),0)","v":0},0,0]
[null,"Ikkunat, 4 lasikerrosta, 6mm",null,null,40.950000000000003,null,null,40.950000000000003,0,"kgCO2e/m2","m2",50,{"$f":"IFERROR(QUOTIENT(Yhteenveto!$D$18-1,L130),0)","v":0},0,0]
[null,"Ikkunat, Puuikkuna, sisältää myös lasit",null,null,{"$f":"158.75/(1.23*1.48)","v":87.206108547571958},null,null,87.206108547571958,0,"kgCO2e/m2","m2",50,{"$f":"IFERROR(QUOTIENT(Yhteenveto!$D$18-1,L131),0)","v":0},0,0]
[null,"Ikkunat, Puu-alumiini-ikkuna, sisältää myös lasit",null,null,{"$f":"207.73/(1.23*1.48)","v":114.11228301472204},null,null,114.11228301472204,0,"kgCO2e/m2","m2",50,{"$f":"IFERROR(QUOTIENT(Yhteenveto!$D$18-1,L132),0)","v":0},0,0]
[null,"Lasiverhoilu ja seinät",null,null,9.9149999999999991,null,null,9.9149999999999991,0,"kgCO2e/m2","m2",50,{"$f":"IFERROR(QUOTIENT(Yhteenveto!$D$18-1,L133),0)","v":0},0,0]
[null,"Muoviseinämä (polykarbonaatti-suihkuseinämä)",4.1680000000000001,null,null,null,null,4.1680000000000001,0,{"$f":"IF(H134=\"\",\"\",(IF(E134=\"\",\"kgCO2e/kg\",\"kgCO2e/m2\")))","v":"kgCO2e/kg"},"kg",25,{"$f":"IFERROR(QUOTIENT(Yhteenveto!$D$18-1,L134),0)","v":1},4.1680000000000001,0]
[null,"Ovi, lasi",null,null,9.92,null,null,9.92,0,"kgCO2e/m2","m2",50,{"$f":"IFERROR(QUOTIENT(Yhteenveto!$D$18-1,L135),0)","v":0},0,0]
[null,"Ovi, sisä",null,null,34.823496206845341,null,null,34.823496206845341,0,"kgCO2e/m2","m2",50,{"$f":"IFERROR(QUOTIENT(Yhteenveto!$D$18-1,L136),0)","v":0},0,0]
[null,"Ovi, ulko metalli",null,null,20.097013042516789,null,null,20.097013042516789,0,"kgCO2e/m2","m2",50,{"$f":"IFERROR(QUOTIENT(Yhteenveto!$D$18-1,L137),0)","v":0},0,0]
[null,"Ovi, ulko, puu",null,null,61.043778156546068,null,null,61.043778156546068,0,"kgCO2e/m2","m2",40,{"$f":"IFERROR(QUOTIENT(Yhteenveto!$D$18-1,L138),0)","v":1},61.043778156546068,0]
[null,null,null,null,null,null,null,"","",{"$f":"IF(H139=\"\",\"\",(IF(E139=\"\",\"CO2e/kg\",\"CO2e/m2\")))","v":""},"",null,{"$f":"IFERROR(QUOTIENT(Yhteenveto!$D$18-1,L139),0)","v":0},{"$error":"#VALUE!"},{"$error":"#VALUE!"}]
[null,"LATTIAPÄÄLLYSTEET JA -BETONIT",null,null,null,null,null,"","",{"$f":"IF(H140=\"\",\"\",(IF(E140=\"\",\"CO2e/kg\",\"CO2e/m2\")))","v":""},{"$f":"IF(H140=\"\",\"\",(IF(E140=\"\",\"kg\",\"m2\")))","v":""},null,{"$f":"IFERROR(QUOTIENT(Yhteenveto!$D$18-1,L140),0)","v":0},{"$f":"M140*H140","v":{"$error":"#VALUE!"}},{"$f":"M140*I140","v":{"$error":"#VALUE!"}}]
[null,"muovimatto",1.3956022234800003,null,null,null,null,1.3956022234800003,0,{"$f":"IF(H141=\"\",\"\",(IF(E141=\"\",\"kgCO2e/kg\",\"kgCO2e/m2\")))","v":"kgCO2e/kg"},"kg",30,{"$f":"IFERROR(QUOTIENT(Yhteenveto!$D$18-1,L141),0)","v":1},1.3956022234800003,0]
[null,"parketti + alusrak.",0.64253516712328762,null,null,null,null,0.64253516712328762,0,"kgCO2e/kg","kg",25,{"$f":"IFERROR(QUOTIENT(Yhteenveto!$D$18-1,L142),0)","v":1},0.64253516712328762,0]
[null,"Laminaatti",2.9882352941176471,null,null,null,null,2.9882352941176471,0,{"$f":"IF(H143=\"\",\"\",(IF(E143=\"\",\"kgCO2e/kg\",\"kgCO2e/m2\")))","v":"kgCO2e/kg"},"kg",15,{"$f":"IFERROR(QUOTIENT(Yhteenveto!$D$18-1,L143),0)","v":3},8.9647058823529413,0]
[null,"linoleum",0.38784722222222223,null,null,null,null,0.38784722222222223,0,"kgCO2e/kg","kg",30,{"$f":"IFERROR(QUOTIENT(Yhteenveto!$D$18-1,L144),0)","v":1},0.38784722222222223,0]
[null,"kumi",3.1363636363636362,null,null,null,null,3.1363636363636362,0,"kgCO2e/kg","kg",30,{"$f":"IFERROR(QUOTIENT(Yhteenveto!$D$18-1,L145),0)","v":1},3.1363636363636362,0]
[null,"epokshartsi",4.069,null,null,null,null,4.069,0,"kgCO2e/kg","kg","Ei vaihdeta",{"$f":"IFERROR(QUOTIENT(Yhteenveto!$D$18-1,L146),0)","v":0},0,0]
[null,"Lattiabetoni",0.15497999999999998,null,null,null,null,0.15497999999999998,0,{"$f":"IF(H147=\"\",\"\",(IF(E147=\"\",\"kgCO2e/kg\",\"kgCO2e/m2\")))","v":"kgCO2e/kg"},"kg","Ei vaihdeta",{"$f":"IFERROR(QUOTIENT(Yhteenveto!$D$18-1,L147),0)","v":0},0,0]
[null,null,null,null,null,null,null,"","",{"$f":"IF(H148=\"\",\"\",(IF(E148=\"\",\"CO2e/kg\",\"CO2e/m2\")))","v":""},"",null,{"$f":"IFERROR(QUOTIENT(Yhteenveto!$D$18-1,L148),0)","v":0},{"$error":"#VALUE!"},{"$error":"#VALUE!"}]
[null,"LEVYT",null,null,null,null,null,{"$f":"IF(E149=\"\",IF(C149=\"\",\"\",C149),E149)","v":""},{"$f":"IF(H149=\"\",\"\",D149*-1)","v":""},{"$f":"IF(H149=\"\",\"\",(IF(E149=\"\",\"CO2e/kg\",\"CO2e/m2\")))","v":""},"",null,{"$f":"IFERROR(QUOTIENT(Yhteenveto!$D$18-1,L149),0)","v":0},{"$error":"#VALUE!"},{"$error":"#VALUE!"}]
[null,"kipsilevy",0.41904956099999996,null,null,null,null,0.41904956099999996,0,{"$f":"IF(H150=\"\",\"\",(IF(E150=\"\",\"kgCO2e/kg\",\"kgCO2e/m2\")))","v":"kgCO2e/kg"},"kg",50,{"$f":"IFERROR(QUOTIENT(Yhteenveto!$D$18-1,L150),0)","v":0},0,0]
[null,"kovalevy",0.31562670825,null,null,null,null,0.31562670825,0,"kgCO2e/kg","kg",50,{"$f":"IFERROR(QUOTIENT(Yhteenveto!$D$18-1,L151),0)","v":0},0,0]
[null,"kuitutuulensuoja",0.45713475125000008,1.53,null,null,null,0.45713475125000008,-1.53,"kgCO2e/kg","kg",50,{"$f":"IFERROR(QUOTIENT(Yhteenveto!$D$18-1,L152),0)","v":0},0,0]
[null,"lastulevy",0.61357194150000005,1.06,null,null,null,0.61357194150000005,-1.06,"kgCO2e/kg","kg",50,{"$f":"IFERROR(QUOTIENT(Yhteenveto!$D$18-1,L153),0)","v":0},0,0]
[null,"vaneri",0.28336097826086953,1.64,null,null,null,0.28336097826086953,-1.64,"kgCO2e/kg","kg",50,{"$f":"IFERROR(QUOTIENT(Yhteenveto!$D$18-1,L154),0)","v":0},0,0]
[null,"CLT",0.21,1.55,null,null,null,0.21,-1.55,"kgCO2e/kg","kg","Ei vaihdeta",{"$f":"IFERROR(QUOTIENT(Yhteenveto!$D$18-1,L155),0)","v":0},0,0]
[null,"kuitusementti",0.70665000000000011,null,null,null,null,0.70665000000000011,0,"kgCO2e/kg","kg",50,{"$f":"IFERROR(QUOTIENT(Yhteenveto!$D$18-1,L156),0)","v":0},0,0]
[null,"viilupuu",0.39504705882352947,{"$f":"1020/680","v":1.5},null,null,null,0.39504705882352947,-1.5,"kgCO2e/kg","kg","Ei vaihdeta",{"$f":"IFERROR(QUOTIENT(Yhteenveto!$D$18-1,L157),0)","v":0},0,0]
[null,"OSB",0.44309999999999999,{"$f":"810/623.33","v":1.2994721896908539},null,null,null,0.44309999999999999,-1.2994721896908539,"kgCO2e/kg","kg",50,{"$f":"IFERROR(QUOTIENT(Yhteenveto!$D$18-1,L158),0)","v":0},0,0]
[null,null,null,null,null,null,null,"","",{"$f":"IF(H159=\"\",\"\",(IF(E159=\"\",\"CO2e/kg\",\"CO2e/m2\")))","v":""},{"$f":"IF(H159=\"\",\"\",(IF(E159=\"\",\"kg\",\"m2\")))","v":""},null,{"$f":"IFERROR(QUOTIENT(Yhteenveto!$D$18-1,L159),0)","v":0},{"$error":"#VALUE!"},{"$error":"#VALUE!"}]
[null,"MAALIT JA TASOITTEET ",null,null,null,null,null,"","",{"$f":"IF(H160=\"\",\"\",(IF(E160=\"\",\"CO2e/kg\",\"CO2e/m2\")))","v":""},"",null,{"$f":"IFERROR(QUOTIENT(Yhteenveto!$D$18-1,L160),0)","v":0},{"$error":"#VALUE!"},{"$error":"#VALUE!"}]
[null,"Maali, sisä, akrylaatti",2.1262500000000002,null,null,null,null,2.1262500000000002,0,{"$f":"IF(H161=\"\",\"\",(IF(E161=\"\",\"kgCO2e/kg\",\"kgCO2e/m2\")))","v":"kgCO2e/kg"},"kg",20,{"$f":"IFERROR(QUOTIENT(Yhteenveto!$D$18-1,L161),0)","v":2},4.2525000000000004,0]
[null,"Maali, sisä, alkydi",1.86375,null,null,null,null,1.86375,0,"kgCO2e/kg","kg",20,{"$f":"IFERROR(QUOTIENT(Yhteenveto!$D$18-1,L162),0)","v":2},3.7275,0]
[null,"Maali, punamulta",0.44546249999999998,null,null,null,null,0.44546249999999998,0,"kgCO2e/kg","kg",20,{"$f":"IFERROR(QUOTIENT(Yhteenveto!$D$18-1,L163),0)","v":2},0.89092499999999997,0]
[null,"Maali, pellavaöljy",1.5382499999999999,null,null,null,null,1.5382499999999999,0,"kgCO2e/kg","kg",20,{"$f":"IFERROR(QUOTIENT(Yhteenveto!$D$18-1,L164),0)","v":2},3.0764999999999998,0]
[null,"Maali, ulko, vesiohenteinen",1.84,null,null,null,null,1.84,0,"kgCO2e/kg","kg",20,{"$f":"IFERROR(QUOTIENT(Yhteenveto!$D$18-1,L165),0)","v":2},3.68,0]
[null,"Maali, sisä, vesiohenteinen",1.64,null,null,null,null,1.64,0,"kgCO2e/kg","kg",20,{"$f":"IFERROR(QUOTIENT(Yhteenveto!$D$18-1,L166),0)","v":2},3.28,0]
[null,"Tasoite, sementtipohj.",0.18548571428571431,null,null,null,null,0.18548571428571431,0,"kgCO2e/kg","kg",30,{"$f":"IFERROR(QUOTIENT(Yhteenveto!$D$18-1,L167),0)","v":1},0.18548571428571431,0]
[null,"Tasoite, polymeeripohj.",0.361132222,null,null,null,null,0.361132222,0,"kgCO2e/kg","kg",30,{"$f":"IFERROR(QUOTIENT(Yhteenveto!$D$18-1,L168),0)","v":1},0.361132222,0]
[null,null,null,null,null,null,null,"","",{"$f":"IF(H169=\"\",\"\",(IF(E169=\"\",\"CO2e/kg\",\"CO2e/m2\")))","v":""},"",null,{"$f":"IFERROR(QUOTIENT(Yhteenveto!$D$18-1,L169),0)","v":0},{"$error":"#VALUE!"},{"$error":"#VALUE!"}]
[null,"LVI OSAT",null,null,null,null,null,"","",{"$f":"IF(H170=\"\",\"\",(IF(E170=\"\",\"CO2e/kg\",\"CO2e/m2\")))","v":""},"",null,{"$f":"IFERROR(QUOTIENT(Yhteenveto!$D$18-1,L170),0)","v":0},{"$error":"#VALUE!"},{"$error":"#VALUE!"}]
[null,"Putki, muovi",2.1684000000000001,null,null,null,null,2.1684000000000001,0,{"$f":"IF(H171=\"\",\"\",(IF(E171=\"\",\"kgCO2e/kg\",\"kgCO2e/m2\")))","v":"kgCO2e/kg"},"kg",50,{"$f":"IFERROR(QUOTIENT(Yhteenveto!$D$18-1,L171),0)","v":0},0,0]
[null,"Putki, teräs",2.5379999999999998,null,null,null,null,2.5379999999999998,0,"kgCO2e/kg","kg",50,{"$f":"IFERROR(QUOTIENT(Yhteenveto!$D$18-1,L172),0)","v":0},0,0]
[null,"Putki, alumiini",2.3381120000000002,null,null,null,null,2.3381120000000002,0,"kgCO2e/kg","kg",50,{"$f":"IFERROR(QUOTIENT(Yhteenveto!$D$18-1,L173),0)","v":0},0,0]
[null,"Putki, komposiitti",1.963028,null,null,null,null,1.963028,0,"kgCO2e/kg","kg",50,{"$f":"IFERROR(QUOTIENT(Yhteenveto!$D$18-1,L174),0)","v":0},0,0]
[null,"Putki, salaoja",2.3894000000000002,null,null,null,null,2.3894000000000002,0,"kgCO2e/kg","kg",50,{"$f":"IFERROR(QUOTIENT(Yhteenveto!$D$18-1,L175),0)","v":0},0,0]
[null,"Putki, viemäri",2.0529899999999999,null,null,null,null,2.0529899999999999,0,"kgCO2e/kg","kg",50,{"$f":"IFERROR(QUOTIENT(Yhteenveto!$D$18-1,L176),0)","v":0},0,0]
[null,"Putki, maaviemäri",0.1968,null,null,null,null,0.1968,0,"kgCO2e/kg","kg",50,{"$f":"IFERROR(QUOTIENT(Yhteenveto!$D$18-1,L177),0)","v":0},0,0]
[null,"Putki, käyttövesi",2.3894000000000002,null,null,null,null,2.3894000000000002,0,"kgCO2e/kg","kg",50,{"$f":"IFERROR(QUOTIENT(Yhteenveto!$D$18-1,L178),0)","v":0},0,0]
[null,"Putki, lattialämmitys",1.8380000000000001,null,null,null,null,1.8380000000000001,0,"kgCO2e/kg","kg",50,{"$f":"IFERROR(QUOTIENT(Yhteenveto!$D$18-1,L179),0)","v":0},0,0]
[null,"Liitin, muovi",2.028,null,null,null,null,2.028,0,"kgCO2e/kg","kg",50,{"$f":"IFERROR(QUOTIENT(Yhteenveto!$D$18-1,L180),0)","v":0},0,0]
[null,"Liitin, teräs",2.7567900000000001,null,null,null,null,2.7567900000000001,0,"kgCO2e/kg","kg",50,{"$f":"IFERROR(QUOTIENT(Yhteenveto!$D$18-1,L181),0)","v":0},0,0]
[null,"Liitin, alumiini",2.3381120000000002,null,null,null,null,{"$f":"IF(E182=\"\",IF(C182=\"\",\"\",C182),E182)","v":2.3381120000000002},{"$f":"IF(H182=\"\",\"\",D182*-1)","v":0},"kgCO2e/kg","kg",50,{"$f":"IFERROR(QUOTIENT(Yhteenveto!$D$18-1,L182),0)","v":0},0,0]
[null,"Venttiili",2.8472575200000003,null,null,null,null,2.8472575200000003,0,"kgCO2e/kg","kg",20,{"$f":"IFERROR(QUOTIENT(Yhteenveto!$D$18-1,L183),0)","v":2},5.6945150400000006,0]
[null,"Jakotukki",2.8472575200000003,null,null,null,null,2.8472575200000003,0,"kgCO2e/kg","kg",30,{"$f":"IFERROR(QUOTIENT(Yhteenveto!$D$18-1,L184),0)","v":1},2.8472575200000003,0]
[null,"Sadevesikaivo",1.6345692307692308,null,null,null,null,1.6345692307692308,0,"kgCO2e/kg","kg",50,{"$f":"IFERROR(QUOTIENT(Yhteenveto!$D$18-1,L185),0)","v":0},0,0]
[null,"Peruskaivo",1.6679999999999999,null,null,null,null,1.6679999999999999,0,"kgCO2e/kg","kg",50,{"$f":"IFERROR(QUOTIENT(Yhteenveto!$D$18-1,L186),0)","v":0},0,0]
[null,"Pesuallas, keraaminen",1.6480000000000001,null,null,null,null,1.6480000000000001,0,"kgCO2e/kg","kg",50,{"$f":"IFERROR(QUOTIENT(Yhteenveto!$D$18-1,L187),0)","v":0},0,0]
[null,"Pesuallas, RST",4.758,null,null,null,null,4.758,0,"kgCO2e/kg","kg",50,{"$f":"IFERROR(QUOTIENT(Yhteenveto!$D$18-1,L188),0)","v":0},0,0]
[null,"WC-istuin, keraaminen",1.6480000000000001,null,null,null,null,1.6480000000000001,0,"kgCO2e/kg","kg",50,{"$f":"IFERROR(QUOTIENT(Yhteenveto!$D$18-1,L189),0)","v":0},0,0]
[null,"Lattiakaivo, muovi",1.6679999999999999,null,null,null,null,1.6679999999999999,0,"kgCO2e/kg","kg",50,{"$f":"IFERROR(QUOTIENT(Yhteenveto!$D$18-1,L190),0)","v":0},0,0]
[null,"Lattiakaivo, RST teräs",4.758,null,null,null,null,4.758,0,"kgCO2e/kg","kg",50,{"$f":"IFERROR(QUOTIENT(Yhteenveto!$D$18-1,L191),0)","v":0},0,0]
[null,"Vesihana, komposiitti",2.8994,null,null,null,null,2.8994,0,"kgCO2e/kg","kg",20,{"$f":"IFERROR(QUOTIENT(Yhteenveto!$D$18-1,L192),0)","v":2},5.7988,0]
[null,"Suihku ja letku komposiitti",3.6740000000000004,null,null,null,null,3.6740000000000004,0,"kgCO2e/kg","kg",20,{"$f":"IFERROR(QUOTIENT(Yhteenveto!$D$18-1,L193),0)","v":2},7.3480000000000008,0]
[null,"Lautasventtiili, teräs",2.7567900000000001,null,null,null,null,2.7567900000000001,0,"kgCO2e/kg","kg",20,{"$f":"IFERROR(QUOTIENT(Yhteenveto!$D$18-1,L194),0)","v":2},5.5135800000000001,0]
[null,"Putki, ilmastointi",2.75,null,null,null,null,2.75,0,"kgCO2e/kg","kg",40,{"$f":"IFERROR(QUOTIENT(Yhteenveto!$D$18-1,L195),0)","v":1},2.75,0]
[null,"Säleikkö, tuloilma",2.3381120000000002,null,null,null,null,2.3381120000000002,0,"kgCO2e/kg","kg",40,{"$f":"IFERROR(QUOTIENT(Yhteenveto!$D$18-1,L196),0)","v":1},2.3381120000000002,0]
[null,"Säleikkö, ulko",2.3381120000000002,null,null,null,null,2.3381120000000002,0,"kgCO2e/kg","kg",40,{"$f":"IFERROR(QUOTIENT(Yhteenveto!$D$18-1,L197),0)","v":1},2.3381120000000002,0]
[null,null,null,null,null,null,null,"","",{"$f":"IF(H198=\"\",\"\",(IF(E198=\"\",\"CO2e/kg\",\"CO2e/m2\")))","v":""},"",null,{"$f":"IFERROR(QUOTIENT(Yhteenveto!$D$18-1,L198),0)","v":0},{"$error":"#VALUE!"},{"$error":"#VALUE!"}]
[null,"SÄHKÖOSAT",null,null,null,null,null,"","","","",null,{"$f":"IFERROR(QUOTIENT(Yhteenveto!$D$18-1,L199),0)","v":0},{"$error":"#VALUE!"},{"$error":"#VALUE!"}]
[null,"Sisäkaapeli",2.1,null,null,null,null,2.1,0,{"$f":"IF(H200=\"\",\"\",(IF(E200=\"\",\"kgCO2e/kg\",\"kgCO2e/m2\")))","v":"kgCO2e/kg"},"kg",25,{"$f":"IFERROR(QUOTIENT(Yhteenveto!$D$18-1,L200),0)","v":1},2.1,0]
[null,"Parikaapeli",3.81,null,null,null,null,3.81,0,"kgCO2e/kg","kg",25,{"$f":"IFERROR(QUOTIENT(Yhteenveto!$D$18-1,L201),0)","v":1},3.81,0]
[null,"Antennikaapeli",2.0499999999999998,null,null,null,null,2.0499999999999998,0,"kgCO2e/kg","kg",25,{"$f":"IFERROR(QUOTIENT(Yhteenveto!$D$18-1,L202),0)","v":1},2.0499999999999998,0]
[null,"Asennusjohto",2.21,null,null,null,null,2.21,0,"kgCO2e/kg","kg",25,{"$f":"IFERROR(QUOTIENT(Yhteenveto!$D$18-1,L203),0)","v":1},2.21,0]
[null,"Ohjauskaapeli",2.3101005391304348,null,null,null,null,2.3101005391304348,0,"kgCO2e/kg",{"$f":"IF(H204=\"\",\"\",(IF(E204=\"\",\"kg\",\"m2\")))","v":"kg"},25,{"$f":"IFERROR(QUOTIENT(Yhteenveto!$D$18-1,L204),0)","v":1},{"$f":"M204*H204","v":2.3101005391304348},{"$f":"M204*I204","v":0}]
[null,"Voimakaapeli",2.21,null,null,null,null,2.21,0,"kgCO2e/kg","kg",25,{"$f":"IFERROR(QUOTIENT(Yhteenveto!$D$18-1,L205),0)","v":1},2.21,0]
[null,"Pistorasia",2.028,null,null,null,null,2.028,0,"kgCO2e/kg","kg",25,{"$f":"IFERROR(QUOTIENT(Yhteenveto!$D$18-1,L206),0)","v":1},2.028,0]
[null,"Valaisinpistorasia",2.028,null,null,null,null,2.028,0,"kgCO2e/kg","kg",25,{"$f":"IFERROR(QUOTIENT(Yhteenveto!$D$18-1,L207),0)","v":1},2.028,0]
[null,"Jakorasia",2.028,null,null,null,null,2.028,0,"kgCO2e/kg","kg",25,{"$f":"IFERROR(QUOTIENT(Yhteenveto!$D$18-1,L208),0)","v":1},2.028,0]
[null,"Haaroitusrasia",2.028,null,null,null,null,2.028,0,"kgCO2e/kg","kg",25,{"$f":"IFERROR(QUOTIENT(Yhteenveto!$D$18-1,L209),0)","v":1},2.028,0]
[null,null,null,null,null,null,null,"",null,null,null,null,{"$f":"IFERROR(QUOTIENT(Yhteenveto!$D$18-1,L210),0)","v":0},{"$error":"#VALUE!"},0]
[null,"AURINKOPANEELI",null,null,null,null,null,"",null,null,null,null,{"$f":"IFERROR(QUOTIENT(Yhteenveto!$D$18-1,L211),0)","v":0},{"$error":"#VALUE!"},0]
[null,"Kiteinen aurinkopaneeli",null,null,242,null,null,{"$f":"SUM(D212:G212)","v":242},0,{"$f":"IF(H212=\"\",\"\",(IF(E212=\"\",\"kgCO2e/kg\",\"kgCO2e/m2\")))","v":"kgCO2e/m2"},{"$f":"IF(H212=\"\",\"\",(IF(E212=\"\",\"kg\",\"m2\")))","v":"m2"},25,{"$f":"IFERROR(QUOTIENT(Yhteenveto!$D$18-1,L212),0)","v":1},242,0]
[null,"Ohutkalvopaneeli",null,null,67,null,null,{"$f":"SUM(D213:G213)","v":67},0,"kgCO2e/m2","m2",25,{"$f":"IFERROR(QUOTIENT(Yhteenveto!$D$18-1,L213),0)","v":1},67,0]
[null,"Verkkoinvertteri",null,null,null,21.8,null,22,0,"kgCO2e/kg","kg",25,{"$f":"IFERROR(QUOTIENT(Yhteenveto!$D$18-1,L214),0)","v":1},22,0]
[null,null,null,null,null,null,null,null,null,null,null,null,{"$f":"IFERROR(QUOTIENT(Yhteenveto!$D$18-1,L215),0)","v":0},0,0]
[null,"HISSIT",null,null,null,null,null,null,null,null,null,null,{"$f":"IFERROR(QUOTIENT(Yhteenveto!$D$18-1,L216),0)","v":0},0,0]
[null,"Hissi",null,null,null,7585,null,7585,0,"kgCO2e/kpl","kpl",50,{"$f":"IFERROR(QUOTIENT(Yhteenveto!$D$18-1,L217),0)","v":0},0,0]
[null,null,null,null,null,null,null,null,null,null,null,null,{"$f":"IFERROR(QUOTIENT(Yhteenveto!$D$18-1,L218),0)","v":0},0,0]
[null,"TALOTEKNIIKAN KOKONAISPÄÄSTÖT",null,null,null,null,null,null,null,null,null,null,{"$f":"IFERROR(QUOTIENT(Yhteenveto!$D$18-1,L219),0)","v":0},0,0]
[null,"Sähköasennukset ja kaapeloinnit",null,null,null,null,5.28,5.28,0,"kgCO2e/m2","m2",25,{"$f":"IFERROR(QUOTIENT(Yhteenveto!$D$18-1,L220),0)","v":1},5.28,0]
[null,"Sprinkler-järjestelmä",null,null,null,null,5.85,5.85,0,"kgCO2e/m3","m2",50,{"$f":"IFERROR(QUOTIENT(Yhteenveto!$D$18-1,L221),0)","v":0},0,0]
[null,"Vesijohtojärjestelmä",null,null,null,null,2.7,2.7,0,"kgCO2e/m4","m2",50,{"$f":"IFERROR(QUOTIENT(Yhteenveto!$D$18-1,L222),0)","v":0},0,0]
[null,"Viemäriputkisto",null,null,null,null,0.52,0.52,0,"kgCO2e/m5","m2",50,{"$f":"IFERROR(QUOTIENT(Yhteenveto!$D$18-1,L223),0)","v":0},0,0]
[null,"Patteriverkosto",null,null,null,null,6.67,6.67,0,"kgCO2e/m6","m2",50,{"$f":"IFERROR(QUOTIENT(Yhteenveto!$D$18-1,L224),0)","v":0},0,0]
[null,"Lämmönjakokeskus",null,null,null,null,0.53,0.53,0,"kgCO2e/m7","m2","Ei vaihdeta",{"$f":"IFERROR(QUOTIENT(Yhteenveto!$D$18-1,L225),0)","v":0},0,0]
[null,"Ilmanvaihtojärjestelmä (huoneistokohtaiset konee, kanavisto ja päätelaitteet)",null,null,null,null,6.97,{"$f":"SUM(D226:G226)","v":6.97},0,"kgCO2e/m8","m2",25,{"$f":"IFERROR(QUOTIENT(Yhteenveto!$D$18-1,L226),0)","v":1},6.97,0]

{"sheet":"Datalehti","index":8,"n_rows":101,"n_cols":139,"rows_kept":101,"cut":false,"hidden":true,"merged":[]}
[]
[]
[null,"Laskennalliset päästöt","päivitetty 6/2019",null,"huom 2120 jälkeen vakio ja 2010 luvut on vanhoja"]
[null," (kgCO2e /kWh)"]
[null,"Energiamuoto",2010,2020,2030,2040,2050,2060,2070,2080,2090,2100,2110,2120,2130,2140,2150]
[null,"Sähkö",0.158,0.121,5.7000000000000002E-2,0.03,1.7999999999999999E-2,1.4E-2,7.0000000000000001E-3,4.0000000000000001E-3,2E-3,1E-3,1E-3,0,{"$f":"N6","v":0},{"$f":"O6","v":0},0]
[null,"Kaukolämpö",0.16400000000000001,0.13,9.2999999999999999E-2,6.3E-2,3.6999999999999998E-2,3.3000000000000002E-2,2.1999999999999999E-2,1.4999999999999999E-2,0.01,7.0000000000000001E-3,4.0000000000000001E-3,3.0000000000000001E-3,{"$f":"N7","v":3.0000000000000001E-3},{"$f":"O7","v":3.0000000000000001E-3},3.0000000000000001E-3]
[null,"Fossiiliset ",0.26,0.26,0.26,0.26,0.26,0.26,0.26,0.26,0.26,0.26,0.26,0.26,0.26,0.26,0.26]
[null,"Uusiutuvat ",0,0,0,0,0,0,0,0,0,0,0,0,0,0,0]
[]
[null,"Laskennan vuodet (a)",{"$f":"IF(C13>$E20,IF(C13<$E22,10,IF(C13<$E22+1,$E23,0)),(IF(C13>$E20-1,10-$E21,0)))","v":0},0,0,0,0,0,0,0,0,0,0,0,0,0,0]
[null," (akgCO2e /kWh)",null,null,null,null,null,null,null,null,null,null,null,null,null,null,null,null,"Päästökertoimet","Päästökertoimet"]
[null,"Energiamuoto",2010,2020,2030,2040,2050,2060,2070,2080,2090,2100,2110,2120,2130,2140,2150,null," (akgCO2e /kWh)"," (kgCO2e /kWh)"]
[null,"Sähkö",{"$f":"C$11*C6","v":0},{"$f":"D$11*D6","v":0},0,0,0,0,0,0,0,0,0,0,0,0,0,null,{"$f":"SUM(C14:Q14)","v":0},{"$f":"S14/C$22","v":0}]
[null,"Kaukolämpö",{"$f":"C$11*C7","v":0},{"$f":"D$11*D7","v":0},0,0,0,0,0,0,0,0,0,0,0,0,0,null,{"$f":"SUM(C15:Q15)","v":0},{"$f":"S15/C$22","v":0}]
[null,"Fossiiliset ",{"$f":"C$11*C8","v":0},{"$f":"D$11*D8","v":0},0,0,0,0,0,0,0,0,0,0,0,0,0,null,0,0]
[null,"Uusiutuvat ",{"$f":"C$11*C9","v":0},{"$f":"D$11*D9","v":0},0,0,0,0,0,0,0,0,0,0,0,0,0,null,0,0]
[]
[]
[null,null,null,null,{"$f":"INT(LEFT(C21,3)&\"0\")","v":0}]
[null,"Valmistumisvuosi",{"$f":"Yhteenveto!D21","v":0},null,{"$f":"MOD(C21,10)","v":0}]
[null,"Käyttöikä",{"$f":"Yhteenveto!D18","v":50},null,{"$f":"INT(LEFT(C23,3)&\"0\")","v":500}]
[null,"Loppuvuosi",{"$f":"C22+C21","v":50},null,{"$f":"MOD(C23,10)","v":0}]
[]
[]
[]
[]
[]
[]
[]
[]
[]
[null,null,null,null,null,null,"Hankeluokitus",null,null,null,null,null,null,null,null,null,"materiaaliluokat lista",null,"kevyet rakenteet"]
[null,null,"Hiilijalanjälki","Hiilikädenjälki",null,null,"A","Asuinrakennukset",null,null,null,null,"raportointiaika"]
[null,null,"kg CO2e/m2netto","kg CO2e/m2netto",null,null,"B","Vapaa-ajan asuinrakennukset",null,null,null,null,"Rakennuslupa",null,null,null,"PAIKALLAVALUBETONI JA RAUDOITTEET"]
[null,"Työmaatoiminnot (A5)",27.3,0,null,null,"C","Liikerakennukset",null,null,null,null,"Käyttöönotto",null,null,null,"PIHA JA POHJARAKENTEET"]
[null,"Korjauset ja osien vaihdot (B3-4)",2.16,0,null,null,"D","Toimistorakennukset",null,null,null,null,null,null,null,null,"PILARIT JA PALKIT"]
[null,"Purkaminen (C1)",7.8,0,null,null,"E","Liikenteen rakennukset",null,null,null,null,null,null,null,null,"LAATAT"]
[null,"Kuljetukset (C2)",10.199999999999999,0,null,null,"F","Hoitoalan rakennukset",null,null,null,null,"Tarkastelun tyyppi",null,null,null,"SEINÄT JA SOKKELIT"]
[null,"Purkujätteen loppukäsittely ja sijoitus (C3-4)",15.6,0,null,null,"G","Kokoontumisrakennukset",null,null,null,null,"Yksinkertaistettu",null,null,null,"PORTAAT"]
[null,"Purkujätteen uusiokäyttö (D?)",0,0,null,null,"H","Opetusrakennukset",null,null,null,null,"Tarkennettu",null,null,null,"LÄMMÖNERISTEET"]
[null,null,null,null,null,null,"J","Teollisuusrakennukset",null,null,null,null,null,null,null,null,"KOSTEUSERISTE"]
[null,"Ylijäämäenergiat",{"$f":"'Käyttö (B)'!C17","v":"Energian tuotanto (kWh/m2netto/a)"},"kg CO2e/m2netto/a",null,null,"K","Varastorakennukset",null,null,null,null,null,null,null,null,"ULKOVERHOILU"]
[null,{"$f":"'Käyttö (B)'!B18","v":"Sähkö"},{"$f":"'Käyttö (B)'!C18","v":0},{"$f":"IFERROR(C44*T14,0)","v":0},null,null,"L","Palo- ja pelastustoimen rakennukset",null,null,null,null,null,null,null,null,"KATTEET"]
[null,{"$f":"'Käyttö (B)'!B19","v":"Lämpö"},{"$f":"'Käyttö (B)'!C19","v":0},{"$f":"IFERROR(C45*T15,0)","v":0},null,null,"M","Maatalousrakennukset",null,null,null,null,null,null,null,null,"IKKUNAT ja OVET ja LASISEINÄT"]
[null,"yhteensä",null,{"$f":"D45+D44","v":0},null,null,"N","Muut rakennukset",null,null,null,null,null,null,null,null,"LATTIAPÄÄLLYSTEET JA BETONIT"]
[null,null,null,null,null,null,null,null,null,null,null,null,null,null,null,null,"LEVYT"]
[null,null,null,null,null,null,null,null,null,null,null,null,null,null,null,null,"MAALIT JA TASOITTEET"]
[null,null,null,null,null,null,null,null,null,null,null,null,null,null,null,null,"LVI OSAT"]
[null,null,null,null,null,null,null,null,null,null,null,null,null,null,null,null,"SÄHKÖOSAT"]
[null,null,null,null,null,null,"Rakennuksen runkomateriaali",null,null,null,null,null,null,null,null,null,"AURINKOPANEELI"]
[null,null,null,null,null,null,1,"Betoni",null,null,null,null,null,null,null,null,"HISSIT"]
[null,null,null,null,null,null,2,"Tiili",null,null,null,null,null,null,null,null,"TALOTEKNIIKAN KOKONAISPÄÄSTÖT"]
[null,null,null,null,null,null,3,"Teräs"]
[null,null,null,null,null,null,4,"Puu"]
[null,null,null,null,null,null,5,"Muu"]
[]
[]
[]
[]
[]
[null,"Vuosi",{"$f":"Yhteenveto!D21","v":0},{"$f":"C62+1","v":1},{"$f":"D62+1","v":2},{"$f":"E62+1","v":3},4,5,6,7,8,9,10,11,12,13,{"$f":"P62+1","v":14},15,16,17,18,19,20,21,22,23,24,25,26,27,28,29,30,31,32,33,34,35,36,37,38,39,40,41,42,43,44,45,46,47,48,49,50,51,52,53,54,55,56,57,58,59,60,61,62,63,64,65,66,67,68,69,70,71,72,73,74,75,76,77,{"$f":"CB62+1","v":78},79,80,81,82,83,84,85,86,87,88,89,90,91,92,93,94,95,96,97,98,99,100,101,102,103,104,105,106,107,108,109,110,111,112,113,114,115,116,117,118,119,120,121,122,123,124,125,126,127,128,129,130,131,132]
[null,"Materiaalien ja rakentamisen kumulatiivinen hiilijalanjälki",0,{"$f":"'Valmistus, kuljetus, työmaa (A)'!C8*Yhteenveto!D13*Yhteenveto!D18","v":0},{"$f":"D63+E67+E69","v":0},{"$f":"E63+F67+F69","v":0},0,0,0,0,0,0,0,0,0,0,{"$f":"P63+Q67+Q69","v":0},0,0,0,0,0,0,0,0,0,0,0,0,0,0,0,0,0,0,0,0,0,0,0,0,0,0,0,0,0,0,0,0,0,0,0,0,0,0,0,0,0,0,0,0,0,0,0,0,0,0,0,0,0,0,0,0,0,0,0,0,0,0,0,{"$f":"CB63+CC67+CC69","v":0},0,0,0,0,0,0,0,0,0,0,0,0,0,0,0,0,0,0,0,0,0,0,0,0,0,0,0,0,0,0,0,0,0,0,0,0,0,0,0,0,0,0,0,0,0,0,0,0,0,0,0,0,0,0]
[null,"Energiankäytön kumulatiivinen hiilijalanjälki",0,{"$f":"C64+D68","v":{"$error":"#N/A"}},{"$f":"D64+E68","v":{"$error":"#N/A"}},{"$f":"E64+F68","v":{"$error":"#N/A"}},{"$error":"#N/A"},{"$error":"#N/A"},{"$error":"#N/A"},{"$error":"#N/A"},{"$error":"#N/A"},{"$error":"#N/A"},{"$error":"#N/A"},{"$error":"#N/A"},{"$error":"#N/A"},{"$error":"#N/A"},{"$f":"P64+Q68","v":{"$error":"#N/A"}},{"$error":"#N/A"},{"$error":"#N/A"},{"$error":"#N/A"},{"$error":"#N/A"},{"$error":"#N/A"},{"$error":"#N/A"},{"$error":"#N/A"},{"$error":"#N/A"},{"$error":"#N/A"},{"$error":"#N/A"},{"$error":"#N/A"},{"$error":"#N/A"},{"$error":"#N/A"},{"$error":"#N/A"},{"$error":"#N/A"},{"$error":"#N/A"},{"$error":"#N/A"},{"$error":"#N/A"},{"$error":"#N/A"},{"$error":"#N/A"},{"$error":"#N/A"},{"$error":"#N/A"},{"$error":"#N/A"},{"$error":"#N/A"},{"$error":"#N/A"},{"$error":"#N/A"},{"$error":"#N/A"},{"$error":"#N/A"},{"$error":"#N/A"},{"$error":"#N/A"},{"$error":"#N/A"},{"$error":"#N/A"},{"$error":"#N/A"},{"$error":"#N/A"},{"$error":"#N/A"},{"$error":"#N/A"},{"$error":"#N/A"},{"$error":"#N/A"},{"$error":"#N/A"},{"$error":"#N/A"},{"$error":"#N/A"},{"$error":"#N/A"},{"$error":"#N/A"},{"$error":"#N/A"},{"$error":"#N/A"},{"$error":"#N/A"},{"$error":"#N/A"},{"$error":"#N/A"},{"$error":"#N/A"},{"$error":"#N/A"},{"$error":"#N/A"},{"$error":"#N/A"},{"$error":"#N/A"},{"$error":"#N/A"},{"$error":"#N/A"},{"$error":"#N/A"},{"$error":"#N/A"},{"$error":"#N/A"},{"$error":"#N/A"},{"$error":"#N/A"},{"$error":"#N/A"},{"$error":"#N/A"},{"$error":"#N/A"},{"$f":"CB64+CC68","v":{"$error":"#N/A"}},{"$error":"#N/A"},{"$error":"#N/A"},{"$error":"#N/A"},{"$error":"#N/A"},{"$error":"#N/A"},{"$error":"#N/A"},{"$error":"#N/A"},{"$error":"#N/A"},{"$error":"#N/A"},{"$error":"#N/A"},{"$error":"#N/A"},{"$error":"#N/A"},{"$error":"#N/A"},{"$error":"#N/A"},{"$error":"#N/A"},{"$error":"#N/A"},{"$error":"#N/A"},{"$error":"#N/A"},{"$error":"#N/A"},{"$error":"#N/A"},{"$error":"#N/A"},{"$error":"#N/A"},{"$error":"#N/A"},{"$error":"#N/A"},{"$error":"#N/A"},{"$error":"#N/A"},{"$error":"#N/A"},{"$error":"#N/A"},{"$error":"#N/A"},{"$error":"#N/A"},{"$error":"#N/A"},{"$error":"#N/A"},{"$error":"#N/A"},{"$error":"#N/A"},{"$error":"#N/A"},{"$error":"#N/A"},{"$error":"#N/A"},{"$error":"#N/A"},{"$error":"#N/A"},{"$error":"#N/A"},{"$error":"#N/A"},{"$error":"#N/A"},{"$error":"#N/A"},{"$error":"#N/A"},{"$error":"#N/A"},{"$error":"#N/A"},{"$error":"#N/A"},{"$error":"#N/A"},{"$error":"#N/A"},{"$error":"#N/A"},{"$error":"#N/A"},{"$error":"#N/A"},{"$error":"#N/A"},{"$error":"#N/A"}]
[]
[]
[null,"purkamisen hiilijalanjälki",{"$f":"IF(C62=$C23,'Elinkaaren loppu (C+D)'!$D9*Yhteenveto!$D13*Yhteenveto!$D18,0)","v":0},{"$f":"IF(D62=$C23,'Elinkaaren loppu (C+D)'!$D9*Yhteenveto!$D13*Yhteenveto!$D18,0)","v":0},{"$f":"IF(E62=$C23,'Elinkaaren loppu (C+D)'!$D9*Yhteenveto!$D13*Yhteenveto!$D18,0)","v":0},{"$f":"IF(F62=$C23,'Elinkaaren loppu (C+D)'!$D9*Yhteenveto!$D13*Yhteenveto!$D18,0)","v":0},{"$f":"IF(G62=$C23,'Elinkaaren loppu (C+D)'!$D9*Yhteenveto!$D13*Yhteenveto!$D18,0)","v":0},{"$f":"IF(H62=$C23,'Elinkaaren loppu (C+D)'!$D9*Yhteenveto!$D13*Yhteenveto!$D18,0)","v":0},{"$f":"IF(I62=$C23,'Elinkaaren loppu (C+D)'!$D9*Yhteenveto!$D13*Yhteenveto!$D18,0)","v":0},{"$f":"IF(J62=$C23,'Elinkaaren loppu (C+D)'!$D9*Yhteenveto!$D13*Yhteenveto!$D18,0)","v":0},{"$f":"IF(K62=$C23,'Elinkaaren loppu (C+D)'!$D9*Yhteenveto!$D13*Yhteenveto!$D18,0)","v":0},{"$f":"IF(L62=$C23,'Elinkaaren loppu (C+D)'!$D9*Yhteenveto!$D13*Yhteenveto!$D18,0)","v":0},{"$f":"IF(M62=$C23,'Elinkaaren loppu (C+D)'!$D9*Yhteenveto!$D13*Yhteenveto!$D18,0)","v":0},{"$f":"IF(N62=$C23,'Elinkaaren loppu (C+D)'!$D9*Yhteenveto!$D13*Yhteenveto!$D18,0)","v":0},{"$f":"IF(O62=$C23,'Elinkaaren loppu (C+D)'!$D9*Yhteenveto!$D13*Yhteenveto!$D18,0)","v":0},{"$f":"IF(P62=$C23,'Elinkaaren loppu (C+D)'!$D9*Yhteenveto!$D13*Yhteenveto!$D18,0)","v":0},{"$f":"IF(Q62=$C23,'Elinkaaren loppu (C+D)'!$D9*Yhteenveto!$D13*Yhteenveto!$D18,0)","v":0},{"$f":"IF(R62=$C23,'Elinkaaren loppu (C+D)'!$D9*Yhteenveto!$D13*Yhteenveto!$D18,0)","v":0},{"$f":"IF(S62=$C23,'Elinkaaren loppu (C+D)'!$D9*Yhteenveto!$D13*Yhteenveto!$D18,0)","v":0},{"$f":"IF(T62=$C23,'Elinkaaren loppu (C+D)'!$D9*Yhteenveto!$D13*Yhteenveto!$D18,0)","v":0},{"$f":"IF(U62=$C23,'Elinkaaren loppu (C+D)'!$D9*Yhteenveto!$D13*Yhteenveto!$D18,0)","v":0},{"$f":"IF(V62=$C23,'Elinkaaren loppu (C+D)'!$D9*Yhteenveto!$D13*Yhteenveto!$D18,0)","v":0},{"$f":"IF(W62=$C23,'Elinkaaren loppu (C+D)'!$D9*Yhteenveto!$D13*Yhteenveto!$D18,0)","v":0},{"$f":"IF(X62=$C23,'Elinkaaren loppu (C+D)'!$D9*Yhteenveto!$D13*Yhteenveto!$D18,0)","v":0},{"$f":"IF(Y62=$C23,'Elinkaaren loppu (C+D)'!$D9*Yhteenveto!$D13*Yhteenveto!$D18,0)","v":0},{"$f":"IF(Z62=$C23,'Elinkaaren loppu (C+D)'!$D9*Yhteenveto!$D13*Yhteenveto!$D18,0)","v":0},{"$f":"IF(AA62=$C23,'Elinkaaren loppu (C+D)'!$D9*Yhteenveto!$D13*Yhteenveto!$D18,0)","v":0},{"$f":"IF(AB62=$C23,'Elinkaaren loppu (C+D)'!$D9*Yhteenveto!$D13*Yhteenveto!$D18,0)","v":0},{"$f":"IF(AC62=$C23,'Elinkaaren loppu (C+D)'!$D9*Yhteenveto!$D13*Yhteenveto!$D18,0)","v":0},{"$f":"IF(AD62=$C23,'Elinkaaren loppu (C+D)'!$D9*Yhteenveto!$D13*Yhteenveto!$D18,0)","v":0},{"$f":"IF(AE62=$C23,'Elinkaaren loppu (C+D)'!$D9*Yhteenveto!$D13*Yhteenveto!$D18,0)","v":0},{"$f":"IF(AF62=$C23,'Elinkaaren loppu (C+D)'!$D9*Yhteenveto!$D13*Yhteenveto!$D18,0)","v":0},{"$f":"IF(AG62=$C23,'Elinkaaren loppu (C+D)'!$D9*Yhteenveto!$D13*Yhteenveto!$D18,0)","v":0},{"$f":"IF(AH62=$C23,'Elinkaaren loppu (C+D)'!$D9*Yhteenveto!$D13*Yhteenveto!$D18,0)","v":0},{"$f":"IF(AI62=$C23,'Elinkaaren loppu (C+D)'!$D9*Yhteenveto!$D13*Yhteenveto!$D18,0)","v":0},{"$f":"IF(AJ62=$C23,'Elinkaaren loppu (C+D)'!$D9*Yhteenveto!$D13*Yhteenveto!$D18,0)","v":0},{"$f":"IF(AK62=$C23,'Elinkaaren loppu (C+D)'!$D9*Yhteenveto!$D13*Yhteenveto!$D18,0)","v":0},{"$f":"IF(AL62=$C23,'Elinkaaren loppu (C+D)'!$D9*Yhteenveto!$D13*Yhteenveto!$D18,0)","v":0},{"$f":"IF(AM62=$C23,'Elinkaaren loppu (C+D)'!$D9*Yhteenveto!$D13*Yhteenveto!$D18,0)","v":0},{"$f":"IF(AN62=$C23,'Elinkaaren loppu (C+D)'!$D9*Yhteenveto!$D13*Yhteenveto!$D18,0)","v":0},{"$f":"IF(AO62=$C23,'Elinkaaren loppu (C+D)'!$D9*Yhteenveto!$D13*Yhteenveto!$D18,0)","v":0},{"$f":"IF(AP62=$C23,'Elinkaaren loppu (C+D)'!$D9*Yhteenveto!$D13*Yhteenveto!$D18,0)","v":0},{"$f":"IF(AQ62=$C23,'Elinkaaren loppu (C+D)'!$D9*Yhteenveto!$D13*Yhteenveto!$D18,0)","v":0},{"$f":"IF(AR62=$C23,'Elinkaaren loppu (C+D)'!$D9*Yhteenveto!$D13*Yhteenveto!$D18,0)","v":0},{"$f":"IF(AS62=$C23,'Elinkaaren loppu (C+D)'!$D9*Yhteenveto!$D13*Yhteenveto!$D18,0)","v":0},{"$f":"IF(AT62=$C23,'Elinkaaren loppu (C+D)'!$D9*Yhteenveto!$D13*Yhteenveto!$D18,0)","v":0},{"$f":"IF(AU62=$C23,'Elinkaaren loppu (C+D)'!$D9*Yhteenveto!$D13*Yhteenveto!$D18,0)","v":0},{"$f":"IF(AV62=$C23,'Elinkaaren loppu (C+D)'!$D9*Yhteenveto!$D13*Yhteenveto!$D18,0)","v":0},{"$f":"IF(AW62=$C23,'Elinkaaren loppu (C+D)'!$D9*Yhteenveto!$D13*Yhteenveto!$D18,0)","v":0},{"$f":"IF(AX62=$C23,'Elinkaaren loppu (C+D)'!$D9*Yhteenveto!$D13*Yhteenveto!$D18,0)","v":0},{"$f":"IF(AY62=$C23,'Elinkaaren loppu (C+D)'!$D9*Yhteenveto!$D13*Yhteenveto!$D18,0)","v":0},{"$f":"IF(AZ62=$C23,'Elinkaaren loppu (C+D)'!$D9*Yhteenveto!$D13*Yhteenveto!$D18,0)","v":0},{"$f":"IF(BA62=$C23,'Elinkaaren loppu (C+D)'!$D9*Yhteenveto!$D13*Yhteenveto!$D18,0)","v":0},{"$f":"IF(BB62=$C23,'Elinkaaren loppu (C+D)'!$D9*Yhteenveto!$D13*Yhteenveto!$D18,0)","v":0},{"$f":"IF(BC62=$C23,'Elinkaaren loppu (C+D)'!$D9*Yhteenveto!$D13*Yhteenveto!$D18,0)","v":0},{"$f":"IF(BD62=$C23,'Elinkaaren loppu (C+D)'!$D9*Yhteenveto!$D13*Yhteenveto!$D18,0)","v":0},{"$f":"IF(BE62=$C23,'Elinkaaren loppu (C+D)'!$D9*Yhteenveto!$D13*Yhteenveto!$D18,0)","v":0},{"$f":"IF(BF62=$C23,'Elinkaaren loppu (C+D)'!$D9*Yhteenveto!$D13*Yhteenveto!$D18,0)","v":0},{"$f":"IF(BG62=$C23,'Elinkaaren loppu (C+D)'!$D9*Yhteenveto!$D13*Yhteenveto!$D18,0)","v":0},{"$f":"IF(BH62=$C23,'Elinkaaren loppu (C+D)'!$D9*Yhteenveto!$D13*Yhteenveto!$D18,0)","v":0},{"$f":"IF(BI62=$C23,'Elinkaaren loppu (C+D)'!$D9*Yhteenveto!$D13*Yhteenveto!$D18,0)","v":0},{"$f":"IF(BJ62=$C23,'Elinkaaren loppu (C+D)'!$D9*Yhteenveto!$D13*Yhteenveto!$D18,0)","v":0},{"$f":"IF(BK62=$C23,'Elinkaaren loppu (C+D)'!$D9*Yhteenveto!$D13*Yhteenveto!$D18,0)","v":0},{"$f":"IF(BL62=$C23,'Elinkaaren loppu (C+D)'!$D9*Yhteenveto!$D13*Yhteenveto!$D18,0)","v":0},{"$f":"IF(BM62=$C23,'Elinkaaren loppu (C+D)'!$D9*Yhteenveto!$D13*Yhteenveto!$D18,0)","v":0},{"$f":"IF(BN62=$C23,'Elinkaaren loppu (C+D)'!$D9*Yhteenveto!$D13*Yhteenveto!$D18,0)","v":0},{"$f":"IF(BO62=$C23,'Elinkaaren loppu (C+D)'!$D9*Yhteenveto!$D13*Yhteenveto!$D18,0)","v":0},{"$f":"IF(BP62=$C23,'Elinkaaren loppu (C+D)'!$D9*Yhteenveto!$D13*Yhteenveto!$D18,0)","v":0},{"$f":"IF(BQ62=$C23,'Elinkaaren loppu (C+D)'!$D9*Yhteenveto!$D13*Yhteenveto!$D18,0)","v":0},{"$f":"IF(BR62=$C23,'Elinkaaren loppu (C+D)'!$D9*Yhteenveto!$D13*Yhteenveto!$D18,0)","v":0},{"$f":"IF(BS62=$C23,'Elinkaaren loppu (C+D)'!$D9*Yhteenveto!$D13*Yhteenveto!$D18,0)","v":0},{"$f":"IF(BT62=$C23,'Elinkaaren loppu (C+D)'!$D9*Yhteenveto!$D13*Yhteenveto!$D18,0)","v":0},{"$f":"IF(BU62=$C23,'Elinkaaren loppu (C+D)'!$D9*Yhteenveto!$D13*Yhteenveto!$D18,0)","v":0},{"$f":"IF(BV62=$C23,'Elinkaaren loppu (C+D)'!$D9*Yhteenveto!$D13*Yhteenveto!$D18,0)","v":0},{"$f":"IF(BW62=$C23,'Elinkaaren loppu (C+D)'!$D9*Yhteenveto!$D13*Yhteenveto!$D18,0)","v":0},{"$f":"IF(BX62=$C23,'Elinkaaren loppu (C+D)'!$D9*Yhteenveto!$D13*Yhteenveto!$D18,0)","v":0},{"$f":"IF(BY62=$C23,'Elinkaaren loppu (C+D)'!$D9*Yhteenveto!$D13*Yhteenveto!$D18,0)","v":0},{"$f":"IF(BZ62=$C23,'Elinkaaren loppu (C+D)'!$D9*Yhteenveto!$D13*Yhteenveto!$D18,0)","v":0},{"$f":"IF(CA62=$C23,'Elinkaaren loppu (C+D)'!$D9*Yhteenveto!$D13*Yhteenveto!$D18,0)","v":0},{"$f":"IF(CB62=$C23,'Elinkaaren loppu (C+D)'!$D9*Yhteenveto!$D13*Yhteenveto!$D18,0)","v":0},{"$f":"IF(CC62=$C23,'Elinkaaren loppu (C+D)'!$D9*Yhteenveto!$D13*Yhteenveto!$D18,0)","v":0},{"$f":"IF(CD62=$C23,'Elinkaaren loppu (C+D)'!$D9*Yhteenveto!$D13*Yhteenveto!$D18,0)","v":0},{"$f":"IF(CE62=$C23,'Elinkaaren loppu (C+D)'!$D9*Yhteenveto!$D13*Yhteenveto!$D18,0)","v":0},{"$f":"IF(CF62=$C23,'Elinkaaren loppu (C+D)'!$D9*Yhteenveto!$D13*Yhteenveto!$D18,0)","v":0},{"$f":"IF(CG62=$C23,'Elinkaaren loppu (C+D)'!$D9*Yhteenveto!$D13*Yhteenveto!$D18,0)","v":0},{"$f":"IF(CH62=$C23,'Elinkaaren loppu (C+D)'!$D9*Yhteenveto!$D13*Yhteenveto!$D18,0)","v":0},{"$f":"IF(CI62=$C23,'Elinkaaren loppu (C+D)'!$D9*Yhteenveto!$D13*Yhteenveto!$D18,0)","v":0},{"$f":"IF(CJ62=$C23,'Elinkaaren loppu (C+D)'!$D9*Yhteenveto!$D13*Yhteenveto!$D18,0)","v":0},{"$f":"IF(CK62=$C23,'Elinkaaren loppu (C+D)'!$D9*Yhteenveto!$D13*Yhteenveto!$D18,0)","v":0},{"$f":"IF(CL62=$C23,'Elinkaaren loppu (C+D)'!$D9*Yhteenveto!$D13*Yhteenveto!$D18,0)","v":0},{"$f":"IF(CM62=$C23,'Elinkaaren loppu (C+D)'!$D9*Yhteenveto!$D13*Yhteenveto!$D18,0)","v":0},{"$f":"IF(CN62=$C23,'Elinkaaren loppu (C+D)'!$D9*Yhteenveto!$D13*Yhteenveto!$D18,0)","v":0},{"$f":"IF(CO62=$C23,'Elinkaaren loppu (C+D)'!$D9*Yhteenveto!$D13*Yhteenveto!$D18,0)","v":0},{"$f":"IF(CP62=$C23,'Elinkaaren loppu (C+D)'!$D9*Yhteenveto!$D13*Yhteenveto!$D18,0)","v":0},{"$f":"IF(CQ62=$C23,'Elinkaaren loppu (C+D)'!$D9*Yhteenveto!$D13*Yhteenveto!$D18,0)","v":0},{"$f":"IF(CR62=$C23,'Elinkaaren loppu (C+D)'!$D9*Yhteenveto!$D13*Yhteenveto!$D18,0)","v":0},{"$f":"IF(CS62=$C23,'Elinkaaren loppu (C+D)'!$D9*Yhteenveto!$D13*Yhteenveto!$D18,0)","v":0},{"$f":"IF(CT62=$C23,'Elinkaaren loppu (C+D)'!$D9*Yhteenveto!$D13*Yhteenveto!$D18,0)","v":0},{"$f":"IF(CU62=$C23,'Elinkaaren loppu (C+D)'!$D9*Yhteenveto!$D13*Yhteenveto!$D18,0)","v":0},{"$f":"IF(CV62=$C23,'Elinkaaren loppu (C+D)'!$D9*Yhteenveto!$D13*Yhteenveto!$D18,0)","v":0},{"$f":"IF(CW62=$C23,'Elinkaaren loppu (C+D)'!$D9*Yhteenveto!$D13*Yhteenveto!$D18,0)","v":0},{"$f":"IF(CX62=$C23,'Elinkaaren loppu (C+D)'!$D9*Yhteenveto!$D13*Yhteenveto!$D18,0)","v":0},{"$f":"IF(CY62=$C23,'Elinkaaren loppu (C+D)'!$D9*Yhteenveto!$D13*Yhteenveto!$D18,0)","v":0},{"$f":"IF(CZ62=$C23,'Elinkaaren loppu (C+D)'!$D9*Yhteenveto!$D13*Yhteenveto!$D18,0)","v":0},{"$f":"IF(DA62=$C23,'Elinkaaren loppu (C+D)'!$D9*Yhteenveto!$D13*Yhteenveto!$D18,0)","v":0},{"$f":"IF(DB62=$C23,'Elinkaaren loppu (C+D)'!$D9*Yhteenveto!$D13*Yhteenveto!$D18,0)","v":0},{"$f":"IF(DC62=$C23,'Elinkaaren loppu (C+D)'!$D9*Yhteenveto!$D13*Yhteenveto!$D18,0)","v":0},{"$f":"IF(DD62=$C23,'Elinkaaren loppu (C+D)'!$D9*Yhteenveto!$D13*Yhteenveto!$D18,0)","v":0},{"$f":"IF(DE62=$C23,'Elinkaaren loppu (C+D)'!$D9*Yhteenveto!$D13*Yhteenveto!$D18,0)","v":0},{"$f":"IF(DF62=$C23,'Elinkaaren loppu (C+D)'!$D9*Yhteenveto!$D13*Yhteenveto!$D18,0)","v":0},{"$f":"IF(DG62=$C23,'Elinkaaren loppu (C+D)'!$D9*Yhteenveto!$D13*Yhteenveto!$D18,0)","v":0},{"$f":"IF(DH62=$C23,'Elinkaaren loppu (C+D)'!$D9*Yhteenveto!$D13*Yhteenveto!$D18,0)","v":0},{"$f":"IF(DI62=$C23,'Elinkaaren loppu (C+D)'!$D9*Yhteenveto!$D13*Yhteenveto!$D18,0)","v":0},{"$f":"IF(DJ62=$C23,'Elinkaaren loppu (C+D)'!$D9*Yhteenveto!$D13*Yhteenveto!$D18,0)","v":0},{"$f":"IF(DK62=$C23,'Elinkaaren loppu (C+D)'!$D9*Yhteenveto!$D13*Yhteenveto!$D18,0)","v":0},{"$f":"IF(DL62=$C23,'Elinkaaren loppu (C+D)'!$D9*Yhteenveto!$D13*Yhteenveto!$D18,0)","v":0},{"$f":"IF(DM62=$C23,'Elinkaaren loppu (C+D)'!$D9*Yhteenveto!$D13*Yhteenveto!$D18,0)","v":0},{"$f":"IF(DN62=$C23,'Elinkaaren loppu (C+D)'!$D9*Yhteenveto!$D13*Yhteenveto!$D18,0)","v":0},{"$f":"IF(DO62=$C23,'Elinkaaren loppu (C+D)'!$D9*Yhteenveto!$D13*Yhteenveto!$D18,0)","v":0},{"$f":"IF(DP62=$C23,'Elinkaaren loppu (C+D)'!$D9*Yhteenveto!$D13*Yhteenveto!$D18,0)","v":0},{"$f":"IF(DQ62=$C23,'Elinkaaren loppu (C+D)'!$D9*Yhteenveto!$D13*Yhteenveto!$D18,0)","v":0},{"$f":"IF(DR62=$C23,'Elinkaaren loppu (C+D)'!$D9*Yhteenveto!$D13*Yhteenveto!$D18,0)","v":0},{"$f":"IF(DS62=$C23,'Elinkaaren loppu (C+D)'!$D9*Yhteenveto!$D13*Yhteenveto!$D18,0)","v":0},{"$f":"IF(DT62=$C23,'Elinkaaren loppu (C+D)'!$D9*Yhteenveto!$D13*Yhteenveto!$D18,0)","v":0},{"$f":"IF(DU62=$C23,'Elinkaaren loppu (C+D)'!$D9*Yhteenveto!$D13*Yhteenveto!$D18,0)","v":0},{"$f":"IF(DV62=$C23,'Elinkaaren loppu (C+D)'!$D9*Yhteenveto!$D13*Yhteenveto!$D18,0)","v":0},{"$f":"IF(DW62=$C23,'Elinkaaren loppu (C+D)'!$D9*Yhteenveto!$D13*Yhteenveto!$D18,0)","v":0},{"$f":"IF(DX62=$C23,'Elinkaaren loppu (C+D)'!$D9*Yhteenveto!$D13*Yhteenveto!$D18,0)","v":0},{"$f":"IF(DY62=$C23,'Elinkaaren loppu (C+D)'!$D9*Yhteenveto!$D13*Yhteenveto!$D18,0)","v":0},{"$f":"IF(DZ62=$C23,'Elinkaaren loppu (C+D)'!$D9*Yhteenveto!$D13*Yhteenveto!$D18,0)","v":0},{"$f":"IF(EA62=$C23,'Elinkaaren loppu (C+D)'!$D9*Yhteenveto!$D13*Yhteenveto!$D18,0)","v":0},{"$f":"IF(EB62=$C23,'Elinkaaren loppu (C+D)'!$D9*Yhteenveto!$D13*Yhteenveto!$D18,0)","v":0},{"$f":"IF(EC62=$C23,'Elinkaaren loppu (C+D)'!$D9*Yhteenveto!$D13*Yhteenveto!$D18,0)","v":0},{"$f":"IF(ED62=$C23,'Elinkaaren loppu (C+D)'!$D9*Yhteenveto!$D13*Yhteenveto!$D18,0)","v":0},{"$f":"IF(EE62=$C23,'Elinkaaren loppu (C+D)'!$D9*Yhteenveto!$D13*Yhteenveto!$D18,0)","v":0},{"$f":"IF(EF62=$C23,'Elinkaaren loppu (C+D)'!EG9*Yhteenveto!EG13*Yhteenveto!EG18,\"\")","v":""},{"$f":"IF(EG62=$C23,'Elinkaaren loppu (C+D)'!EH9*Yhteenveto!EH13*Yhteenveto!EH18,\"\")","v":""},{"$f":"IF(EH62=$C23,'Elinkaaren loppu (C+D)'!EI9*Yhteenveto!EI13*Yhteenveto!EI18,\"\")","v":""},{"$f":"IF(EI62=$C23,'Elinkaaren loppu (C+D)'!EJ9*Yhteenveto!EJ13*Yhteenveto!EJ18,\"\")","v":""}]
[null,"Käytön vuotuinen energia",0,{"$f":"HLOOKUP(ROUNDDOWN(D62,-1),$C5:$Q9,2,FALSE)*'Käyttö (B)'!$C12*Yhteenveto!$D13+HLOOKUP(ROUNDDOWN(D62,-1),$C5:$Q9,3,FALSE)*'Käyttö (B)'!$C13*Yhteenveto!$D13+HLOOKUP(ROUNDDOWN(D62,-1),$C5:$Q9,4,FALSE)*'Käyttö (B)'!$C14*Yhteenveto!$D13","v":{"$error":"#N/A"}},{"$f":"HLOOKUP(ROUNDDOWN(E62,-1),$C5:$Q9,2,FALSE)*'Käyttö (B)'!$C12*Yhteenveto!$D13+HLOOKUP(ROUNDDOWN(E62,-1),$C5:$Q9,3,FALSE)*'Käyttö (B)'!$C13*Yhteenveto!$D13+HLOOKUP(ROUNDDOWN(E62,-1),$C5:$Q9,4,FALSE)*'Käyttö (B)'!$C14*Yhteenveto!$D13","v":{"$error":"#N/A"}},{"$f":"HLOOKUP(ROUNDDOWN(F62,-1),$C5:$Q9,2,FALSE)*'Käyttö (B)'!$C12*Yhteenveto!$D13+HLOOKUP(ROUNDDOWN(F62,-1),$C5:$Q9,3,FALSE)*'Käyttö (B)'!$C13*Yhteenveto!$D13+HLOOKUP(ROUNDDOWN(F62,-1),$C5:$Q9,4,FALSE)*'Käyttö (B)'!$C14*Yhteenveto!$D13","v":{"$error":"#N/A"}},{"$f":"HLOOKUP(ROUNDDOWN(G62,-1),$C5:$Q9,2,FALSE)*'Käyttö (B)'!$C12*Yhteenveto!$D13+HLOOKUP(ROUNDDOWN(G62,-1),$C5:$Q9,3,FALSE)*'Käyttö (B)'!$C13*Yhteenveto!$D13+HLOOKUP(ROUNDDOWN(G62,-1),$C5:$Q9,4,FALSE)*'Käyttö (B)'!$C14*Yhteenveto!$D13","v":{"$error":"#N/A"}},{"$f":"HLOOKUP(ROUNDDOWN(H62,-1),$C5:$Q9,2,FALSE)*'Käyttö (B)'!$C12*Yhteenveto!$D13+HLOOKUP(ROUNDDOWN(H62,-1),$C5:$Q9,3,FALSE)*'Käyttö (B)'!$C13*Yhteenveto!$D13+HLOOKUP(ROUNDDOWN(H62,-1),$C5:$Q9,4,FALSE)*'Käyttö (B)'!$C14*Yhteenveto!$D13","v":{"$error":"#N/A"}},{"$f":"HLOOKUP(ROUNDDOWN(I62,-1),$C5:$Q9,2,FALSE)*'Käyttö (B)'!$C12*Yhteenveto!$D13+HLOOKUP(ROUNDDOWN(I62,-1),$C5:$Q9,3,FALSE)*'Käyttö (B)'!$C13*Yhteenveto!$D13+HLOOKUP(ROUNDDOWN(I62,-1),$C5:$Q9,4,FALSE)*'Käyttö (B)'!$C14*Yhteenveto!$D13","v":{"$error":"#N/A"}},{"$f":"HLOOKUP(ROUNDDOWN(J62,-1),$C5:$Q9,2,FALSE)*'Käyttö (B)'!$C12*Yhteenveto!$D13+HLOOKUP(ROUNDDOWN(J62,-1),$C5:$Q9,3,FALSE)*'Käyttö (B)'!$C13*Yhteenveto!$D13+HLOOKUP(ROUNDDOWN(J62,-1),$C5:$Q9,4,FALSE)*'Käyttö (B)'!$C14*Yhteenveto!$D13","v":{"$error":"#N/A"}},{"$f":"HLOOKUP(ROUNDDOWN(K62,-1),$C5:$Q9,2,FALSE)*'Käyttö (B)'!$C12*Yhteenveto!$D13+HLOOKUP(ROUNDDOWN(K62,-1),$C5:$Q9,3,FALSE)*'Käyttö (B)'!$C13*Yhteenveto!$D13+HLOOKUP(ROUNDDOWN(K62,-1),$C5:$Q9,4,FALSE)*'Käyttö (B)'!$C14*Yhteenveto!$D13","v":{"$error":"#N/A"}},{"$f":"HLOOKUP(ROUNDDOWN(L62,-1),$C5:$Q9,2,FALSE)*'Käyttö (B)'!$C12*Yhteenveto!$D13+HLOOKUP(ROUNDDOWN(L62,-1),$C5:$Q9,3,FALSE)*'Käyttö (B)'!$C13*Yhteenveto!$D13+HLOOKUP(ROUNDDOWN(L62,-1),$C5:$Q9,4,FALSE)*'Käyttö (B)'!$C14*Yhteenveto!$D13","v":{"$error":"#N/A"}},{"$f":"HLOOKUP(ROUNDDOWN(M62,-1),$C5:$Q9,2,FALSE)*'Käyttö (B)'!$C12*Yhteenveto!$D13+HLOOKUP(ROUNDDOWN(M62,-1),$C5:$Q9,3,FALSE)*'Käyttö (B)'!$C13*Yhteenveto!$D13+HLOOKUP(ROUNDDOWN(M62,-1),$C5:$Q9,4,FALSE)*'Käyttö (B)'!$C14*Yhteenveto!$D13","v":{"$error":"#N/A"}},{"$f":"HLOOKUP(ROUNDDOWN(N62,-1),$C5:$Q9,2,FALSE)*'Käyttö (B)'!$C12*Yhteenveto!$D13+HLOOKUP(ROUNDDOWN(N62,-1),$C5:$Q9,3,FALSE)*'Käyttö (B)'!$C13*Yhteenveto!$D13+HLOOKUP(ROUNDDOWN(N62,-1),$C5:$Q9,4,FALSE)*'Käyttö (B)'!$C14*Yhteenveto!$D13","v":{"$error":"#N/A"}},{"$f":"HLOOKUP(ROUNDDOWN(O62,-1),$C5:$Q9,2,FALSE)*'Käyttö (B)'!$C12*Yhteenveto!$D13+HLOOKUP(ROUNDDOWN(O62,-1),$C5:$Q9,3,FALSE)*'Käyttö (B)'!$C13*Yhteenveto!$D13+HLOOKUP(ROUNDDOWN(O62,-1),$C5:$Q9,4,FALSE)*'Käyttö (B)'!$C14*Yhteenveto!$D13","v":{"$error":"#N/A"}},{"$f":"HLOOKUP(ROUNDDOWN(P62,-1),$C5:$Q9,2,FALSE)*'Käyttö (B)'!$C12*Yhteenveto!$D13+HLOOKUP(ROUNDDOWN(P62,-1),$C5:$Q9,3,FALSE)*'Käyttö (B)'!$C13*Yhteenveto!$D13+HLOOKUP(ROUNDDOWN(P62,-1),$C5:$Q9,4,FALSE)*'Käyttö (B)'!$C14*Yhteenveto!$D13","v":{"$error":"#N/A"}},{"$f":"HLOOKUP(ROUNDDOWN(Q62,-1),$C5:$Q9,2,FALSE)*'Käyttö (B)'!$C12*Yhteenveto!$D13+HLOOKUP(ROUNDDOWN(Q62,-1),$C5:$Q9,3,FALSE)*'Käyttö (B)'!$C13*Yhteenveto!$D13+HLOOKUP(ROUNDDOWN(Q62,-1),$C5:$Q9,4,FALSE)*'Käyttö (B)'!$C14*Yhteenveto!$D13","v":{"$error":"#N/A"}},{"$f":"HLOOKUP(ROUNDDOWN(R62,-1),$C5:$Q9,2,FALSE)*'Käyttö (B)'!$C12*Yhteenveto!$D13+HLOOKUP(ROUNDDOWN(R62,-1),$C5:$Q9,3,FALSE)*'Käyttö (B)'!$C13*Yhteenveto!$D13+HLOOKUP(ROUNDDOWN(R62,-1),$C5:$Q9,4,FALSE)*'Käyttö (B)'!$C14*Yhteenveto!$D13","v":{"$error":"#N/A"}},{"$f":"HLOOKUP(ROUNDDOWN(S62,-1),$C5:$Q9,2,FALSE)*'Käyttö (B)'!$C12*Yhteenveto!$D13+HLOOKUP(ROUNDDOWN(S62,-1),$C5:$Q9,3,FALSE)*'Käyttö (B)'!$C13*Yhteenveto!$D13+HLOOKUP(ROUNDDOWN(S62,-1),$C5:$Q9,4,FALSE)*'Käyttö (B)'!$C14*Yhteenveto!$D13","v":{"$error":"#N/A"}},{"$f":"HLOOKUP(ROUNDDOWN(T62,-1),$C5:$Q9,2,FALSE)*'Käyttö (B)'!$C12*Yhteenveto!$D13+HLOOKUP(ROUNDDOWN(T62,-1),$C5:$Q9,3,FALSE)*'Käyttö (B)'!$C13*Yhteenveto!$D13+HLOOKUP(ROUNDDOWN(T62,-1),$C5:$Q9,4,FALSE)*'Käyttö (B)'!$C14*Yhteenveto!$D13","v":{"$error":"#N/A"}},{"$f":"HLOOKUP(ROUNDDOWN(U62,-1),$C5:$Q9,2,FALSE)*'Käyttö (B)'!$C12*Yhteenveto!$D13+HLOOKUP(ROUNDDOWN(U62,-1),$C5:$Q9,3,FALSE)*'Käyttö (B)'!$C13*Yhteenveto!$D13+HLOOKUP(ROUNDDOWN(U62,-1),$C5:$Q9,4,FALSE)*'Käyttö (B)'!$C14*Yhteenveto!$D13","v":{"$error":"#N/A"}},{"$f":"HLOOKUP(ROUNDDOWN(V62,-1),$C5:$Q9,2,FALSE)*'Käyttö (B)'!$C12*Yhteenveto!$D13+HLOOKUP(ROUNDDOWN(V62,-1),$C5:$Q9,3,FALSE)*'Käyttö (B)'!$C13*Yhteenveto!$D13+HLOOKUP(ROUNDDOWN(V62,-1),$C5:$Q9,4,FALSE)*'Käyttö (B)'!$C14*Yhteenveto!$D13","v":{"$error":"#N/A"}},{"$f":"HLOOKUP(ROUNDDOWN(W62,-1),$C5:$Q9,2,FALSE)*'Käyttö (B)'!$C12*Yhteenveto!$D13+HLOOKUP(ROUNDDOWN(W62,-1),$C5:$Q9,3,FALSE)*'Käyttö (B)'!$C13*Yhteenveto!$D13+HLOOKUP(ROUNDDOWN(W62,-1),$C5:$Q9,4,FALSE)*'Käyttö (B)'!$C14*Yhteenveto!$D13","v":{"$error":"#N/A"}},{"$f":"HLOOKUP(ROUNDDOWN(X62,-1),$C5:$Q9,2,FALSE)*'Käyttö (B)'!$C12*Yhteenveto!$D13+HLOOKUP(ROUNDDOWN(X62,-1),$C5:$Q9,3,FALSE)*'Käyttö (B)'!$C13*Yhteenveto!$D13+HLOOKUP(ROUNDDOWN(X62,-1),$C5:$Q9,4,FALSE)*'Käyttö (B)'!$C14*Yhteenveto!$D13","v":{"$error":"#N/A"}},{"$f":"HLOOKUP(ROUNDDOWN(Y62,-1),$C5:$Q9,2,FALSE)*'Käyttö (B)'!$C12*Yhteenveto!$D13+HLOOKUP(ROUNDDOWN(Y62,-1),$C5:$Q9,3,FALSE)*'Käyttö (B)'!$C13*Yhteenveto!$D13+HLOOKUP(ROUNDDOWN(Y62,-1),$C5:$Q9,4,FALSE)*'Käyttö (B)'!$C14*Yhteenveto!$D13","v":{"$error":"#N/A"}},{"$f":"HLOOKUP(ROUNDDOWN(Z62,-1),$C5:$Q9,2,FALSE)*'Käyttö (B)'!$C12*Yhteenveto!$D13+HLOOKUP(ROUNDDOWN(Z62,-1),$C5:$Q9,3,FALSE)*'Käyttö (B)'!$C13*Yhteenveto!$D13+HLOOKUP(ROUNDDOWN(Z62,-1),$C5:$Q9,4,FALSE)*'Käyttö (B)'!$C14*Yhteenveto!$D13","v":{"$error":"#N/A"}},{"$f":"HLOOKUP(ROUNDDOWN(AA62,-1),$C5:$Q9,2,FALSE)*'Käyttö (B)'!$C12*Yhteenveto!$D13+HLOOKUP(ROUNDDOWN(AA62,-1),$C5:$Q9,3,FALSE)*'Käyttö (B)'!$C13*Yhteenveto!$D13+HLOOKUP(ROUNDDOWN(AA62,-1),$C5:$Q9,4,FALSE)*'Käyttö (B)'!$C14*Yhteenveto!$D13","v":{"$error":"#N/A"}},{"$f":"HLOOKUP(ROUNDDOWN(AB62,-1),$C5:$Q9,2,FALSE)*'Käyttö (B)'!$C12*Yhteenveto!$D13+HLOOKUP(ROUNDDOWN(AB62,-1),$C5:$Q9,3,FALSE)*'Käyttö (B)'!$C13*Yhteenveto!$D13+HLOOKUP(ROUNDDOWN(AB62,-1),$C5:$Q9,4,FALSE)*'Käyttö (B)'!$C14*Yhteenveto!$D13","v":{"$error":"#N/A"}},{"$f":"HLOOKUP(ROUNDDOWN(AC62,-1),$C5:$Q9,2,FALSE)*'Käyttö (B)'!$C12*Yhteenveto!$D13+HLOOKUP(ROUNDDOWN(AC62,-1),$C5:$Q9,3,FALSE)*'Käyttö (B)'!$C13*Yhteenveto!$D13+HLOOKUP(ROUNDDOWN(AC62,-1),$C5:$Q9,4,FALSE)*'Käyttö (B)'!$C14*Yhteenveto!$D13","v":{"$error":"#N/A"}},{"$f":"HLOOKUP(ROUNDDOWN(AD62,-1),$C5:$Q9,2,FALSE)*'Käyttö (B)'!$C12*Yhteenveto!$D13+HLOOKUP(ROUNDDOWN(AD62,-1),$C5:$Q9,3,FALSE)*'Käyttö (B)'!$C13*Yhteenveto!$D13+HLOOKUP(ROUNDDOWN(AD62,-1),$C5:$Q9,4,FALSE)*'Käyttö (B)'!$C14*Yhteenveto!$D13","v":{"$error":"#N/A"}},{"$f":"HLOOKUP(ROUNDDOWN(AE62,-1),$C5:$Q9,2,FALSE)*'Käyttö (B)'!$C12*Yhteenveto!$D13+HLOOKUP(ROUNDDOWN(AE62,-1),$C5:$Q9,3,FALSE)*'Käyttö (B)'!$C13*Yhteenveto!$D13+HLOOKUP(ROUNDDOWN(AE62,-1),$C5:$Q9,4,FALSE)*'Käyttö (B)'!$C14*Yhteenveto!$D13","v":{"$error":"#N/A"}},{"$f":"HLOOKUP(ROUNDDOWN(AF62,-1),$C5:$Q9,2,FALSE)*'Käyttö (B)'!$C12*Yhteenveto!$D13+HLOOKUP(ROUNDDOWN(AF62,-1),$C5:$Q9,3,FALSE)*'Käyttö (B)'!$C13*Yhteenveto!$D13+HLOOKUP(ROUNDDOWN(AF62,-1),$C5:$Q9,4,FALSE)*'Käyttö (B)'!$C14*Yhteenveto!$D13","v":{"$error":"#N/A"}},{"$f":"HLOOKUP(ROUNDDOWN(AG62,-1),$C5:$Q9,2,FALSE)*'Käyttö (B)'!$C12*Yhteenveto!$D13+HLOOKUP(ROUNDDOWN(AG62,-1),$C5:$Q9,3,FALSE)*'Käyttö (B)'!$C13*Yhteenveto!$D13+HLOOKUP(ROUNDDOWN(AG62,-1),$C5:$Q9,4,FALSE)*'Käyttö (B)'!$C14*Yhteenveto!$D13","v":{"$error":"#N/A"}},{"$f":"HLOOKUP(ROUNDDOWN(AH62,-1),$C5:$Q9,2,FALSE)*'Käyttö (B)'!$C12*Yhteenveto!$D13+HLOOKUP(ROUNDDOWN(AH62,-1),$C5:$Q9,3,FALSE)*'Käyttö (B)'!$C13*Yhteenveto!$D13+HLOOKUP(ROUNDDOWN(AH62,-1),$C5:$Q9,4,FALSE)*'Käyttö (B)'!$C14*Yhteenveto!$D13","v":{"$error":"#N/A"}},{"$f":"HLOOKUP(ROUNDDOWN(AI62,-1),$C5:$Q9,2,FALSE)*'Käyttö (B)'!$C12*Yhteenveto!$D13+HLOOKUP(ROUNDDOWN(AI62,-1),$C5:$Q9,3,FALSE)*'Käyttö (B)'!$C13*Yhteenveto!$D13+HLOOKUP(ROUNDDOWN(AI62,-1),$C5:$Q9,4,FALSE)*'Käyttö (B)'!$C14*Yhteenveto!$D13","v":{"$error":"#N/A"}},{"$f":"HLOOKUP(ROUNDDOWN(AJ62,-1),$C5:$Q9,2,FALSE)*'Käyttö (B)'!$C12*Yhteenveto!$D13+HLOOKUP(ROUNDDOWN(AJ62,-1),$C5:$Q9,3,FALSE)*'Käyttö (B)'!$C13*Yhteenveto!$D13+HLOOKUP(ROUNDDOWN(AJ62,-1),$C5:$Q9,4,FALSE)*'Käyttö (B)'!$C14*Yhteenveto!$D13","v":{"$error":"#N/A"}},{"$f":"HLOOKUP(ROUNDDOWN(AK62,-1),$C5:$Q9,2,FALSE)*'Käyttö (B)'!$C12*Yhteenveto!$D13+HLOOKUP(ROUNDDOWN(AK62,-1),$C5:$Q9,3,FALSE)*'Käyttö (B)'!$C13*Yhteenveto!$D13+HLOOKUP(ROUNDDOWN(AK62,-1),$C5:$Q9,4,FALSE)*'Käyttö (B)'!$C14*Yhteenveto!$D13","v":{"$error":"#N/A"}},{"$f":"HLOOKUP(ROUNDDOWN(AL62,-1),$C5:$Q9,2,FALSE)*'Käyttö (B)'!$C12*Yhteenveto!$D13+HLOOKUP(ROUNDDOWN(AL62,-1),$C5:$Q9,3,FALSE)*'Käyttö (B)'!$C13*Yhteenveto!$D13+HLOOKUP(ROUNDDOWN(AL62,-1),$C5:$Q9,4,FALSE)*'Käyttö (B)'!$C14*Yhteenveto!$D13","v":{"$error":"#N/A"}},{"$f":"HLOOKUP(ROUNDDOWN(AM62,-1),$C5:$Q9,2,FALSE)*'Käyttö (B)'!$C12*Yhteenveto!$D13+HLOOKUP(ROUNDDOWN(AM62,-1),$C5:$Q9,3,FALSE)*'Käyttö (B)'!$C13*Yhteenveto!$D13+HLOOKUP(ROUNDDOWN(AM62,-1),$C5:$Q9,4,FALSE)*'Käyttö (B)'!$C14*Yhteenveto!$D13","v":{"$error":"#N/A"}},{"$f":"HLOOKUP(ROUNDDOWN(AN62,-1),$C5:$Q9,2,FALSE)*'Käyttö (B)'!$C12*Yhteenveto!$D13+HLOOKUP(ROUNDDOWN(AN62,-1),$C5:$Q9,3,FALSE)*'Käyttö (B)'!$C13*Yhteenveto!$D13+HLOOKUP(ROUNDDOWN(AN62,-1),$C5:$Q9,4,FALSE)*'Käyttö (B)'!$C14*Yhteenveto!$D13","v":{"$error":"#N/A"}},{"$f":"HLOOKUP(ROUNDDOWN(AO62,-1),$C5:$Q9,2,FALSE)*'Käyttö (B)'!$C12*Yhteenveto!$D13+HLOOKUP(ROUNDDOWN(AO62,-1),$C5:$Q9,3,FALSE)*'Käyttö (B)'!$C13*Yhteenveto!$D13+HLOOKUP(ROUNDDOWN(AO62,-1),$C5:$Q9,4,FALSE)*'Käyttö (B)'!$C14*Yhteenveto!$D13","v":{"$error":"#N/A"}},{"$f":"HLOOKUP(ROUNDDOWN(AP62,-1),$C5:$Q9,2,FALSE)*'Käyttö (B)'!$C12*Yhteenveto!$D13+HLOOKUP(ROUNDDOWN(AP62,-1),$C5:$Q9,3,FALSE)*'Käyttö (B)'!$C13*Yhteenveto!$D13+HLOOKUP(ROUNDDOWN(AP62,-1),$C5:$Q9,4,FALSE)*'Käyttö (B)'!$C14*Yhteenveto!$D13","v":{"$error":"#N/A"}},{"$f":"HLOOKUP(ROUNDDOWN(AQ62,-1),$C5:$Q9,2,FALSE)*'Käyttö (B)'!$C12*Yhteenveto!$D13+HLOOKUP(ROUNDDOWN(AQ62,-1),$C5:$Q9,3,FALSE)*'Käyttö (B)'!$C13*Yhteenveto!$D13+HLOOKUP(ROUNDDOWN(AQ62,-1),$C5:$Q9,4,FALSE)*'Käyttö (B)'!$C14*Yhteenveto!$D13","v":{"$error":"#N/A"}},{"$f":"HLOOKUP(ROUNDDOWN(AR62,-1),$C5:$Q9,2,FALSE)*'Käyttö (B)'!$C12*Yhteenveto!$D13+HLOOKUP(ROUNDDOWN(AR62,-1),$C5:$Q9,3,FALSE)*'Käyttö (B)'!$C13*Yhteenveto!$D13+HLOOKUP(ROUNDDOWN(AR62,-1),$C5:$Q9,4,FALSE)*'Käyttö (B)'!$C14*Yhteenveto!$D13","v":{"$error":"#N/A"}},{"$f":"HLOOKUP(ROUNDDOWN(AS62,-1),$C5:$Q9,2,FALSE)*'Käyttö (B)'!$C12*Yhteenveto!$D13+HLOOKUP(ROUNDDOWN(AS62,-1),$C5:$Q9,3,FALSE)*'Käyttö (B)'!$C13*Yhteenveto!$D13+HLOOKUP(ROUNDDOWN(AS62,-1),$C5:$Q9,4,FALSE)*'Käyttö (B)'!$C14*Yhteenveto!$D13","v":{"$error":"#N/A"}},{"$f":"HLOOKUP(ROUNDDOWN(AT62,-1),$C5:$Q9,2,FALSE)*'Käyttö (B)'!$C12*Yhteenveto!$D13+HLOOKUP(ROUNDDOWN(AT62,-1),$C5:$Q9,3,FALSE)*'Käyttö (B)'!$C13*Yhteenveto!$D13+HLOOKUP(ROUNDDOWN(AT62,-1),$C5:$Q9,4,FALSE)*'Käyttö (B)'!$C14*Yhteenveto!$D13","v":{"$error":"#N/A"}},{"$f":"HLOOKUP(ROUNDDOWN(AU62,-1),$C5:$Q9,2,FALSE)*'Käyttö (B)'!$C12*Yhteenveto!$D13+HLOOKUP(ROUNDDOWN(AU62,-1),$C5:$Q9,3,FALSE)*'Käyttö (B)'!$C13*Yhteenveto!$D13+HLOOKUP(ROUNDDOWN(AU62,-1),$C5:$Q9,4,FALSE)*'Käyttö (B)'!$C14*Yhteenveto!$D13","v":{"$error":"#N/A"}},{"$f":"HLOOKUP(ROUNDDOWN(AV62,-1),$C5:$Q9,2,FALSE)*'Käyttö (B)'!$C12*Yhteenveto!$D13+HLOOKUP(ROUNDDOWN(AV62,-1),$C5:$Q9,3,FALSE)*'Käyttö (B)'!$C13*Yhteenveto!$D13+HLOOKUP(ROUNDDOWN(AV62,-1),$C5:$Q9,4,FALSE)*'Käyttö (B)'!$C14*Yhteenveto!$D13","v":{"$error":"#N/A"}},{"$f":"HLOOKUP(ROUNDDOWN(AW62,-1),$C5:$Q9,2,FALSE)*'Käyttö (B)'!$C12*Yhteenveto!$D13+HLOOKUP(ROUNDDOWN(AW62,-1),$C5:$Q9,3,FALSE)*'Käyttö (B)'!$C13*Yhteenveto!$D13+HLOOKUP(ROUNDDOWN(AW62,-1),$C5:$Q9,4,FALSE)*'Käyttö (B)'!$C14*Yhteenveto!$D13","v":{"$error":"#N/A"}},{"$f":"HLOOKUP(ROUNDDOWN(AX62,-1),$C5:$Q9,2,FALSE)*'Käyttö (B)'!$C12*Yhteenveto!$D13+HLOOKUP(ROUNDDOWN(AX62,-1),$C5:$Q9,3,FALSE)*'Käyttö (B)'!$C13*Yhteenveto!$D13+HLOOKUP(ROUNDDOWN(AX62,-1),$C5:$Q9,4,FALSE)*'Käyttö (B)'!$C14*Yhteenveto!$D13","v":{"$error":"#N/A"}},{"$f":"HLOOKUP(ROUNDDOWN(AY62,-1),$C5:$Q9,2,FALSE)*'Käyttö (B)'!$C12*Yhteenveto!$D13+HLOOKUP(ROUNDDOWN(AY62,-1),$C5:$Q9,3,FALSE)*'Käyttö (B)'!$C13*Yhteenveto!$D13+HLOOKUP(ROUNDDOWN(AY62,-1),$C5:$Q9,4,FALSE)*'Käyttö (B)'!$C14*Yhteenveto!$D13","v":{"$error":"#N/A"}},{"$f":"HLOOKUP(ROUNDDOWN(AZ62,-1),$C5:$Q9,2,FALSE)*'Käyttö (B)'!$C12*Yhteenveto!$D13+HLOOKUP(ROUNDDOWN(AZ62,-1),$C5:$Q9,3,FALSE)*'Käyttö (B)'!$C13*Yhteenveto!$D13+HLOOKUP(ROUNDDOWN(AZ62,-1),$C5:$Q9,4,FALSE)*'Käyttö (B)'!$C14*Yhteenveto!$D13","v":{"$error":"#N/A"}},{"$f":"HLOOKUP(ROUNDDOWN(BA62,-1),$C5:$Q9,2,FALSE)*'Käyttö (B)'!$C12*Yhteenveto!$D13+HLOOKUP(ROUNDDOWN(BA62,-1),$C5:$Q9,3,FALSE)*'Käyttö (B)'!$C13*Yhteenveto!$D13+HLOOKUP(ROUNDDOWN(BA62,-1),$C5:$Q9,4,FALSE)*'Käyttö (B)'!$C14*Yhteenveto!$D13","v":{"$error":"#N/A"}},{"$f":"HLOOKUP(ROUNDDOWN(BB62,-1),$C5:$Q9,2,FALSE)*'Käyttö (B)'!$C12*Yhteenveto!$D13+HLOOKUP(ROUNDDOWN(BB62,-1),$C5:$Q9,3,FALSE)*'Käyttö (B)'!$C13*Yhteenveto!$D13+HLOOKUP(ROUNDDOWN(BB62,-1),$C5:$Q9,4,FALSE)*'Käyttö (B)'!$C14*Yhteenveto!$D13","v":{"$error":"#N/A"}},{"$f":"HLOOKUP(ROUNDDOWN(BC62,-1),$C5:$Q9,2,FALSE)*'Käyttö (B)'!$C12*Yhteenveto!$D13+HLOOKUP(ROUNDDOWN(BC62,-1),$C5:$Q9,3,FALSE)*'Käyttö (B)'!$C13*Yhteenveto!$D13+HLOOKUP(ROUNDDOWN(BC62,-1),$C5:$Q9,4,FALSE)*'Käyttö (B)'!$C14*Yhteenveto!$D13","v":{"$error":"#N/A"}},{"$f":"HLOOKUP(ROUNDDOWN(BD62,-1),$C5:$Q9,2,FALSE)*'Käyttö (B)'!$C12*Yhteenveto!$D13+HLOOKUP(ROUNDDOWN(BD62,-1),$C5:$Q9,3,FALSE)*'Käyttö (B)'!$C13*Yhteenveto!$D13+HLOOKUP(ROUNDDOWN(BD62,-1),$C5:$Q9,4,FALSE)*'Käyttö (B)'!$C14*Yhteenveto!$D13","v":{"$error":"#N/A"}},{"$f":"HLOOKUP(ROUNDDOWN(BE62,-1),$C5:$Q9,2,FALSE)*'Käyttö (B)'!$C12*Yhteenveto!$D13+HLOOKUP(ROUNDDOWN(BE62,-1),$C5:$Q9,3,FALSE)*'Käyttö (B)'!$C13*Yhteenveto!$D13+HLOOKUP(ROUNDDOWN(BE62,-1),$C5:$Q9,4,FALSE)*'Käyttö (B)'!$C14*Yhteenveto!$D13","v":{"$error":"#N/A"}},{"$f":"HLOOKUP(ROUNDDOWN(BF62,-1),$C5:$Q9,2,FALSE)*'Käyttö (B)'!$C12*Yhteenveto!$D13+HLOOKUP(ROUNDDOWN(BF62,-1),$C5:$Q9,3,FALSE)*'Käyttö (B)'!$C13*Yhteenveto!$D13+HLOOKUP(ROUNDDOWN(BF62,-1),$C5:$Q9,4,FALSE)*'Käyttö (B)'!$C14*Yhteenveto!$D13","v":{"$error":"#N/A"}},{"$f":"HLOOKUP(ROUNDDOWN(BG62,-1),$C5:$Q9,2,FALSE)*'Käyttö (B)'!$C12*Yhteenveto!$D13+HLOOKUP(ROUNDDOWN(BG62,-1),$C5:$Q9,3,FALSE)*'Käyttö (B)'!$C13*Yhteenveto!$D13+HLOOKUP(ROUNDDOWN(BG62,-1),$C5:$Q9,4,FALSE)*'Käyttö (B)'!$C14*Yhteenveto!$D13","v":{"$error":"#N/A"}},{"$f":"HLOOKUP(ROUNDDOWN(BH62,-1),$C5:$Q9,2,FALSE)*'Käyttö (B)'!$C12*Yhteenveto!$D13+HLOOKUP(ROUNDDOWN(BH62,-1),$C5:$Q9,3,FALSE)*'Käyttö (B)'!$C13*Yhteenveto!$D13+HLOOKUP(ROUNDDOWN(BH62,-1),$C5:$Q9,4,FALSE)*'Käyttö (B)'!$C14*Yhteenveto!$D13","v":{"$error":"#N/A"}},{"$f":"HLOOKUP(ROUNDDOWN(BI62,-1),$C5:$Q9,2,FALSE)*'Käyttö (B)'!$C12*Yhteenveto!$D13+HLOOKUP(ROUNDDOWN(BI62,-1),$C5:$Q9,3,FALSE)*'Käyttö (B)'!$C13*Yhteenveto!$D13+HLOOKUP(ROUNDDOWN(BI62,-1),$C5:$Q9,4,FALSE)*'Käyttö (B)'!$C14*Yhteenveto!$D13","v":{"$error":"#N/A"}},{"$f":"HLOOKUP(ROUNDDOWN(BJ62,-1),$C5:$Q9,2,FALSE)*'Käyttö (B)'!$C12*Yhteenveto!$D13+HLOOKUP(ROUNDDOWN(BJ62,-1),$C5:$Q9,3,FALSE)*'Käyttö (B)'!$C13*Yhteenveto!$D13+HLOOKUP(ROUNDDOWN(BJ62,-1),$C5:$Q9,4,FALSE)*'Käyttö (B)'!$C14*Yhteenveto!$D13","v":{"$error":"#N/A"}},{"$f":"HLOOKUP(ROUNDDOWN(BK62,-1),$C5:$Q9,2,FALSE)*'Käyttö (B)'!$C12*Yhteenveto!$D13+HLOOKUP(ROUNDDOWN(BK62,-1),$C5:$Q9,3,FALSE)*'Käyttö (B)'!$C13*Yhteenveto!$D13+HLOOKUP(ROUNDDOWN(BK62,-1),$C5:$Q9,4,FALSE)*'Käyttö (B)'!$C14*Yhteenveto!$D13","v":{"$error":"#N/A"}},{"$f":"HLOOKUP(ROUNDDOWN(BL62,-1),$C5:$Q9,2,FALSE)*'Käyttö (B)'!$C12*Yhteenveto!$D13+HLOOKUP(ROUNDDOWN(BL62,-1),$C5:$Q9,3,FALSE)*'Käyttö (B)'!$C13*Yhteenveto!$D13+HLOOKUP(ROUNDDOWN(BL62,-1),$C5:$Q9,4,FALSE)*'Käyttö (B)'!$C14*Yhteenveto!$D13","v":{"$error":"#N/A"}},{"$f":"HLOOKUP(ROUNDDOWN(BM62,-1),$C5:$Q9,2,FALSE)*'Käyttö (B)'!$C12*Yhteenveto!$D13+HLOOKUP(ROUNDDOWN(BM62,-1),$C5:$Q9,3,FALSE)*'Käyttö (B)'!$C13*Yhteenveto!$D13+HLOOKUP(ROUNDDOWN(BM62,-1),$C5:$Q9,4,FALSE)*'Käyttö (B)'!$C14*Yhteenveto!$D13","v":{"$error":"#N/A"}},{"$f":"HLOOKUP(ROUNDDOWN(BN62,-1),$C5:$Q9,2,FALSE)*'Käyttö (B)'!$C12*Yhteenveto!$D13+HLOOKUP(ROUNDDOWN(BN62,-1),$C5:$Q9,3,FALSE)*'Käyttö (B)'!$C13*Yhteenveto!$D13+HLOOKUP(ROUNDDOWN(BN62,-1),$C5:$Q9,4,FALSE)*'Käyttö (B)'!$C14*Yhteenveto!$D13","v":{"$error":"#N/A"}},{"$f":"HLOOKUP(ROUNDDOWN(BO62,-1),$C5:$Q9,2,FALSE)*'Käyttö (B)'!$C12*Yhteenveto!$D13+HLOOKUP(ROUNDDOWN(BO62,-1),$C5:$Q9,3,FALSE)*'Käyttö (B)'!$C13*Yhteenveto!$D13+HLOOKUP(ROUNDDOWN(BO62,-1),$C5:$Q9,4,FALSE)*'Käyttö (B)'!$C14*Yhteenveto!$D13","v":{"$error":"#N/A"}},{"$f":"HLOOKUP(ROUNDDOWN(BP62,-1),$C5:$Q9,2,FALSE)*'Käyttö (B)'!$C12*Yhteenveto!$D13+HLOOKUP(ROUNDDOWN(BP62,-1),$C5:$Q9,3,FALSE)*'Käyttö (B)'!$C13*Yhteenveto!$D13+HLOOKUP(ROUNDDOWN(BP62,-1),$C5:$Q9,4,FALSE)*'Käyttö (B)'!$C14*Yhteenveto!$D13","v":{"$error":"#N/A"}},{"$f":"HLOOKUP(ROUNDDOWN(BQ62,-1),$C5:$Q9,2,FALSE)*'Käyttö (B)'!$C12*Yhteenveto!$D13+HLOOKUP(ROUNDDOWN(BQ62,-1),$C5:$Q9,3,FALSE)*'Käyttö (B)'!$C13*Yhteenveto!$D13+HLOOKUP(ROUNDDOWN(BQ62,-1),$C5:$Q9,4,FALSE)*'Käyttö (B)'!$C14*Yhteenveto!$D13","v":{"$error":"#N/A"}},{"$f":"HLOOKUP(ROUNDDOWN(BR62,-1),$C5:$Q9,2,FALSE)*'Käyttö (B)'!$C12*Yhteenveto!$D13+HLOOKUP(ROUNDDOWN(BR62,-1),$C5:$Q9,3,FALSE)*'Käyttö (B)'!$C13*Yhteenveto!$D13+HLOOKUP(ROUNDDOWN(BR62,-1),$C5:$Q9,4,FALSE)*'Käyttö (B)'!$C14*Yhteenveto!$D13","v":{"$error":"#N/A"}},{"$f":"HLOOKUP(ROUNDDOWN(BS62,-1),$C5:$Q9,2,FALSE)*'Käyttö (B)'!$C12*Yhteenveto!$D13+HLOOKUP(ROUNDDOWN(BS62,-1),$C5:$Q9,3,FALSE)*'Käyttö (B)'!$C13*Yhteenveto!$D13+HLOOKUP(ROUNDDOWN(BS62,-1),$C5:$Q9,4,FALSE)*'Käyttö (B)'!$C14*Yhteenveto!$D13","v":{"$error":"#N/A"}},{"$f":"HLOOKUP(ROUNDDOWN(BT62,-1),$C5:$Q9,2,FALSE)*'Käyttö (B)'!$C12*Yhteenveto!$D13+HLOOKUP(ROUNDDOWN(BT62,-1),$C5:$Q9,3,FALSE)*'Käyttö (B)'!$C13*Yhteenveto!$D13+HLOOKUP(ROUNDDOWN(BT62,-1),$C5:$Q9,4,FALSE)*'Käyttö (B)'!$C14*Yhteenveto!$D13","v":{"$error":"#N/A"}},{"$f":"HLOOKUP(ROUNDDOWN(BU62,-1),$C5:$Q9,2,FALSE)*'Käyttö (B)'!$C12*Yhteenveto!$D13+HLOOKUP(ROUNDDOWN(BU62,-1),$C5:$Q9,3,FALSE)*'Käyttö (B)'!$C13*Yhteenveto!$D13+HLOOKUP(ROUNDDOWN(BU62,-1),$C5:$Q9,4,FALSE)*'Käyttö (B)'!$C14*Yhteenveto!$D13","v":{"$error":"#N/A"}},{"$f":"HLOOKUP(ROUNDDOWN(BV62,-1),$C5:$Q9,2,FALSE)*'Käyttö (B)'!$C12*Yhteenveto!$D13+HLOOKUP(ROUNDDOWN(BV62,-1),$C5:$Q9,3,FALSE)*'Käyttö (B)'!$C13*Yhteenveto!$D13+HLOOKUP(ROUNDDOWN(BV62,-1),$C5:$Q9,4,FALSE)*'Käyttö (B)'!$C14*Yhteenveto!$D13","v":{"$error":"#N/A"}},{"$f":"HLOOKUP(ROUNDDOWN(BW62,-1),$C5:$Q9,2,FALSE)*'Käyttö (B)'!$C12*Yhteenveto!$D13+HLOOKUP(ROUNDDOWN(BW62,-1),$C5:$Q9,3,FALSE)*'Käyttö (B)'!$C13*Yhteenveto!$D13+HLOOKUP(ROUNDDOWN(BW62,-1),$C5:$Q9,4,FALSE)*'Käyttö (B)'!$C14*Yhteenveto!$D13","v":{"$error":"#N/A"}},{"$f":"HLOOKUP(ROUNDDOWN(BX62,-1),$C5:$Q9,2,FALSE)*'Käyttö (B)'!$C12*Yhteenveto!$D13+HLOOKUP(ROUNDDOWN(BX62,-1),$C5:$Q9,3,FALSE)*'Käyttö (B)'!$C13*Yhteenveto!$D13+HLOOKUP(ROUNDDOWN(BX62,-1),$C5:$Q9,4,FALSE)*'Käyttö (B)'!$C14*Yhteenveto!$D13","v":{"$error":"#N/A"}},{"$f":"HLOOKUP(ROUNDDOWN(BY62,-1),$C5:$Q9,2,FALSE)*'Käyttö (B)'!$C12*Yhteenveto!$D13+HLOOKUP(ROUNDDOWN(BY62,-1),$C5:$Q9,3,FALSE)*'Käyttö (B)'!$C13*Yhteenveto!$D13+HLOOKUP(ROUNDDOWN(BY62,-1),$C5:$Q9,4,FALSE)*'Käyttö (B)'!$C14*Yhteenveto!$D13","v":{"$error":"#N/A"}},{"$f":"HLOOKUP(ROUNDDOWN(BZ62,-1),$C5:$Q9,2,FALSE)*'Käyttö (B)'!$C12*Yhteenveto!$D13+HLOOKUP(ROUNDDOWN(BZ62,-1),$C5:$Q9,3,FALSE)*'Käyttö (B)'!$C13*Yhteenveto!$D13+HLOOKUP(ROUNDDOWN(BZ62,-1),$C5:$Q9,4,FALSE)*'Käyttö (B)'!$C14*Yhteenveto!$D13","v":{"$error":"#N/A"}},{"$f":"HLOOKUP(ROUNDDOWN(CA62,-1),$C5:$Q9,2,FALSE)*'Käyttö (B)'!$C12*Yhteenveto!$D13+HLOOKUP(ROUNDDOWN(CA62,-1),$C5:$Q9,3,FALSE)*'Käyttö (B)'!$C13*Yhteenveto!$D13+HLOOKUP(ROUNDDOWN(CA62,-1),$C5:$Q9,4,FALSE)*'Käyttö (B)'!$C14*Yhteenveto!$D13","v":{"$error":"#N/A"}},{"$f":"HLOOKUP(ROUNDDOWN(CB62,-1),$C5:$Q9,2,FALSE)*'Käyttö (B)'!$C12*Yhteenveto!$D13+HLOOKUP(ROUNDDOWN(CB62,-1),$C5:$Q9,3,FALSE)*'Käyttö (B)'!$C13*Yhteenveto!$D13+HLOOKUP(ROUNDDOWN(CB62,-1),$C5:$Q9,4,FALSE)*'Käyttö (B)'!$C14*Yhteenveto!$D13","v":{"$error":"#N/A"}},{"$f":"HLOOKUP(ROUNDDOWN(CC62,-1),$C5:$Q9,2,FALSE)*'Käyttö (B)'!$C12*Yhteenveto!$D13+HLOOKUP(ROUNDDOWN(CC62,-1),$C5:$Q9,3,FALSE)*'Käyttö (B)'!$C13*Yhteenveto!$D13+HLOOKUP(ROUNDDOWN(CC62,-1),$C5:$Q9,4,FALSE)*'Käyttö (B)'!$C14*Yhteenveto!$D13","v":{"$error":"#N/A"}},{"$f":"HLOOKUP(ROUNDDOWN(CD62,-1),$C5:$Q9,2,FALSE)*'Käyttö (B)'!$C12*Yhteenveto!$D13+HLOOKUP(ROUNDDOWN(CD62,-1),$C5:$Q9,3,FALSE)*'Käyttö (B)'!$C13*Yhteenveto!$D13+HLOOKUP(ROUNDDOWN(CD62,-1),$C5:$Q9,4,FALSE)*'Käyttö (B)'!$C14*Yhteenveto!$D13","v":{"$error":"#N/A"}},{"$f":"HLOOKUP(ROUNDDOWN(CE62,-1),$C5:$Q9,2,FALSE)*'Käyttö (B)'!$C12*Yhteenveto!$D13+HLOOKUP(ROUNDDOWN(CE62,-1),$C5:$Q9,3,FALSE)*'Käyttö (B)'!$C13*Yhteenveto!$D13+HLOOKUP(ROUNDDOWN(CE62,-1),$C5:$Q9,4,FALSE)*'Käyttö (B)'!$C14*Yhteenveto!$D13","v":{"$error":"#N/A"}},{"$f":"HLOOKUP(ROUNDDOWN(CF62,-1),$C5:$Q9,2,FALSE)*'Käyttö (B)'!$C12*Yhteenveto!$D13+HLOOKUP(ROUNDDOWN(CF62,-1),$C5:$Q9,3,FALSE)*'Käyttö (B)'!$C13*Yhteenveto!$D13+HLOOKUP(ROUNDDOWN(CF62,-1),$C5:$Q9,4,FALSE)*'Käyttö (B)'!$C14*Yhteenveto!$D13","v":{"$error":"#N/A"}},{"$f":"HLOOKUP(ROUNDDOWN(CG62,-1),$C5:$Q9,2,FALSE)*'Käyttö (B)'!$C12*Yhteenveto!$D13+HLOOKUP(ROUNDDOWN(CG62,-1),$C5:$Q9,3,FALSE)*'Käyttö (B)'!$C13*Yhteenveto!$D13+HLOOKUP(ROUNDDOWN(CG62,-1),$C5:$Q9,4,FALSE)*'Käyttö (B)'!$C14*Yhteenveto!$D13","v":{"$error":"#N/A"}},{"$f":"HLOOKUP(ROUNDDOWN(CH62,-1),$C5:$Q9,2,FALSE)*'Käyttö (B)'!$C12*Yhteenveto!$D13+HLOOKUP(ROUNDDOWN(CH62,-1),$C5:$Q9,3,FALSE)*'Käyttö (B)'!$C13*Yhteenveto!$D13+HLOOKUP(ROUNDDOWN(CH62,-1),$C5:$Q9,4,FALSE)*'Käyttö (B)'!$C14*Yhteenveto!$D13","v":{"$error":"#N/A"}},{"$f":"HLOOKUP(ROUNDDOWN(CI62,-1),$C5:$Q9,2,FALSE)*'Käyttö (B)'!$C12*Yhteenveto!$D13+HLOOKUP(ROUNDDOWN(CI62,-1),$C5:$Q9,3,FALSE)*'Käyttö (B)'!$C13*Yhteenveto!$D13+HLOOKUP(ROUNDDOWN(CI62,-1),$C5:$Q9,4,FALSE)*'Käyttö (B)'!$C14*Yhteenveto!$D13","v":{"$error":"#N/A"}},{"$f":"HLOOKUP(ROUNDDOWN(CJ62,-1),$C5:$Q9,2,FALSE)*'Käyttö (B)'!$C12*Yhteenveto!$D13+HLOOKUP(ROUNDDOWN(CJ62,-1),$C5:$Q9,3,FALSE)*'Käyttö (B)'!$C13*Yhteenveto!$D13+HLOOKUP(ROUNDDOWN(CJ62,-1),$C5:$Q9,4,FALSE)*'Käyttö (B)'!$C14*Yhteenveto!$D13","v":{"$error":"#N/A"}},{"$f":"HLOOKUP(ROUNDDOWN(CK62,-1),$C5:$Q9,2,FALSE)*'Käyttö (B)'!$C12*Yhteenveto!$D13+HLOOKUP(ROUNDDOWN(CK62,-1),$C5:$Q9,3,FALSE)*'Käyttö (B)'!$C13*Yhteenveto!$D13+HLOOKUP(ROUNDDOWN(CK62,-1),$C5:$Q9,4,FALSE)*'Käyttö (B)'!$C14*Yhteenveto!$D13","v":{"$error":"#N/A"}},{"$f":"HLOOKUP(ROUNDDOWN(CL62,-1),$C5:$Q9,2,FALSE)*'Käyttö (B)'!$C12*Yhteenveto!$D13+HLOOKUP(ROUNDDOWN(CL62,-1),$C5:$Q9,3,FALSE)*'Käyttö (B)'!$C13*Yhteenveto!$D13+HLOOKUP(ROUNDDOWN(CL62,-1),$C5:$Q9,4,FALSE)*'Käyttö (B)'!$C14*Yhteenveto!$D13","v":{"$error":"#N/A"}},{"$f":"HLOOKUP(ROUNDDOWN(CM62,-1),$C5:$Q9,2,FALSE)*'Käyttö (B)'!$C12*Yhteenveto!$D13+HLOOKUP(ROUNDDOWN(CM62,-1),$C5:$Q9,3,FALSE)*'Käyttö (B)'!$C13*Yhteenveto!$D13+HLOOKUP(ROUNDDOWN(CM62,-1),$C5:$Q9,4,FALSE)*'Käyttö (B)'!$C14*Yhteenveto!$D13","v":{"$error":"#N/A"}},{"$f":"HLOOKUP(ROUNDDOWN(CN62,-1),$C5:$Q9,2,FALSE)*'Käyttö (B)'!$C12*Yhteenveto!$D13+HLOOKUP(ROUNDDOWN(CN62,-1),$C5:$Q9,3,FALSE)*'Käyttö (B)'!$C13*Yhteenveto!$D13+HLOOKUP(ROUNDDOWN(CN62,-1),$C5:$Q9,4,FALSE)*'Käyttö (B)'!$C14*Yhteenveto!$D13","v":{"$error":"#N/A"}},{"$f":"HLOOKUP(ROUNDDOWN(CO62,-1),$C5:$Q9,2,FALSE)*'Käyttö (B)'!$C12*Yhteenveto!$D13+HLOOKUP(ROUNDDOWN(CO62,-1),$C5:$Q9,3,FALSE)*'Käyttö (B)'!$C13*Yhteenveto!$D13+HLOOKUP(ROUNDDOWN(CO62,-1),$C5:$Q9,4,FALSE)*'Käyttö (B)'!$C14*Yhteenveto!$D13","v":{"$error":"#N/A"}},{"$f":"HLOOKUP(ROUNDDOWN(CP62,-1),$C5:$Q9,2,FALSE)*'Käyttö (B)'!$C12*Yhteenveto!$D13+HLOOKUP(ROUNDDOWN(CP62,-1),$C5:$Q9,3,FALSE)*'Käyttö (B)'!$C13*Yhteenveto!$D13+HLOOKUP(ROUNDDOWN(CP62,-1),$C5:$Q9,4,FALSE)*'Käyttö (B)'!$C14*Yhteenveto!$D13","v":{"$error":"#N/A"}},{"$f":"HLOOKUP(ROUNDDOWN(CQ62,-1),$C5:$Q9,2,FALSE)*'Käyttö (B)'!$C12*Yhteenveto!$D13+HLOOKUP(ROUNDDOWN(CQ62,-1),$C5:$Q9,3,FALSE)*'Käyttö (B)'!$C13*Yhteenveto!$D13+HLOOKUP(ROUNDDOWN(CQ62,-1),$C5:$Q9,4,FALSE)*'Käyttö (B)'!$C14*Yhteenveto!$D13","v":{"$error":"#N/A"}},{"$f":"HLOOKUP(ROUNDDOWN(CR62,-1),$C5:$Q9,2,FALSE)*'Käyttö (B)'!$C12*Yhteenveto!$D13+HLOOKUP(ROUNDDOWN(CR62,-1),$C5:$Q9,3,FALSE)*'Käyttö (B)'!$C13*Yhteenveto!$D13+HLOOKUP(ROUNDDOWN(CR62,-1),$C5:$Q9,4,FALSE)*'Käyttö (B)'!$C14*Yhteenveto!$D13","v":{"$error":"#N/A"}},{"$f":"HLOOKUP(ROUNDDOWN(CS62,-1),$C5:$Q9,2,FALSE)*'Käyttö (B)'!$C12*Yhteenveto!$D13+HLOOKUP(ROUNDDOWN(CS62,-1),$C5:$Q9,3,FALSE)*'Käyttö (B)'!$C13*Yhteenveto!$D13+HLOOKUP(ROUNDDOWN(CS62,-1),$C5:$Q9,4,FALSE)*'Käyttö (B)'!$C14*Yhteenveto!$D13","v":{"$error":"#N/A"}},{"$f":"HLOOKUP(ROUNDDOWN(CT62,-1),$C5:$Q9,2,FALSE)*'Käyttö (B)'!$C12*Yhteenveto!$D13+HLOOKUP(ROUNDDOWN(CT62,-1),$C5:$Q9,3,FALSE)*'Käyttö (B)'!$C13*Yhteenveto!$D13+HLOOKUP(ROUNDDOWN(CT62,-1),$C5:$Q9,4,FALSE)*'Käyttö (B)'!$C14*Yhteenveto!$D13","v":{"$error":"#N/A"}},{"$f":"HLOOKUP(ROUNDDOWN(CU62,-1),$C5:$Q9,2,FALSE)*'Käyttö (B)'!$C12*Yhteenveto!$D13+HLOOKUP(ROUNDDOWN(CU62,-1),$C5:$Q9,3,FALSE)*'Käyttö (B)'!$C13*Yhteenveto!$D13+HLOOKUP(ROUNDDOWN(CU62,-1),$C5:$Q9,4,FALSE)*'Käyttö (B)'!$C14*Yhteenveto!$D13","v":{"$error":"#N/A"}},{"$f":"HLOOKUP(ROUNDDOWN(CV62,-1),$C5:$Q9,2,FALSE)*'Käyttö (B)'!$C12*Yhteenveto!$D13+HLOOKUP(ROUNDDOWN(CV62,-1),$C5:$Q9,3,FALSE)*'Käyttö (B)'!$C13*Yhteenveto!$D13+HLOOKUP(ROUNDDOWN(CV62,-1),$C5:$Q9,4,FALSE)*'Käyttö (B)'!$C14*Yhteenveto!$D13","v":{"$error":"#N/A"}},{"$f":"HLOOKUP(ROUNDDOWN(CW62,-1),$C5:$Q9,2,FALSE)*'Käyttö (B)'!$C12*Yhteenveto!$D13+HLOOKUP(ROUNDDOWN(CW62,-1),$C5:$Q9,3,FALSE)*'Käyttö (B)'!$C13*Yhteenveto!$D13+HLOOKUP(ROUNDDOWN(CW62,-1),$C5:$Q9,4,FALSE)*'Käyttö (B)'!$C14*Yhteenveto!$D13","v":{"$error":"#N/A"}},{"$f":"HLOOKUP(ROUNDDOWN(CX62,-1),$C5:$Q9,2,FALSE)*'Käyttö (B)'!$C12*Yhteenveto!$D13+HLOOKUP(ROUNDDOWN(CX62,-1),$C5:$Q9,3,FALSE)*'Käyttö (B)'!$C13*Yhteenveto!$D13+HLOOKUP(ROUNDDOWN(CX62,-1),$C5:$Q9,4,FALSE)*'Käyttö (B)'!$C14*Yhteenveto!$D13","v":{"$error":"#N/A"}},{"$f":"HLOOKUP(ROUNDDOWN(CY62,-1),$C5:$Q9,2,FALSE)*'Käyttö (B)'!$C12*Yhteenveto!$D13+HLOOKUP(ROUNDDOWN(CY62,-1),$C5:$Q9,3,FALSE)*'Käyttö (B)'!$C13*Yhteenveto!$D13+HLOOKUP(ROUNDDOWN(CY62,-1),$C5:$Q9,4,FALSE)*'Käyttö (B)'!$C14*Yhteenveto!$D13","v":{"$error":"#N/A"}},{"$f":"HLOOKUP(ROUNDDOWN(CZ62,-1),$C5:$Q9,2,FALSE)*'Käyttö (B)'!$C12*Yhteenveto!$D13+HLOOKUP(ROUNDDOWN(CZ62,-1),$C5:$Q9,3,FALSE)*'Käyttö (B)'!$C13*Yhteenveto!$D13+HLOOKUP(ROUNDDOWN(CZ62,-1),$C5:$Q9,4,FALSE)*'Käyttö (B)'!$C14*Yhteenveto!$D13","v":{"$error":"#N/A"}},{"$f":"HLOOKUP(ROUNDDOWN(DA62,-1),$C5:$Q9,2,FALSE)*'Käyttö (B)'!$C12*Yhteenveto!$D13+HLOOKUP(ROUNDDOWN(DA62,-1),$C5:$Q9,3,FALSE)*'Käyttö (B)'!$C13*Yhteenveto!$D13+HLOOKUP(ROUNDDOWN(DA62,-1),$C5:$Q9,4,FALSE)*'Käyttö (B)'!$C14*Yhteenveto!$D13","v":{"$error":"#N/A"}},{"$f":"HLOOKUP(ROUNDDOWN(DB62,-1),$C5:$Q9,2,FALSE)*'Käyttö (B)'!$C12*Yhteenveto!$D13+HLOOKUP(ROUNDDOWN(DB62,-1),$C5:$Q9,3,FALSE)*'Käyttö (B)'!$C13*Yhteenveto!$D13+HLOOKUP(ROUNDDOWN(DB62,-1),$C5:$Q9,4,FALSE)*'Käyttö (B)'!$C14*Yhteenveto!$D13","v":{"$error":"#N/A"}},{"$f":"HLOOKUP(ROUNDDOWN(DC62,-1),$C5:$Q9,2,FALSE)*'Käyttö (B)'!$C12*Yhteenveto!$D13+HLOOKUP(ROUNDDOWN(DC62,-1),$C5:$Q9,3,FALSE)*'Käyttö (B)'!$C13*Yhteenveto!$D13+HLOOKUP(ROUNDDOWN(DC62,-1),$C5:$Q9,4,FALSE)*'Käyttö (B)'!$C14*Yhteenveto!$D13","v":{"$error":"#N/A"}},{"$f":"HLOOKUP(ROUNDDOWN(DD62,-1),$C5:$Q9,2,FALSE)*'Käyttö (B)'!$C12*Yhteenveto!$D13+HLOOKUP(ROUNDDOWN(DD62,-1),$C5:$Q9,3,FALSE)*'Käyttö (B)'!$C13*Yhteenveto!$D13+HLOOKUP(ROUNDDOWN(DD62,-1),$C5:$Q9,4,FALSE)*'Käyttö (B)'!$C14*Yhteenveto!$D13","v":{"$error":"#N/A"}},{"$f":"HLOOKUP(ROUNDDOWN(DE62,-1),$C5:$Q9,2,FALSE)*'Käyttö (B)'!$C12*Yhteenveto!$D13+HLOOKUP(ROUNDDOWN(DE62,-1),$C5:$Q9,3,FALSE)*'Käyttö (B)'!$C13*Yhteenveto!$D13+HLOOKUP(ROUNDDOWN(DE62,-1),$C5:$Q9,4,FALSE)*'Käyttö (B)'!$C14*Yhteenveto!$D13","v":{"$error":"#N/A"}},{"$f":"HLOOKUP(ROUNDDOWN(DF62,-1),$C5:$Q9,2,FALSE)*'Käyttö (B)'!$C12*Yhteenveto!$D13+HLOOKUP(ROUNDDOWN(DF62,-1),$C5:$Q9,3,FALSE)*'Käyttö (B)'!$C13*Yhteenveto!$D13+HLOOKUP(ROUNDDOWN(DF62,-1),$C5:$Q9,4,FALSE)*'Käyttö (B)'!$C14*Yhteenveto!$D13","v":{"$error":"#N/A"}},{"$f":"HLOOKUP(ROUNDDOWN(DG62,-1),$C5:$Q9,2,FALSE)*'Käyttö (B)'!$C12*Yhteenveto!$D13+HLOOKUP(ROUNDDOWN(DG62,-1),$C5:$Q9,3,FALSE)*'Käyttö (B)'!$C13*Yhteenveto!$D13+HLOOKUP(ROUNDDOWN(DG62,-1),$C5:$Q9,4,FALSE)*'Käyttö (B)'!$C14*Yhteenveto!$D13","v":{"$error":"#N/A"}},{"$f":"HLOOKUP(ROUNDDOWN(DH62,-1),$C5:$Q9,2,FALSE)*'Käyttö (B)'!$C12*Yhteenveto!$D13+HLOOKUP(ROUNDDOWN(DH62,-1),$C5:$Q9,3,FALSE)*'Käyttö (B)'!$C13*Yhteenveto!$D13+HLOOKUP(ROUNDDOWN(DH62,-1),$C5:$Q9,4,FALSE)*'Käyttö (B)'!$C14*Yhteenveto!$D13","v":{"$error":"#N/A"}},{"$f":"HLOOKUP(ROUNDDOWN(DI62,-1),$C5:$Q9,2,FALSE)*'Käyttö (B)'!$C12*Yhteenveto!$D13+HLOOKUP(ROUNDDOWN(DI62,-1),$C5:$Q9,3,FALSE)*'Käyttö (B)'!$C13*Yhteenveto!$D13+HLOOKUP(ROUNDDOWN(DI62,-1),$C5:$Q9,4,FALSE)*'Käyttö (B)'!$C14*Yhteenveto!$D13","v":{"$error":"#N/A"}},{"$f":"HLOOKUP(ROUNDDOWN(DJ62,-1),$C5:$Q9,2,FALSE)*'Käyttö (B)'!$C12*Yhteenveto!$D13+HLOOKUP(ROUNDDOWN(DJ62,-1),$C5:$Q9,3,FALSE)*'Käyttö (B)'!$C13*Yhteenveto!$D13+HLOOKUP(ROUNDDOWN(DJ62,-1),$C5:$Q9,4,FALSE)*'Käyttö (B)'!$C14*Yhteenveto!$D13","v":{"$error":"#N/A"}},{"$f":"HLOOKUP(ROUNDDOWN(DK62,-1),$C5:$Q9,2,FALSE)*'Käyttö (B)'!$C12*Yhteenveto!$D13+HLOOKUP(ROUNDDOWN(DK62,-1),$C5:$Q9,3,FALSE)*'Käyttö (B)'!$C13*Yhteenveto!$D13+HLOOKUP(ROUNDDOWN(DK62,-1),$C5:$Q9,4,FALSE)*'Käyttö (B)'!$C14*Yhteenveto!$D13","v":{"$error":"#N/A"}},{"$f":"HLOOKUP(ROUNDDOWN(DL62,-1),$C5:$Q9,2,FALSE)*'Käyttö (B)'!$C12*Yhteenveto!$D13+HLOOKUP(ROUNDDOWN(DL62,-1),$C5:$Q9,3,FALSE)*'Käyttö (B)'!$C13*Yhteenveto!$D13+HLOOKUP(ROUNDDOWN(DL62,-1),$C5:$Q9,4,FALSE)*'Käyttö (B)'!$C14*Yhteenveto!$D13","v":{"$error":"#N/A"}},{"$f":"HLOOKUP(ROUNDDOWN(DM62,-1),$C5:$Q9,2,FALSE)*'Käyttö (B)'!$C12*Yhteenveto!$D13+HLOOKUP(ROUNDDOWN(DM62,-1),$C5:$Q9,3,FALSE)*'Käyttö (B)'!$C13*Yhteenveto!$D13+HLOOKUP(ROUNDDOWN(DM62,-1),$C5:$Q9,4,FALSE)*'Käyttö (B)'!$C14*Yhteenveto!$D13","v":{"$error":"#N/A"}},{"$f":"HLOOKUP(ROUNDDOWN(DN62,-1),$C5:$Q9,2,FALSE)*'Käyttö (B)'!$C12*Yhteenveto!$D13+HLOOKUP(ROUNDDOWN(DN62,-1),$C5:$Q9,3,FALSE)*'Käyttö (B)'!$C13*Yhteenveto!$D13+HLOOKUP(ROUNDDOWN(DN62,-1),$C5:$Q9,4,FALSE)*'Käyttö (B)'!$C14*Yhteenveto!$D13","v":{"$error":"#N/A"}},{"$f":"HLOOKUP(ROUNDDOWN(DO62,-1),$C5:$Q9,2,FALSE)*'Käyttö (B)'!$C12*Yhteenveto!$D13+HLOOKUP(ROUNDDOWN(DO62,-1),$C5:$Q9,3,FALSE)*'Käyttö (B)'!$C13*Yhteenveto!$D13+HLOOKUP(ROUNDDOWN(DO62,-1),$C5:$Q9,4,FALSE)*'Käyttö (B)'!$C14*Yhteenveto!$D13","v":{"$error":"#N/A"}},{"$f":"HLOOKUP(ROUNDDOWN(DP62,-1),$C5:$Q9,2,FALSE)*'Käyttö (B)'!$C12*Yhteenveto!$D13+HLOOKUP(ROUNDDOWN(DP62,-1),$C5:$Q9,3,FALSE)*'Käyttö (B)'!$C13*Yhteenveto!$D13+HLOOKUP(ROUNDDOWN(DP62,-1),$C5:$Q9,4,FALSE)*'Käyttö (B)'!$C14*Yhteenveto!$D13","v":{"$error":"#N/A"}},{"$f":"HLOOKUP(ROUNDDOWN(DQ62,-1),$C5:$Q9,2,FALSE)*'Käyttö (B)'!$C12*Yhteenveto!$D13+HLOOKUP(ROUNDDOWN(DQ62,-1),$C5:$Q9,3,FALSE)*'Käyttö (B)'!$C13*Yhteenveto!$D13+HLOOKUP(ROUNDDOWN(DQ62,-1),$C5:$Q9,4,FALSE)*'Käyttö (B)'!$C14*Yhteenveto!$D13","v":{"$error":"#N/A"}},{"$f":"HLOOKUP(ROUNDDOWN(DR62,-1),$C5:$Q9,2,FALSE)*'Käyttö (B)'!$C12*Yhteenveto!$D13+HLOOKUP(ROUNDDOWN(DR62,-1),$C5:$Q9,3,FALSE)*'Käyttö (B)'!$C13*Yhteenveto!$D13+HLOOKUP(ROUNDDOWN(DR62,-1),$C5:$Q9,4,FALSE)*'Käyttö (B)'!$C14*Yhteenveto!$D13","v":{"$error":"#N/A"}},{"$f":"HLOOKUP(ROUNDDOWN(DS62,-1),$C5:$Q9,2,FALSE)*'Käyttö (B)'!$C12*Yhteenveto!$D13+HLOOKUP(ROUNDDOWN(DS62,-1),$C5:$Q9,3,FALSE)*'Käyttö (B)'!$C13*Yhteenveto!$D13+HLOOKUP(ROUNDDOWN(DS62,-1),$C5:$Q9,4,FALSE)*'Käyttö (B)'!$C14*Yhteenveto!$D13","v":{"$error":"#N/A"}},{"$f":"HLOOKUP(ROUNDDOWN(DT62,-1),$C5:$Q9,2,FALSE)*'Käyttö (B)'!$C12*Yhteenveto!$D13+HLOOKUP(ROUNDDOWN(DT62,-1),$C5:$Q9,3,FALSE)*'Käyttö (B)'!$C13*Yhteenveto!$D13+HLOOKUP(ROUNDDOWN(DT62,-1),$C5:$Q9,4,FALSE)*'Käyttö (B)'!$C14*Yhteenveto!$D13","v":{"$error":"#N/A"}},{"$f":"HLOOKUP(ROUNDDOWN(DU62,-1),$C5:$Q9,2,FALSE)*'Käyttö (B)'!$C12*Yhteenveto!$D13+HLOOKUP(ROUNDDOWN(DU62,-1),$C5:$Q9,3,FALSE)*'Käyttö (B)'!$C13*Yhteenveto!$D13+HLOOKUP(ROUNDDOWN(DU62,-1),$C5:$Q9,4,FALSE)*'Käyttö (B)'!$C14*Yhteenveto!$D13","v":{"$error":"#N/A"}},{"$f":"HLOOKUP(ROUNDDOWN(DV62,-1),$C5:$Q9,2,FALSE)*'Käyttö (B)'!$C12*Yhteenveto!$D13+HLOOKUP(ROUNDDOWN(DV62,-1),$C5:$Q9,3,FALSE)*'Käyttö (B)'!$C13*Yhteenveto!$D13+HLOOKUP(ROUNDDOWN(DV62,-1),$C5:$Q9,4,FALSE)*'Käyttö (B)'!$C14*Yhteenveto!$D13","v":{"$error":"#N/A"}},{"$f":"HLOOKUP(ROUNDDOWN(DW62,-1),$C5:$Q9,2,FALSE)*'Käyttö (B)'!$C12*Yhteenveto!$D13+HLOOKUP(ROUNDDOWN(DW62,-1),$C5:$Q9,3,FALSE)*'Käyttö (B)'!$C13*Yhteenveto!$D13+HLOOKUP(ROUNDDOWN(DW62,-1),$C5:$Q9,4,FALSE)*'Käyttö (B)'!$C14*Yhteenveto!$D13","v":{"$error":"#N/A"}},{"$f":"HLOOKUP(ROUNDDOWN(DX62,-1),$C5:$Q9,2,FALSE)*'Käyttö (B)'!$C12*Yhteenveto!$D13+HLOOKUP(ROUNDDOWN(DX62,-1),$C5:$Q9,3,FALSE)*'Käyttö (B)'!$C13*Yhteenveto!$D13+HLOOKUP(ROUNDDOWN(DX62,-1),$C5:$Q9,4,FALSE)*'Käyttö (B)'!$C14*Yhteenveto!$D13","v":{"$error":"#N/A"}},{"$f":"HLOOKUP(ROUNDDOWN(DY62,-1),$C5:$Q9,2,FALSE)*'Käyttö (B)'!$C12*Yhteenveto!$D13+HLOOKUP(ROUNDDOWN(DY62,-1),$C5:$Q9,3,FALSE)*'Käyttö (B)'!$C13*Yhteenveto!$D13+HLOOKUP(ROUNDDOWN(DY62,-1),$C5:$Q9,4,FALSE)*'Käyttö (B)'!$C14*Yhteenveto!$D13","v":{"$error":"#N/A"}},{"$f":"HLOOKUP(ROUNDDOWN(DZ62,-1),$C5:$Q9,2,FALSE)*'Käyttö (B)'!$C12*Yhteenveto!$D13+HLOOKUP(ROUNDDOWN(DZ62,-1),$C5:$Q9,3,FALSE)*'Käyttö (B)'!$C13*Yhteenveto!$D13+HLOOKUP(ROUNDDOWN(DZ62,-1),$C5:$Q9,4,FALSE)*'Käyttö (B)'!$C14*Yhteenveto!$D13","v":{"$error":"#N/A"}},{"$f":"HLOOKUP(ROUNDDOWN(EA62,-1),$C5:$Q9,2,FALSE)*'Käyttö (B)'!$C12*Yhteenveto!$D13+HLOOKUP(ROUNDDOWN(EA62,-1),$C5:$Q9,3,FALSE)*'Käyttö (B)'!$C13*Yhteenveto!$D13+HLOOKUP(ROUNDDOWN(EA62,-1),$C5:$Q9,4,FALSE)*'Käyttö (B)'!$C14*Yhteenveto!$D13","v":{"$error":"#N/A"}},{"$f":"HLOOKUP(ROUNDDOWN(EB62,-1),$C5:$Q9,2,FALSE)*'Käyttö (B)'!$C12*Yhteenveto!$D13+HLOOKUP(ROUNDDOWN(EB62,-1),$C5:$Q9,3,FALSE)*'Käyttö (B)'!$C13*Yhteenveto!$D13+HLOOKUP(ROUNDDOWN(EB62,-1),$C5:$Q9,4,FALSE)*'Käyttö (B)'!$C14*Yhteenveto!$D13","v":{"$error":"#N/A"}},{"$f":"HLOOKUP(ROUNDDOWN(EC62,-1),$C5:$Q9,2,FALSE)*'Käyttö (B)'!$C12*Yhteenveto!$D13+HLOOKUP(ROUNDDOWN(EC62,-1),$C5:$Q9,3,FALSE)*'Käyttö (B)'!$C13*Yhteenveto!$D13+HLOOKUP(ROUNDDOWN(EC62,-1),$C5:$Q9,4,FALSE)*'Käyttö (B)'!$C14*Yhteenveto!$D13","v":{"$error":"#N/A"}},{"$f":"HLOOKUP(ROUNDDOWN(ED62,-1),$C5:$Q9,2,FALSE)*'Käyttö (B)'!$C12*Yhteenveto!$D13+HLOOKUP(ROUNDDOWN(ED62,-1),$C5:$Q9,3,FALSE)*'Käyttö (B)'!$C13*Yhteenveto!$D13+HLOOKUP(ROUNDDOWN(ED62,-1),$C5:$Q9,4,FALSE)*'Käyttö (B)'!$C14*Yhteenveto!$D13","v":{"$error":"#N/A"}},{"$f":"HLOOKUP(ROUNDDOWN(EE62,-1),$C5:$Q9,2,FALSE)*'Käyttö (B)'!$C12*Yhteenveto!$D13+HLOOKUP(ROUNDDOWN(EE62,-1),$C5:$Q9,3,FALSE)*'Käyttö (B)'!$C13*Yhteenveto!$D13+HLOOKUP(ROUNDDOWN(EE62,-1),$C5:$Q9,4,FALSE)*'Käyttö (B)'!$C14*Yhteenveto!$D13","v":{"$error":"#N/A"}}]
[null,"Vuotuiset korjaukset",null,{"$f":"'Käyttö (B)'!$D28*Yhteenveto!$D13+SUMIF(Materiaaliluettelo!$O:$O,Datalehti!D62-Datalehti!$C21,Materiaaliluettelo!$J:$J)","v":0},{"$f":"'Käyttö (B)'!$D28*Yhteenveto!$D13+SUMIF(Materiaaliluettelo!$O:$O,Datalehti!E62-Datalehti!$C21,Materiaaliluettelo!$J:$J)","v":0},{"$f":"'Käyttö (B)'!$D28*Yhteenveto!$D13+SUMIF(Materiaaliluettelo!$O:$O,Datalehti!F62-Datalehti!$C21,Materiaaliluettelo!$J:$J)","v":0},{"$f":"'Käyttö (B)'!$D28*Yhteenveto!$D13+SUMIF(Materiaaliluettelo!$O:$O,Datalehti!G62-Datalehti!$C21,Materiaaliluettelo!$J:$J)","v":0},{"$f":"'Käyttö (B)'!$D28*Yhteenveto!$D13+SUMIF(Materiaaliluettelo!$O:$O,Datalehti!H62-Datalehti!$C21,Materiaaliluettelo!$J:$J)","v":0},{"$f":"'Käyttö (B)'!$D28*Yhteenveto!$D13+SUMIF(Materiaaliluettelo!$O:$O,Datalehti!I62-Datalehti!$C21,Materiaaliluettelo!$J:$J)","v":0},{"$f":"'Käyttö (B)'!$D28*Yhteenveto!$D13+SUMIF(Materiaaliluettelo!$O:$O,Datalehti!J62-Datalehti!$C21,Materiaaliluettelo!$J:$J)","v":0},{"$f":"'Käyttö (B)'!$D28*Yhteenveto!$D13+SUMIF(Materiaaliluettelo!$O:$O,Datalehti!K62-Datalehti!$C21,Materiaaliluettelo!$J:$J)","v":0},{"$f":"'Käyttö (B)'!$D28*Yhteenveto!$D13+SUMIF(Materiaaliluettelo!$O:$O,Datalehti!L62-Datalehti!$C21,Materiaaliluettelo!$J:$J)","v":0},{"$f":"'Käyttö (B)'!$D28*Yhteenveto!$D13+SUMIF(Materiaaliluettelo!$O:$O,Datalehti!M62-Datalehti!$C21,Materiaaliluettelo!$J:$J)","v":0},{"$f":"'Käyttö (B)'!$D28*Yhteenveto!$D13+SUMIF(Materiaaliluettelo!$O:$O,Datalehti!N62-Datalehti!$C21,Materiaaliluettelo!$J:$J)","v":0},{"$f":"'Käyttö (B)'!$D28*Yhteenveto!$D13+SUMIF(Materiaaliluettelo!$O:$O,Datalehti!O62-Datalehti!$C21,Materiaaliluettelo!$J:$J)","v":0},{"$f":"'Käyttö (B)'!$D28*Yhteenveto!$D13+SUMIF(Materiaaliluettelo!$O:$O,Datalehti!P62-Datalehti!$C21,Materiaaliluettelo!$J:$J)","v":0},{"$f":"'Käyttö (B)'!$D28*Yhteenveto!$D13+SUMIF(Materiaaliluettelo!$O:$O,Datalehti!Q62-Datalehti!$C21,Materiaaliluettelo!$J:$J)","v":0},{"$f":"'Käyttö (B)'!$D28*Yhteenveto!$D13+SUMIF(Materiaaliluettelo!$O:$O,Datalehti!R62-Datalehti!$C21,Materiaaliluettelo!$J:$J)","v":0},{"$f":"'Käyttö (B)'!$D28*Yhteenveto!$D13+SUMIF(Materiaaliluettelo!$O:$O,Datalehti!S62-Datalehti!$C21,Materiaaliluettelo!$J:$J)","v":0},{"$f":"'Käyttö (B)'!$D28*Yhteenveto!$D13+SUMIF(Materiaaliluettelo!$O:$O,Datalehti!T62-Datalehti!$C21,Materiaaliluettelo!$J:$J)","v":0},{"$f":"'Käyttö (B)'!$D28*Yhteenveto!$D13+SUMIF(Materiaaliluettelo!$O:$O,Datalehti!U62-Datalehti!$C21,Materiaaliluettelo!$J:$J)","v":0},{"$f":"'Käyttö (B)'!$D28*Yhteenveto!$D13+SUMIF(Materiaaliluettelo!$O:$O,Datalehti!V62-Datalehti!$C21,Materiaaliluettelo!$J:$J)","v":0},{"$f":"'Käyttö (B)'!$D28*Yhteenveto!$D13+SUMIF(Materiaaliluettelo!$O:$O,Datalehti!W62-Datalehti!$C21,Materiaaliluettelo!$J:$J)","v":0},{"$f":"'Käyttö (B)'!$D28*Yhteenveto!$D13+SUMIF(Materiaaliluettelo!$O:$O,Datalehti!X62-Datalehti!$C21,Materiaaliluettelo!$J:$J)","v":0},{"$f":"'Käyttö (B)'!$D28*Yhteenveto!$D13+SUMIF(Materiaaliluettelo!$O:$O,Datalehti!Y62-Datalehti!$C21,Materiaaliluettelo!$J:$J)","v":0},{"$f":"'Käyttö (B)'!$D28*Yhteenveto!$D13+SUMIF(Materiaaliluettelo!$O:$O,Datalehti!Z62-Datalehti!$C21,Materiaaliluettelo!$J:$J)","v":0},{"$f":"'Käyttö (B)'!$D28*Yhteenveto!$D13+SUMIF(Materiaaliluettelo!$O:$O,Datalehti!AA62-Datalehti!$C21,Materiaaliluettelo!$J:$J)","v":0},{"$f":"'Käyttö (B)'!$D28*Yhteenveto!$D13+SUMIF(Materiaaliluettelo!$O:$O,Datalehti!AB62-Datalehti!$C21,Materiaaliluettelo!$J:$J)","v":0},{"$f":"'Käyttö (B)'!$D28*Yhteenveto!$D13+SUMIF(Materiaaliluettelo!$O:$O,Datalehti!AC62-Datalehti!$C21,Materiaaliluettelo!$J:$J)","v":0},{"$f":"'Käyttö (B)'!$D28*Yhteenveto!$D13+SUMIF(Materiaaliluettelo!$O:$O,Datalehti!AD62-Datalehti!$C21,Materiaaliluettelo!$J:$J)","v":0},{"$f":"'Käyttö (B)'!$D28*Yhteenveto!$D13+SUMIF(Materiaaliluettelo!$O:$O,Datalehti!AE62-Datalehti!$C21,Materiaaliluettelo!$J:$J)","v":0},{"$f":"'Käyttö (B)'!$D28*Yhteenveto!$D13+SUMIF(Materiaaliluettelo!$O:$O,Datalehti!AF62-Datalehti!$C21,Materiaaliluettelo!$J:$J)","v":0},{"$f":"'Käyttö (B)'!$D28*Yhteenveto!$D13+SUMIF(Materiaaliluettelo!$O:$O,Datalehti!AG62-Datalehti!$C21,Materiaaliluettelo!$J:$J)","v":0},{"$f":"'Käyttö (B)'!$D28*Yhteenveto!$D13+SUMIF(Materiaaliluettelo!$O:$O,Datalehti!AH62-Datalehti!$C21,Materiaaliluettelo!$J:$J)","v":0},{"$f":"'Käyttö (B)'!$D28*Yhteenveto!$D13+SUMIF(Materiaaliluettelo!$O:$O,Datalehti!AI62-Datalehti!$C21,Materiaaliluettelo!$J:$J)","v":0},{"$f":"'Käyttö (B)'!$D28*Yhteenveto!$D13+SUMIF(Materiaaliluettelo!$O:$O,Datalehti!AJ62-Datalehti!$C21,Materiaaliluettelo!$J:$J)","v":0},{"$f":"'Käyttö (B)'!$D28*Yhteenveto!$D13+SUMIF(Materiaaliluettelo!$O:$O,Datalehti!AK62-Datalehti!$C21,Materiaaliluettelo!$J:$J)","v":0},{"$f":"'Käyttö (B)'!$D28*Yhteenveto!$D13+SUMIF(Materiaaliluettelo!$O:$O,Datalehti!AL62-Datalehti!$C21,Materiaaliluettelo!$J:$J)","v":0},{"$f":"'Käyttö (B)'!$D28*Yhteenveto!$D13+SUMIF(Materiaaliluettelo!$O:$O,Datalehti!AM62-Datalehti!$C21,Materiaaliluettelo!$J:$J)","v":0},{"$f":"'Käyttö (B)'!$D28*Yhteenveto!$D13+SUMIF(Materiaaliluettelo!$O:$O,Datalehti!AN62-Datalehti!$C21,Materiaaliluettelo!$J:$J)","v":0},{"$f":"'Käyttö (B)'!$D28*Yhteenveto!$D13+SUMIF(Materiaaliluettelo!$O:$O,Datalehti!AO62-Datalehti!$C21,Materiaaliluettelo!$J:$J)","v":0},{"$f":"'Käyttö (B)'!$D28*Yhteenveto!$D13+SUMIF(Materiaaliluettelo!$O:$O,Datalehti!AP62-Datalehti!$C21,Materiaaliluettelo!$J:$J)","v":0},{"$f":"'Käyttö (B)'!$D28*Yhteenveto!$D13+SUMIF(Materiaaliluettelo!$O:$O,Datalehti!AQ62-Datalehti!$C21,Materiaaliluettelo!$J:$J)","v":0},{"$f":"'Käyttö (B)'!$D28*Yhteenveto!$D13+SUMIF(Materiaaliluettelo!$O:$O,Datalehti!AR62-Datalehti!$C21,Materiaaliluettelo!$J:$J)","v":0},{"$f":"'Käyttö (B)'!$D28*Yhteenveto!$D13+SUMIF(Materiaaliluettelo!$O:$O,Datalehti!AS62-Datalehti!$C21,Materiaaliluettelo!$J:$J)","v":0},{"$f":"'Käyttö (B)'!$D28*Yhteenveto!$D13+SUMIF(Materiaaliluettelo!$O:$O,Datalehti!AT62-Datalehti!$C21,Materiaaliluettelo!$J:$J)","v":0},{"$f":"'Käyttö (B)'!$D28*Yhteenveto!$D13+SUMIF(Materiaaliluettelo!$O:$O,Datalehti!AU62-Datalehti!$C21,Materiaaliluettelo!$J:$J)","v":0},{"$f":"'Käyttö (B)'!$D28*Yhteenveto!$D13+SUMIF(Materiaaliluettelo!$O:$O,Datalehti!AV62-Datalehti!$C21,Materiaaliluettelo!$J:$J)","v":0},{"$f":"'Käyttö (B)'!$D28*Yhteenveto!$D13+SUMIF(Materiaaliluettelo!$O:$O,Datalehti!AW62-Datalehti!$C21,Materiaaliluettelo!$J:$J)","v":0},{"$f":"'Käyttö (B)'!$D28*Yhteenveto!$D13+SUMIF(Materiaaliluettelo!$O:$O,Datalehti!AX62-Datalehti!$C21,Materiaaliluettelo!$J:$J)","v":0},{"$f":"'Käyttö (B)'!$D28*Yhteenveto!$D13+SUMIF(Materiaaliluettelo!$O:$O,Datalehti!AY62-Datalehti!$C21,Materiaaliluettelo!$J:$J)","v":0},{"$f":"'Käyttö (B)'!$D28*Yhteenveto!$D13+SUMIF(Materiaaliluettelo!$O:$O,Datalehti!AZ62-Datalehti!$C21,Materiaaliluettelo!$J:$J)","v":0},{"$f":"'Käyttö (B)'!$D28*Yhteenveto!$D13+SUMIF(Materiaaliluettelo!$O:$O,Datalehti!BA62-Datalehti!$C21,Materiaaliluettelo!$J:$J)","v":0},{"$f":"'Käyttö (B)'!$D28*Yhteenveto!$D13+SUMIF(Materiaaliluettelo!$O:$O,Datalehti!BB62-Datalehti!$C21,Materiaaliluettelo!$J:$J)","v":0},{"$f":"'Käyttö (B)'!$D28*Yhteenveto!$D13+SUMIF(Materiaaliluettelo!$O:$O,Datalehti!BC62-Datalehti!$C21,Materiaaliluettelo!$J:$J)","v":0},{"$f":"'Käyttö (B)'!$D28*Yhteenveto!$D13+SUMIF(Materiaaliluettelo!$O:$O,Datalehti!BD62-Datalehti!$C21,Materiaaliluettelo!$J:$J)","v":0},{"$f":"'Käyttö (B)'!$D28*Yhteenveto!$D13+SUMIF(Materiaaliluettelo!$O:$O,Datalehti!BE62-Datalehti!$C21,Materiaaliluettelo!$J:$J)","v":0},{"$f":"'Käyttö (B)'!$D28*Yhteenveto!$D13+SUMIF(Materiaaliluettelo!$O:$O,Datalehti!BF62-Datalehti!$C21,Materiaaliluettelo!$J:$J)","v":0},{"$f":"'Käyttö (B)'!$D28*Yhteenveto!$D13+SUMIF(Materiaaliluettelo!$O:$O,Datalehti!BG62-Datalehti!$C21,Materiaaliluettelo!$J:$J)","v":0},{"$f":"'Käyttö (B)'!$D28*Yhteenveto!$D13+SUMIF(Materiaaliluettelo!$O:$O,Datalehti!BH62-Datalehti!$C21,Materiaaliluettelo!$J:$J)","v":0},{"$f":"'Käyttö (B)'!$D28*Yhteenveto!$D13+SUMIF(Materiaaliluettelo!$O:$O,Datalehti!BI62-Datalehti!$C21,Materiaaliluettelo!$J:$J)","v":0},{"$f":"'Käyttö (B)'!$D28*Yhteenveto!$D13+SUMIF(Materiaaliluettelo!$O:$O,Datalehti!BJ62-Datalehti!$C21,Materiaaliluettelo!$J:$J)","v":0},{"$f":"'Käyttö (B)'!$D28*Yhteenveto!$D13+SUMIF(Materiaaliluettelo!$O:$O,Datalehti!BK62-Datalehti!$C21,Materiaaliluettelo!$J:$J)","v":0},{"$f":"'Käyttö (B)'!$D28*Yhteenveto!$D13+SUMIF(Materiaaliluettelo!$O:$O,Datalehti!BL62-Datalehti!$C21,Materiaaliluettelo!$J:$J)","v":0},{"$f":"'Käyttö (B)'!$D28*Yhteenveto!$D13+SUMIF(Materiaaliluettelo!$O:$O,Datalehti!BM62-Datalehti!$C21,Materiaaliluettelo!$J:$J)","v":0},{"$f":"'Käyttö (B)'!$D28*Yhteenveto!$D13+SUMIF(Materiaaliluettelo!$O:$O,Datalehti!BN62-Datalehti!$C21,Materiaaliluettelo!$J:$J)","v":0},{"$f":"'Käyttö (B)'!$D28*Yhteenveto!$D13+SUMIF(Materiaaliluettelo!$O:$O,Datalehti!BO62-Datalehti!$C21,Materiaaliluettelo!$J:$J)","v":0},{"$f":"'Käyttö (B)'!$D28*Yhteenveto!$D13+SUMIF(Materiaaliluettelo!$O:$O,Datalehti!BP62-Datalehti!$C21,Materiaaliluettelo!$J:$J)","v":0},{"$f":"'Käyttö (B)'!$D28*Yhteenveto!$D13+SUMIF(Materiaaliluettelo!$O:$O,Datalehti!BQ62-Datalehti!$C21,Materiaaliluettelo!$J:$J)","v":0},{"$f":"'Käyttö (B)'!$D28*Yhteenveto!$D13+SUMIF(Materiaaliluettelo!$O:$O,Datalehti!BR62-Datalehti!$C21,Materiaaliluettelo!$J:$J)","v":0},{"$f":"'Käyttö (B)'!$D28*Yhteenveto!$D13+SUMIF(Materiaaliluettelo!$O:$O,Datalehti!BS62-Datalehti!$C21,Materiaaliluettelo!$J:$J)","v":0},{"$f":"'Käyttö (B)'!$D28*Yhteenveto!$D13+SUMIF(Materiaaliluettelo!$O:$O,Datalehti!BT62-Datalehti!$C21,Materiaaliluettelo!$J:$J)","v":0},{"$f":"'Käyttö (B)'!$D28*Yhteenveto!$D13+SUMIF(Materiaaliluettelo!$O:$O,Datalehti!BU62-Datalehti!$C21,Materiaaliluettelo!$J:$J)","v":0},{"$f":"'Käyttö (B)'!$D28*Yhteenveto!$D13+SUMIF(Materiaaliluettelo!$O:$O,Datalehti!BV62-Datalehti!$C21,Materiaaliluettelo!$J:$J)","v":0},{"$f":"'Käyttö (B)'!$D28*Yhteenveto!$D13+SUMIF(Materiaaliluettelo!$O:$O,Datalehti!BW62-Datalehti!$C21,Materiaaliluettelo!$J:$J)","v":0},{"$f":"'Käyttö (B)'!$D28*Yhteenveto!$D13+SUMIF(Materiaaliluettelo!$O:$O,Datalehti!BX62-Datalehti!$C21,Materiaaliluettelo!$J:$J)","v":0},{"$f":"'Käyttö (B)'!$D28*Yhteenveto!$D13+SUMIF(Materiaaliluettelo!$O:$O,Datalehti!BY62-Datalehti!$C21,Materiaaliluettelo!$J:$J)","v":0},{"$f":"'Käyttö (B)'!$D28*Yhteenveto!$D13+SUMIF(Materiaaliluettelo!$O:$O,Datalehti!BZ62-Datalehti!$C21,Materiaaliluettelo!$J:$J)","v":0},{"$f":"'Käyttö (B)'!$D28*Yhteenveto!$D13+SUMIF(Materiaaliluettelo!$O:$O,Datalehti!CA62-Datalehti!$C21,Materiaaliluettelo!$J:$J)","v":0},{"$f":"'Käyttö (B)'!$D28*Yhteenveto!$D13+SUMIF(Materiaaliluettelo!$O:$O,Datalehti!CB62-Datalehti!$C21,Materiaaliluettelo!$J:$J)","v":0},{"$f":"'Käyttö (B)'!$D28*Yhteenveto!$D13+SUMIF(Materiaaliluettelo!$O:$O,Datalehti!CC62-Datalehti!$C21,Materiaaliluettelo!$J:$J)","v":0},{"$f":"'Käyttö (B)'!$D28*Yhteenveto!$D13+SUMIF(Materiaaliluettelo!$O:$O,Datalehti!CD62-Datalehti!$C21,Materiaaliluettelo!$J:$J)","v":0},{"$f":"'Käyttö (B)'!$D28*Yhteenveto!$D13+SUMIF(Materiaaliluettelo!$O:$O,Datalehti!CE62-Datalehti!$C21,Materiaaliluettelo!$J:$J)","v":0},{"$f":"'Käyttö (B)'!$D28*Yhteenveto!$D13+SUMIF(Materiaaliluettelo!$O:$O,Datalehti!CF62-Datalehti!$C21,Materiaaliluettelo!$J:$J)","v":0},{"$f":"'Käyttö (B)'!$D28*Yhteenveto!$D13+SUMIF(Materiaaliluettelo!$O:$O,Datalehti!CG62-Datalehti!$C21,Materiaaliluettelo!$J:$J)","v":0},{"$f":"'Käyttö (B)'!$D28*Yhteenveto!$D13+SUMIF(Materiaaliluettelo!$O:$O,Datalehti!CH62-Datalehti!$C21,Materiaaliluettelo!$J:$J)","v":0},{"$f":"'Käyttö (B)'!$D28*Yhteenveto!$D13+SUMIF(Materiaaliluettelo!$O:$O,Datalehti!CI62-Datalehti!$C21,Materiaaliluettelo!$J:$J)","v":0},{"$f":"'Käyttö (B)'!$D28*Yhteenveto!$D13+SUMIF(Materiaaliluettelo!$O:$O,Datalehti!CJ62-Datalehti!$C21,Materiaaliluettelo!$J:$J)","v":0},{"$f":"'Käyttö (B)'!$D28*Yhteenveto!$D13+SUMIF(Materiaaliluettelo!$O:$O,Datalehti!CK62-Datalehti!$C21,Materiaaliluettelo!$J:$J)","v":0},{"$f":"'Käyttö (B)'!$D28*Yhteenveto!$D13+SUMIF(Materiaaliluettelo!$O:$O,Datalehti!CL62-Datalehti!$C21,Materiaaliluettelo!$J:$J)","v":0},{"$f":"'Käyttö (B)'!$D28*Yhteenveto!$D13+SUMIF(Materiaaliluettelo!$O:$O,Datalehti!CM62-Datalehti!$C21,Materiaaliluettelo!$J:$J)","v":0},{"$f":"'Käyttö (B)'!$D28*Yhteenveto!$D13+SUMIF(Materiaaliluettelo!$O:$O,Datalehti!CN62-Datalehti!$C21,Materiaaliluettelo!$J:$J)","v":0},{"$f":"'Käyttö (B)'!$D28*Yhteenveto!$D13+SUMIF(Materiaaliluettelo!$O:$O,Datalehti!CO62-Datalehti!$C21,Materiaaliluettelo!$J:$J)","v":0},{"$f":"'Käyttö (B)'!$D28*Yhteenveto!$D13+SUMIF(Materiaaliluettelo!$O:$O,Datalehti!CP62-Datalehti!$C21,Materiaaliluettelo!$J:$J)","v":0},{"$f":"'Käyttö (B)'!$D28*Yhteenveto!$D13+SUMIF(Materiaaliluettelo!$O:$O,Datalehti!CQ62-Datalehti!$C21,Materiaaliluettelo!$J:$J)","v":0},{"$f":"'Käyttö (B)'!$D28*Yhteenveto!$D13+SUMIF(Materiaaliluettelo!$O:$O,Datalehti!CR62-Datalehti!$C21,Materiaaliluettelo!$J:$J)","v":0},{"$f":"'Käyttö (B)'!$D28*Yhteenveto!$D13+SUMIF(Materiaaliluettelo!$O:$O,Datalehti!CS62-Datalehti!$C21,Materiaaliluettelo!$J:$J)","v":0},{"$f":"'Käyttö (B)'!$D28*Yhteenveto!$D13+SUMIF(Materiaaliluettelo!$O:$O,Datalehti!CT62-Datalehti!$C21,Materiaaliluettelo!$J:$J)","v":0},{"$f":"'Käyttö (B)'!$D28*Yhteenveto!$D13+SUMIF(Materiaaliluettelo!$O:$O,Datalehti!CU62-Datalehti!$C21,Materiaaliluettelo!$J:$J)","v":0},{"$f":"'Käyttö (B)'!$D28*Yhteenveto!$D13+SUMIF(Materiaaliluettelo!$O:$O,Datalehti!CV62-Datalehti!$C21,Materiaaliluettelo!$J:$J)","v":0},{"$f":"'Käyttö (B)'!$D28*Yhteenveto!$D13+SUMIF(Materiaaliluettelo!$O:$O,Datalehti!CW62-Datalehti!$C21,Materiaaliluettelo!$J:$J)","v":0},{"$f":"'Käyttö (B)'!$D28*Yhteenveto!$D13+SUMIF(Materiaaliluettelo!$O:$O,Datalehti!CX62-Datalehti!$C21,Materiaaliluettelo!$J:$J)","v":0},{"$f":"'Käyttö (B)'!$D28*Yhteenveto!$D13+SUMIF(Materiaaliluettelo!$O:$O,Datalehti!CY62-Datalehti!$C21,Materiaaliluettelo!$J:$J)","v":0},{"$f":"'Käyttö (B)'!$D28*Yhteenveto!$D13+SUMIF(Materiaaliluettelo!$O:$O,Datalehti!CZ62-Datalehti!$C21,Materiaaliluettelo!$J:$J)","v":0},{"$f":"'Käyttö (B)'!$D28*Yhteenveto!$D13+SUMIF(Materiaaliluettelo!$O:$O,Datalehti!DA62-Datalehti!$C21,Materiaaliluettelo!$J:$J)","v":0},{"$f":"'Käyttö (B)'!$D28*Yhteenveto!$D13+SUMIF(Materiaaliluettelo!$O:$O,Datalehti!DB62-Datalehti!$C21,Materiaaliluettelo!$J:$J)","v":0},{"$f":"'Käyttö (B)'!$D28*Yhteenveto!$D13+SUMIF(Materiaaliluettelo!$O:$O,Datalehti!DC62-Datalehti!$C21,Materiaaliluettelo!$J:$J)","v":0},{"$f":"'Käyttö (B)'!$D28*Yhteenveto!$D13+SUMIF(Materiaaliluettelo!$O:$O,Datalehti!DD62-Datalehti!$C21,Materiaaliluettelo!$J:$J)","v":0},{"$f":"'Käyttö (B)'!$D28*Yhteenveto!$D13+SUMIF(Materiaaliluettelo!$O:$O,Datalehti!DE62-Datalehti!$C21,Materiaaliluettelo!$J:$J)","v":0},{"$f":"'Käyttö (B)'!$D28*Yhteenveto!$D13+SUMIF(Materiaaliluettelo!$O:$O,Datalehti!DF62-Datalehti!$C21,Materiaaliluettelo!$J:$J)","v":0},{"$f":"'Käyttö (B)'!$D28*Yhteenveto!$D13+SUMIF(Materiaaliluettelo!$O:$O,Datalehti!DG62-Datalehti!$C21,Materiaaliluettelo!$J:$J)","v":0},{"$f":"'Käyttö (B)'!$D28*Yhteenveto!$D13+SUMIF(Materiaaliluettelo!$O:$O,Datalehti!DH62-Datalehti!$C21,Materiaaliluettelo!$J:$J)","v":0},{"$f":"'Käyttö (B)'!$D28*Yhteenveto!$D13+SUMIF(Materiaaliluettelo!$O:$O,Datalehti!DI62-Datalehti!$C21,Materiaaliluettelo!$J:$J)","v":0},{"$f":"'Käyttö (B)'!$D28*Yhteenveto!$D13+SUMIF(Materiaaliluettelo!$O:$O,Datalehti!DJ62-Datalehti!$C21,Materiaaliluettelo!$J:$J)","v":0},{"$f":"'Käyttö (B)'!$D28*Yhteenveto!$D13+SUMIF(Materiaaliluettelo!$O:$O,Datalehti!DK62-Datalehti!$C21,Materiaaliluettelo!$J:$J)","v":0},{"$f":"'Käyttö (B)'!$D28*Yhteenveto!$D13+SUMIF(Materiaaliluettelo!$O:$O,Datalehti!DL62-Datalehti!$C21,Materiaaliluettelo!$J:$J)","v":0},{"$f":"'Käyttö (B)'!$D28*Yhteenveto!$D13+SUMIF(Materiaaliluettelo!$O:$O,Datalehti!DM62-Datalehti!$C21,Materiaaliluettelo!$J:$J)","v":0},{"$f":"'Käyttö (B)'!$D28*Yhteenveto!$D13+SUMIF(Materiaaliluettelo!$O:$O,Datalehti!DN62-Datalehti!$C21,Materiaaliluettelo!$J:$J)","v":0},{"$f":"'Käyttö (B)'!$D28*Yhteenveto!$D13+SUMIF(Materiaaliluettelo!$O:$O,Datalehti!DO62-Datalehti!$C21,Materiaaliluettelo!$J:$J)","v":0},{"$f":"'Käyttö (B)'!$D28*Yhteenveto!$D13+SUMIF(Materiaaliluettelo!$O:$O,Datalehti!DP62-Datalehti!$C21,Materiaaliluettelo!$J:$J)","v":0},{"$f":"'Käyttö (B)'!$D28*Yhteenveto!$D13+SUMIF(Materiaaliluettelo!$O:$O,Datalehti!DQ62-Datalehti!$C21,Materiaaliluettelo!$J:$J)","v":0},{"$f":"'Käyttö (B)'!$D28*Yhteenveto!$D13+SUMIF(Materiaaliluettelo!$O:$O,Datalehti!DR62-Datalehti!$C21,Materiaaliluettelo!$J:$J)","v":0},{"$f":"'Käyttö (B)'!$D28*Yhteenveto!$D13+SUMIF(Materiaaliluettelo!$O:$O,Datalehti!DS62-Datalehti!$C21,Materiaaliluettelo!$J:$J)","v":0},{"$f":"'Käyttö (B)'!$D28*Yhteenveto!$D13+SUMIF(Materiaaliluettelo!$O:$O,Datalehti!DT62-Datalehti!$C21,Materiaaliluettelo!$J:$J)","v":0},{"$f":"'Käyttö (B)'!$D28*Yhteenveto!$D13+SUMIF(Materiaaliluettelo!$O:$O,Datalehti!DU62-Datalehti!$C21,Materiaaliluettelo!$J:$J)","v":0},{"$f":"'Käyttö (B)'!$D28*Yhteenveto!$D13+SUMIF(Materiaaliluettelo!$O:$O,Datalehti!DV62-Datalehti!$C21,Materiaaliluettelo!$J:$J)","v":0},{"$f":"'Käyttö (B)'!$D28*Yhteenveto!$D13+SUMIF(Materiaaliluettelo!$O:$O,Datalehti!DW62-Datalehti!$C21,Materiaaliluettelo!$J:$J)","v":0},{"$f":"'Käyttö (B)'!$D28*Yhteenveto!$D13+SUMIF(Materiaaliluettelo!$O:$O,Datalehti!DX62-Datalehti!$C21,Materiaaliluettelo!$J:$J)","v":0},{"$f":"'Käyttö (B)'!$D28*Yhteenveto!$D13+SUMIF(Materiaaliluettelo!$O:$O,Datalehti!DY62-Datalehti!$C21,Materiaaliluettelo!$J:$J)","v":0},{"$f":"'Käyttö (B)'!$D28*Yhteenveto!$D13+SUMIF(Materiaaliluettelo!$O:$O,Datalehti!DZ62-Datalehti!$C21,Materiaaliluettelo!$J:$J)","v":0},{"$f":"'Käyttö (B)'!$D28*Yhteenveto!$D13+SUMIF(Materiaaliluettelo!$O:$O,Datalehti!EA62-Datalehti!$C21,Materiaaliluettelo!$J:$J)","v":0},{"$f":"'Käyttö (B)'!$D28*Yhteenveto!$D13+SUMIF(Materiaaliluettelo!$O:$O,Datalehti!EB62-Datalehti!$C21,Materiaaliluettelo!$J:$J)","v":0},{"$f":"'Käyttö (B)'!$D28*Yhteenveto!$D13+SUMIF(Materiaaliluettelo!$O:$O,Datalehti!EC62-Datalehti!$C21,Materiaaliluettelo!$J:$J)","v":0},{"$f":"'Käyttö (B)'!$D28*Yhteenveto!$D13+SUMIF(Materiaaliluettelo!$O:$O,Datalehti!ED62-Datalehti!$C21,Materiaaliluettelo!$J:$J)","v":0},{"$f":"'Käyttö (B)'!$D28*Yhteenveto!$D13+SUMIF(Materiaaliluettelo!$O:$O,Datalehti!EE62-Datalehti!$C21,Materiaaliluettelo!$J:$J)","v":0}]
[]
[]
[]
[]
[]
[]
[]
[]
[]
[]
[]
[]
[]
[]
[]
[]
[]
[]
[]
[]
[]
[]
[]
[]
[null,"Uudet kertoimet 6/2019, kopioitu ylös käyttöön"]
[]
[null,null,2020,2030,2040,2050,2060,2070,2080,2090,2100,2110,2120]
[null,"Sähkönkulutuksen CO2-päästökerroin, hyödynjako, g CO2/kWh",121,57,30,18,14,7,4,2,1,1,0]
[null,"Kaukolämmön kulutuksen CO2-päästökerroin, hyödynjako, g CO2/kWh",130,93,63,37,33,22,15,10,7,4,3]
[]
[null,"kgco2/kwh",{"$f":"C97/1000","v":0.121},{"$f":"D97/1000","v":5.7000000000000002E-2},0.03,1.7999999999999999E-2,1.4E-2,7.0000000000000001E-3,4.0000000000000001E-3,2E-3,1E-3,1E-3,0]
[null,"kgco2/kwh",{"$f":"C98/1000","v":0.13},9.2999999999999999E-2,6.3E-2,3.6999999999999998E-2,3.3000000000000002E-2,2.1999999999999999E-2,1.4999999999999999E-2,0.01,7.0000000000000001E-3,4.0000000000000001E-3,3.0000000000000001E-3]

{"sheet":"LOKI","index":9,"n_rows":2,"n_cols":2,"rows_kept":2,"cut":false,"hidden":true,"merged":[]}
["Tehdyt päivitykset"]
["2019-12-09","Korjattu materiaaliluettelon toimimattomat alasvetovalikot ja lämmöneristeiden päästötietoja VTT:n ohjeiden mukaan"]